Workbook

Sheet A1.1 Distributor Information
C1: ED Capital OM&A Rate Generator release 1.0
C2: ="Name of LDC: " &D20 -> Name of LDC: London Hydro Inc.
C3: ="OEB Application: " & D24 -> OEB Application: EB-2016-0091
C10: Distributor Information
C20: Applicant Name | D20: London Hydro Inc. | AA20: Licence Name | AB20: Licence Number | AC20: OEB File Number | AD20: CST - Size | AE20: Last Re-basing
AA21: Algoma Power Inc. | AB21: ED-2009-0072 | AC21: EB-2011-0123 | AD21: Small | AE21: 2010
C22: OEB Licence Number | D22: =IF(ISNA(VLOOKUP(D20,AA20:AH99,2,0)),"",VLOOKUP(D20,AA20:AH99,2,0)) -> ED-2002-0557 | AA22: Atikokan Hydro Inc. | AB22: ED-2003-0001 | AC22: EB-2011-0124 | AD22: Small | AE22: 2008
AA23: Bluewater Power Distribution Corporation | AB23: ED-2002-0517 | AC23: EB-2011-0125 | AD23: Med-Small | AE23: 2008
C24: OEB File Number | D24: =IF(ISNA(VLOOKUP(D20,AA20:AH99,3,0)),"",VLOOKUP(D20,AA20:AH99,3,0)) -> EB-2016-0091 | AA24: Brant County Power Inc. | AB24: ED-2002-0522 | AC24: EB-2011-0126 | AD24: Small | AE24: 2008
AA25: Brantford Power Inc. | AB25: ED-2003-0060 | AC25: EB-2011-0127 | AD25: Small | AE25: 2008
C26: Capital Structure Transition - Rated Utility Size | D26: =IF(ISNA(VLOOKUP(D20,AA20:AH101,4,0)),"",VLOOKUP(D20,AA20:AH101,4,0)) -> Med-Large | F26: December-30-99 | AA26: Burlington Hydro Inc. | AB26: ED-2003-0004 | AC26: EB-2011-0128 | AD26: Med-Small | AE26: 2008
AA27: Cambridge and North Dumfries Hydro Inc. | AB27: ED-2002-0574 | AC27: EB-2011-0129 | AD27: Med-Small | AE27: 2008
C28: Last Re-basing Year - COS | D28: =IF(ISNA(VLOOKUP(D20,AA20:AH101,5,0)),"",VLOOKUP(D20,AA20:AH101,5,0)) -> 2013 | AA28: Canadian Niagara Power Inc. | AB28: ED-2002-0572 | AC28: EB-2011-0130 | AD28: Small | AE28: 2008
AA29: Canadian Niagara Power Inc. | AB29: ED-2002-0572 | AC29: EB-2011-0131 | AD29: Small | AE29: 2008
AA30: Canadian Niagara Power Inc. | AB30: ED-2002-0572 | AC30: EB-2011-0132 | AD30: Small | AE30: 2008
AA31: Centre Wellington Hydro Ltd. | AB31: ED-2002-0498 | AC31: EB-2011-0133 | AD31: Small | AE31: 2008
AA32: Chapleau Public Utilities Corporation | AB32: ED-2002-0528 | AC32: EB-2011-0134 | AD32: Small | AE32: 2008
AA33: Chatham-Kent Hydro Inc. | AB33: ED-2002-0563 | AC33: EB-2011-0135 | AD33: Med-Small | AE33: 2008
AA34: Clinton Power Corporation | AB34: ED-2002-0496 | AC34: EB-2011-0136 | AD34: Small | AE34: 2008
AA35: COLLUS Power Corporation | AB35: ED-2002-0518 | AC35: EB-2011-0137 | AD35: Small | AE35: 2008
AA36: Cooperative Hydro Embrun Inc. | AB36: ED-2002-0493 | AC36: EB-2011-0138 | AD36: Small | AE36: 2008
AA37: E.L.K. Energy Inc. | AB37: ED-2003-0015 | AC37: EB-2011-0139 | AD37: Small | AE37: 2008
AA38: Enersource Hydro Mississauga Inc. | AB38: ED-2003-0017 | AC38: EB-2011-0140 | AD38: Med-Large | AE38: 2008
AA39: ENWIN Utilities Ltd. | AB39: ED-2002-0527 | AC39: EB-2011-0141 | AD39: Small | AE39: 2008
AA40: Erie Thames Powerlines Corporation | AB40: ED-2002-0516 | AC40: EB-2011-0142 | AD40: Small | AE40: 2008
AA41: Espanola Regional Hydro Distribution Corporation | AB41: ED-2002-0502 | AC41: EB-2011-0143 | AD41: Small | AE41: 2008
AA42: Essex Powerlines Corporation | AB42: ED-2002-0499 | AC42: EB-2011-0144 | AD42: Small | AE42: 2008
AA43: Festival Hydro Inc. | AB43: ED-2002-0513 | AC43: EB-2011-0145 | AD43: Small | AE43: 2008
AA44: Fort Frances Power Corporation | AB44: ED-2003-0028 | AC44: EB-2011-0146 | AD44: Small | AE44: 2008
AA45: Greater Sudbury Hydro Inc. | AB45: ED-2002-0559 | AC45: EB-2011-0147 | AD45: Med-Small | AE45: 2008
AA46: Grimsby Power Inc. | AB46: ED-2002-0554 | AC46: EB-2011-0148 | AD46: Small | AE46: 2008
AA47: Guelph Hydro Electric Systems Inc. | AB47: ED-2002-0565 | AC47: EB-2011-0149 | AD47: Med-Small | AE47: 2008
AA48: Haldimand County Hydro Inc. | AB48: ED-2002-0539 | AC48: EB-2011-0150 | AD48: Small | AE48: 2008
AA49: Halton Hills Hydro Inc. | AB49: ED-2002-0552 | AC49: EB-2011-0151 | AD49: Small | AE49: 2008
AA50: Hearst Power Distribution Company Limited | AB50: ED-2002-0533 | AC50: EB-2011-0152 | AD50: Small | AE50: 2008
AA51: Horizon Utilities Corporation | AB51: ED-2006-0031 | AC51: EB-2011-0153 | AD51: Med-Large | AE51: 2008
AA52: Hydro 2000 Inc. | AB52: ED-2002-0542 | AC52: EB-2011-0154 | AD52: Small | AE52: 2008
AA53: Hydro Hawkesbury Inc. | AB53: ED-2003-0027 | AC53: EB-2011-0155 | AD53: Small | AE53: 2008
AA54: Hydro One Brampton Networks Inc. | AB54: ED-2003-0038 | AC54: EB-2011-0156 | AD54: Med-Large | AE54: 2008
AA55: Hydro One Networks Inc. | AB55: ED-2003-0043 | AC55: EB-2011-0157 | AD55: Large | AE55: 2008
AA56: Hydro Ottawa Limited | AB56: ED-2002-0556 | AC56: EB-2011-0158 | AD56: Med-Large | AE56: 2008
AA57: Innisfil Hydro Distribution Systems Limited | AB57: ED-2002-0520 | AC57: EB-2011-0159 | AD57: Small | AE57: 2008
AA58: Kenora Hydro Electric Corporation Ltd. | AB58: ED-2003-0030 | AC58: EB-2011-0160 | AD58: Small | AE58: 2008
AA59: Kingston Hydro Corporation | AB59: ED-2003-0057 | AC59: EB-2011-0161 | AD59: Small | AE59: 2008
AA60: Kitchener-Wilmot Hydro Inc. | AB60: ED-2002-0573 | AC60: EB-2011-0162 | AD60: Small | AE60: 2008
AA61: Lakefront Utilities Inc. | AB61: ED-2002-0545 | AC61: EB-2011-0163 | AD61: Small | AE61: 2008
AA62: Lakeland Power Distribution Ltd. | AB62: ED-2002-0540 | AC62: EB-2011-0164 | AD62: Small | AE62: 2008
AA63: London Hydro Inc. | AB63: ED-2002-0557 | AC63: EB-2016-0091 | AD63: Med-Large | AE63: 2013
AA64: Middlesex Power Distribution Corporation | AB64: ED-2003-0059 | AC64: EB-2011-0166 | AD64: Small | AE64: 2008
AA65: Midland Power Utility Corporation | AB65: ED-2002-0541 | AC65: EB-2011-0167 | AD65: Small | AE65: 2008
AA66: Milton Hydro Distribution Inc. | AB66: ED-2003-0014 | AC66: EB-2011-0168 | AD66: Small | AE66: 2008
AA67: Newmarket - Tay Power Distribution Ltd. | AB67: ED-2007-0624 | AC67: EB-2011-0169 | AD67: Small | AE67: 2008
AA68: Niagara Peninsula Energy Inc. | AB68: ED-2007-0749 | AC68: EB-2011-0170 | AD68: Small | AE68: 2008
AA69: Niagara-on-the-Lake Hydro Inc. | AB69: ED-2002-0547 | AC69: EB-2011-0171 | AD69: Small | AE69: 2008
AA70: Norfolk Power Distribution Inc. | AB70: ED-2002-0521 | AC70: EB-2011-0172 | AD70: Small | AE70: 2008
AA71: North Bay Hydro Distribution Limited | AB71: ED-2003-0024 | AC71: EB-2011-0173 | AD71: Small | AE71: 2008
AA72: Northern Ontario Wires Inc. | AB72: ED-2003-0018 | AC72: EB-2011-0174 | AD72: Small | AE72: 2008
AA73: Oakville Hydro Electricity Distribution Inc. | AB73: ED-2003-0135 | AC73: EB-2011-0175 | AD73: Med-Small | AE73: 2008
AA74: Orangeville Hydro Limited | AB74: ED-2002-0500 | AC74: EB-2011-0176 | AD74: Small | AE74: 2008
AA75: Orillia Power Distribution Corporation | AB75: ED-2002-0530 | AC75: EB-2011-0177 | AD75: Small | AE75: 2008
AA76: Oshawa PUC Networks Inc. | AB76: ED-2002-0560 | AC76: EB-2011-0178 | AD76: Med-Small | AE76: 2008
AA77: Ottawa River Power Corporation | AB77: ED-2003-0033 | AC77: EB-2011-0179 | AD77: Small | AE77: 2008
AA78: Parry Sound Power Corporation | AB78: ED-2003-0006 | AC78: EB-2011-0180 | AD78: Small | AE78: 2008
AA79: Peterborough Distribution Incorporated | AB79: ED-2002-0504 | AC79: EB-2011-0181 | AD79: Small | AE79: 2008
AA80: PowerStream Inc. | AB80: ED-2004-0420 | AC80: EB-2011-0182 | AD80: Med-Large | AE80: 2009
AA81: PUC Distribution Inc. | AB81: ED-2002-0546 | AC81: EB-2011-0183 | AD81: Small | AE81: 2008
AA82: Renfrew Hydro Inc. | AB82: ED-2002-0577 | AC82: EB-2011-0184 | AD82: Small | AE82: 2008
AA83: Rideau St. Lawrence Distribution Inc. | AB83: ED-2003-0003 | AC83: EB-2011-0185 | AD83: Small | AE83: 2008
AA84: Sioux Lookout Hydro Inc. | AB84: ED-2002-0514 | AC84: EB-2011-0186 | AD84: Small | AE84: 2008
AA85: St. Thomas Energy Inc. | AB85: ED-2002-0523 | AC85: EB-2011-0187 | AD85: Small | AE85: 2008
AA86: Thunder Bay Hydro Electricity Distribution Inc. | AB86: ED-2002-0529 | AC86: EB-2011-0188 | AD86: Med-Small | AE86: 2008
AA87: Tillsonburg Hydro Inc. | AB87: ED-2003-0026 | AC87: EB-2011-0189 | AD87: Small | AE87: 2008
AA88: Toronto Hydro-Electric System Limited | AB88: ED-2002-0497 | AC88: EB-2011-0190 | AD88: Large | AE88: 2008
AA89: Veridian Connections Inc. | AB89: ED-2002-0503 | AC89: EB-2011-0191 | AD89: Med-Large | AE89: 2008
AA90: Wasaga Distribution Inc. | AB90: ED-2002-0544 | AC90: EB-2011-0192 | AD90: Small | AE90: 2008
AA91: Waterloo North Hydro Inc. | AB91: ED-2002-0575 | AC91: EB-2011-0193 | AD91: Small | AE91: 2008
AA92: Welland Hydro-Electric System Corp. | AB92: ED-2003-0002 | AC92: EB-2011-0194 | AD92: Small | AE92: 2008
AA93: Wellington North Power Inc. | AB93: ED-2002-0511 | AC93: EB-2011-0195 | AD93: Small | AE93: 2008
AA94: West Coast Huron Energy Inc. | AB94: ED-2002-0510 | AC94: EB-2011-0196 | AD94: Small | AE94: 2008
AA95: West Perth Power Inc. | AB95: ED-2002-0508 | AC95: EB-2011-0197 | AD95: Small | AE95: 2008
AA96: Westario Power Inc. | AB96: ED-2002-0515 | AC96: EB-2011-0198 | AD96: Small | AE96: 2008
AA97: Whitby Hydro Electric Corporation | AB97: ED-2002-0571 | AC97: EB-2011-0199 | AD97: Med-Small | AE97: 2008
AA98: Woodstock Hydro Services Inc. | AB98: ED-2003-0011 | AC98: EB-2011-0200 | AD98: Small | AE98: 2008

Sheet A1.2 This Application
C1: ='A1.1 Distributor Information'!C1 -> ED Capital OM&A Rate Generator release 1.0
C2: ='A1.1 Distributor Information'!C2 -> Name of LDC: London Hydro Inc.
C3: ='A1.1 Distributor Information'!C3 -> OEB Application: EB-2016-0091
C12: This Application
C14: Smart Meter Rate Adder | E14: Yes
C16: Smart Meter Disposition Rate Rider | E16: Yes
C18: Smart Meter Incremental Revenue Requirement Rate Rider | E18: Yes
C20: Accounting Order to Clear Deferral Accounts | E20: Yes
C22: First Year of Deferral | E22: 2010
C24: Claimed Years
C26: 2010 | E26: Yes
C27: 2011 | E27: Yes
C28: 2012 | E28: Yes
C29: 2013 | E29: Yes
C30: 2014 | E30: Yes
C31: 2015 | E31: Yes
C32: 2016 | E32: Yes
C33: 2017 | E33: No
C34: 2018 | E34: No
C35: 2019 | E35: No
C37: Year of Disposition | E37: 2017

Sheet A1.3 Determine PILs Rates (hidden)
C1: ='A1.1 Distributor Information'!C1 -> ED Capital OM&A Rate Generator release 1.0
C2: ='A1.1 Distributor Information'!C2 -> Name of LDC: London Hydro Inc.
C3: ='A1.1 Distributor Information'!C3 -> OEB Application: EB-2016-0091
C10: Determine PILs Rate
C23: 1. Tax Related Amounts Forecast from Capital Tax Rate Changes | E23: ='A1.2 This Application'!C26 -> 2010 | G23: ='A1.2 This Application'!C27 -> 2011 | I23: ='A1.2 This Application'!C28 -> 2012 | K23: ='A1.2 This Application'!C29 -> 2013 | M23: ='A1.2 This Application'!C30 -> 2014 | O23: ='A1.2 This Application'!C31 -> 2015 | Q23: ='A1.2 This Application'!C32 -> 2016 | S23: ='A1.2 This Application'!C33 -> 2017 | U23: ='A1.2 This Application'!C34 -> 2018 | W23: ='A1.2 This Application'!C35 -> 2019
C25: Taxable Capital | E25: 0 | G25: =$E$25 -> 0 | I25: =$E$25 -> 0 | K25: 0 | M25: =$K$25 -> 0 | O25: =$K$25 -> 0 | Q25: =$K$25 -> 0 | S25: =$K$25 -> 0 | U25: =$K$25 -> 0 | W25: =$K$25 -> 0
C27: Deduction from taxable capital up to $15,000,000 | E27: 0 | G27: =$E$27 -> 0 | I27: =$E$27 -> 0 | K27: 0 | M27: =$K$27 -> 0 | O27: =$K$27 -> 0 | Q27: =$K$27 -> 0 | S27: =$K$27 -> 0 | U27: =$K$27 -> 0 | W27: =$K$27 -> 0
C29: Net Taxable Capital | E29: =E25-E27 -> 0 | G29: =G25-G27 -> 0 | I29: =I25-I27 -> 0 | K29: =K25-K27 -> 0 | M29: =M25-M27 -> 0 | O29: =O25-O27 -> 0 | Q29: =Q25-Q27 -> 0 | S29: =S25-S27 -> 0 | U29: =U25-U27 -> 0 | W29: =W25-W27 -> 0
C31: Rate | E31: 0 | G31: 0 | I31: 0 | K31: 0 | M31: 0 | O31: 0 | Q31: 0 | S31: 0 | U31: 0 | W31: 0
C33: Ontario Capital Tax (Deductible, not grossed-up) | E33: =IF(E29>0,E29*E31,0) -> 0 | G33: =IF(G29>0,G29*G31,0) -> 0 | I33: =IF(I29>0,I29*I31,0) -> 0 | K33: =IF(K29>0,K29*K31,0) -> 0 | M33: =(IF(M29>0,M29*M31,0))*181/365 -> 0 | O33: =IF(O29>0,O29*O31,0) -> 0 | Q33: =IF(Q29>0,Q29*Q31,0) -> 0 | S33: =IF(S29>0,S29*S31,0) -> 0 | U33: =IF(U29>0,U29*U31,0) -> 0 | W33: =IF(W29>0,W29*W31,0) -> 0
C35: 2. Tax Related Amounts Forecast from lncome Tax Rate Changes | E35: =E23 -> 2010 | G35: =G23 -> 2011 | I35: =I23 -> 2012 | K35: =K23 -> 2013 | M35: =M23 -> 2014 | O35: =O23 -> 2015 | Q35: =Q23 -> 2016 | S35: =S23 -> 2017 | U35: =U23 -> 2018 | W35: =W23 -> 2019
C36: Regulatory Taxable Income | E36: 10000000 | G36: =$E$36 -> 10000000 | I36: =$E$36 -> 10000000 | K36: 10000000 | M36: =$K$36 -> 10000000 | O36: =$K$36 -> 10000000 | Q36: =$K$36 -> 10000000 | S36: =$K$36 -> 10000000 | U36: =$K$36 -> 10000000 | W36: =$K$36 -> 10000000
C38: Corporate Tax Rate | E38: =fedinctax2012(E36)+OntIncTax2012(E36) -> 0.26249 | G38: =fedinctax2013(G36)+OntIncTax2013(G36) -> 0.25496 | I38: =fedinctax2014(I36)+OntIncTax2014(I36) -> 0.25 | K38: =fedinctax2015(K36)+OntIncTax2015(K36) -> 0.25 | M38: =fedinctax2016(M36)+OntIncTax2016(M36) -> 0.25 | O38: =fedinctax2017(O36)+OntIncTax2017(O36) -> 0.25 | Q38: =fedinctax2018(Q36)+OntIncTax2018(Q36) -> 0.25 | S38: =fedinctax2019(S36)+OntIncTax2019(S36) -> 0.25 | U38: =fedinctax2020(U36)+OntIncTax2020(U36) -> 0.25 | W38: =fedinctax2021(W36)+OntIncTax2021(W36) -> 0.25
C40: Income Taxes Before Tax Credit | E40: =E36*E38 -> 2624900 | G40: =G36*G38 -> 2549600 | I40: =I36*I38 -> 2500000 | K40: =K36*K38 -> 2500000 | M40: =M36*M38 -> 2500000 | O40: =O36*O38 -> 2500000 | Q40: =Q36*Q38 -> 2500000 | S40: =S36*S38 -> 2500000 | U40: =U36*U38 -> 2500000 | W40: =W36*W38 -> 2500000
C42: Tax Credits Deducted from Income Taxes | E42: 0 | G42: =$E$42 -> 0 | I42: =$E$42 -> 0 | K42: 0 | M42: =$K$42 -> 0 | O42: =$K$42 -> 0 | Q42: =$K$42 -> 0 | S42: =$K$42 -> 0 | U42: =$K$42 -> 0 | W42: =$K$42 -> 0
C44: Income Taxes Before Gross-up | E44: =E40-E42 -> 2624900 | G44: =G40-G42 -> 2549600 | I44: =I40-I42 -> 2500000 | K44: =K40-K42 -> 2500000 | M44: =M40-M42 -> 2500000 | O44: =O40-O42 -> 2500000 | Q44: =Q40-Q42 -> 2500000 | S44: =S40-S42 -> 2500000 | U44: =U40-U42 -> 2500000 | W44: =W40-W42 -> 2500000
C46: Gross-up of Income Taxes | E46: =E44/(1-E38)-E44 -> 934238.1812 | G46: =G44/(1-G38)-G44 -> 872498.1424 | I46: =I44/(1-I38)-I44 -> 833333.3333 | K46: =K44/(1-K38)-K44 -> 833333.3333 | M46: =M44/(1-M38)-M44 -> 833333.3333 | O46: =O44/(1-O38)-O44 -> 833333.3333 | Q46: =Q44/(1-Q38)-Q44 -> 833333.3333 | S46: =S44/(1-S38)-S44 -> 833333.3333 | U46: =U44/(1-U38)-U44 -> 833333.3333 | W46: =W44/(1-W38)-W44 -> 833333.3333
C48: Grossed-up Tax Amount | E48: =SUM(E44:E46) -> 3559138.181 | G48: =SUM(G44:G46) -> 3422098.142 | I48: =SUM(I44:I46) -> 3333333.333 | K48: =SUM(K44:K46) -> 3333333.333 | M48: =SUM(M44:M46) -> 3333333.333 | O48: =SUM(O44:O46) -> 3333333.333 | Q48: =SUM(Q44:Q46) -> 3333333.333 | S48: =SUM(S44:S46) -> 3333333.333 | U48: =SUM(U44:U46) -> 3333333.333 | W48: =SUM(W44:W46) -> 3333333.333
C51: Tax Related Amounts Forecast from Capital Tax Rate Changes | E51: =E33 -> 0 | G51: =G33 -> 0 | I51: =I33 -> 0 | K51: =K33 -> 0 | M51: =M33 -> 0 | O51: =O33 -> 0 | Q51: =Q33 -> 0 | S51: =S33 -> 0 | U51: =U33 -> 0 | W51: =W33 -> 0
C53: Tax Related Amounts Forecast from lncome Tax Rate Changes | E53: =E48 -> 3559138.181 | G53: =G48 -> 3422098.142 | I53: =I48 -> 3333333.333 | K53: =K48 -> 3333333.333 | M53: =M48 -> 3333333.333 | O53: =O48 -> 3333333.333 | Q53: =Q48 -> 3333333.333 | S53: =S48 -> 3333333.333 | U53: =U48 -> 3333333.333 | W53: =W48 -> 3333333.333
C55: Total Tax Related Amounts | E55: =SUM(E51:E53) -> 3559138.181 | G55: =SUM(G51:G53) -> 3422098.142 | I55: =SUM(I51:I53) -> 3333333.333 | K55: =SUM(K51:K53) -> 3333333.333 | M55: =SUM(M51:M53) -> 3333333.333 | O55: =SUM(O51:O53) -> 3333333.333 | Q55: =SUM(Q51:Q53) -> 3333333.333 | S55: =SUM(S51:S53) -> 3333333.333 | U55: =SUM(U51:U53) -> 3333333.333 | W55: =SUM(W51:W53) -> 3333333.333

Sheet A1.4 Dist Assumptions and Data
C1: ='A1.1 Distributor Information'!C1 -> ED Capital OM&A Rate Generator release 1.0
C2: ='A1.1 Distributor Information'!C2 -> Name of LDC: London Hydro Inc.
C3: ='A1.1 Distributor Information'!C3 -> OEB Application: EB-2016-0091
C10: Distributor Assumptions and Data | E10: ='A1.2 This Application'!C26 -> 2010 | F10: ='A1.2 This Application'!C27 -> 2011 | G10: ='A1.2 This Application'!C28 -> 2012 | H10: ='A1.2 This Application'!C29 -> 2013 | I10: ='A1.2 This Application'!C30 -> 2014 | J10: ='A1.2 This Application'!C31 -> 2015 | K10: ='A1.2 This Application'!C32 -> 2016 | L10: ='A1.2 This Application'!C33 -> 2017 | M10: ='A1.2 This Application'!C34 -> 2018 | N10: ='A1.2 This Application'!C35 -> 2019
C12: Rate Base
C13: Deemed Short Term Debt % | E13: 0.04 | F13: 0.04 | G13: 0.04 | H13: 0.04 | I13: 0.04 | J13: 0.04 | K13: 0.04 | L13: 0.04 | M13: 0.04 | N13: 0.04
C14: Deemed Debt | E14: 0.56 | F14: 0.56 | G14: 0.56 | H14: 0.56 | I14: 0.56 | J14: 0.56 | K14: 0.56 | L14: 0.56 | M14: 0.56 | N14: 0.56
C15: Deemed Equity | E15: 0.4 | F15: 0.4 | G15: 0.4 | H15: 0.4 | I15: 0.4 | J15: 0.4 | K15: 0.4 | L15: 0.4 | M15: 0.4 | N15: 0.4
C17: Deemed Short Term Debt Rate% | E17: 0.0133 | F17: 0.0207 | G17: 0.0207 | H17: 0.0207 | I17: 0.0207 | J17: 0.0165 | K17: =J17 -> 0.0165 | L17: 0.0165 | M17: 0.0165 | N17: 0.0165
C18: Weighted Debt Rate | E18: 0.0762 | F18: 0.0458 | G18: 0.0458 | H18: 0.0458 | I18: 0.0458 | J18: 0.02711741647 | K18: =J18 -> 0.02711741647 | L18: 0.02711741647 | M18: 0.02711741647 | N18: 0.02711741647
C19: Proposed ROE | E19: 0.0801 | F19: 0.0898 | G19: 0.0898 | H19: 0.0898 | I19: 0.0898 | J19: 0.0919 | K19: 0.0919 | L19: =K19 -> 0.0919 | M19: =L19 -> 0.0919 | N19: 0.0919
C20: Weighted Average Cost of Capital | E20: =(E13*E17)+(E18*E14)+(E15*E19) -> 0.075244 | F20: =(F13*F17)+(F18*F14)+(F15*F19) -> 0.062396 | G20: 0.062396 | H20: 0.062396 | I20: 0.062396 | J20: 0.05260575322 | K20: 0.05260575322 | L20: 0.05260575322 | M20: 0.05260575322 | N20: 0.05260575322
C22: Working Capital Allowance % | E22: 0.15 | F22: 0.15 | G22: 0.15 | H22: 0.1142 | I22: 0.1142 | J22: 0.1142 | K22: 0.1142 | L22: 0.15 | M22: 0.15 | N22: 0.15
C24: Corporate Income Tax Rate | E24: 0.31 | F24: 0.2825 | G24: 0.2563 | H24: 0.2545181681 | I24: 0.2545181681 | J24: 0.2545181681 | K24: 0.265 | L24: 0.265 | M24: 0.265 | N24: 0.265
C26: Ontario Capital Tax | E26: ='A1.3 Determine PILs Rates'!E31 -> 0 | F26: ='A1.3 Determine PILs Rates'!G31 -> 0 | G26: ='A1.3 Determine PILs Rates'!I31 -> 0 | H26: ='A1.3 Determine PILs Rates'!K31 -> 0 | I26: ='A1.3 Determine PILs Rates'!M31*181/365 -> 0 | J26: ='A1.3 Determine PILs Rates'!O31 -> 0 | K26: ='A1.3 Determine PILs Rates'!Q31 -> 0 | L26: ='A1.3 Determine PILs Rates'!S31 -> 0 | M26: ='A1.3 Determine PILs Rates'!U31 -> 0 | N26: ='A1.3 Determine PILs Rates'!W31 -> 0
C28: Depreciation Rates | E28: =E10 -> 2010 | F28: 2011 | G28: 2012 | H28: 2013 | I28: 2014 | J28: 2015 | K28: 2016 | L28: 2017 | M28: 2018 | N28: 2019
C29: Software CIS(years) | E29: 5 | F29: 5 | G29: 5 | H29: 5 | I29: 5 | J29: 5 | K29: 5 | L29: 5 | M29: 5 | N29: 5
C30: Software Green Button (years) | E30: 5 | F30: 5 | G30: 5 | H30: 5 | I30: 5 | J30: 5 | K30: 5 | L30: 5 | M30: 5 | N30: 5
C31: Var Compensator (years) | E31: 5 | F31: 5 | G31: 5 | H31: 5 | I31: 5 | J31: 5 | K31: 5 | L31: 8 | M31: 8 | N31: 8
C32: Asset 4 (years)
C33: Asset 5 (years)
C35: CCA Rates | E35: =E10 -> 2010 | F35: 2011 | G35: 2012 | H35: 2013 | I35: 2014 | J35: 2015 | K35: 2016 | L35: 2017 | M35: 2018 | N35: 2019
C36: CCA Class | E36: 12 | F36: 12 | G36: 12 | H36: 12 | I36: 12 | J36: 12 | K36: 12 | L36: 12 | M36: 12 | N36: 12 | O36: 12 | P36: 12 | Q36: 12 | R36: 12 | S36: 12 | T36: 12 | U36: 12 | V36: 12 | W36: 12 | X36: 12 | Y36: 12 | Z36: 12 | AA36: 12 | AB36: 12 | AC36: 12 | AD36: 12 | AE36: 12 | AF36: 12 | AG36: 12 | AH36: 12 | AI36: 12 | AJ36: 12 | AK36: 12 | AL36: 12 | AM36: 12 | AN36: 12 | AO36: 12 | AP36: 12 | AQ36: 12 | AR36: 12 | AS36: 12 | AT36: 12 | AU36: 12 | AV36: 12 | AW36: 12 | AX36: 12 | AY36: 12 | AZ36: 12 | BA36: 12 | BB36: 12 | BC36: 12 | BD36: 12 | BE36: 12 | BF36: 12 | BG36: 12 | BH36: 12 | BI36: 12 | BJ36: 12 | BK36: 12 | BL36: 12 | BM36: 12 | BN36: 12 | BO36: 12 | BP36: 12 | BQ36: 12 | BR36: 12 | BS36: 12 | BT36: 12 | BU36: 12 | BV36: 12 | BW36: 12 | BX36: 12 | BY36: 12 | BZ36: 12 | CA36: 12 | CB36: 12 | CC36: 12 | CD36: 12 | CE36: 12 | CF36: 12 | CG36: 12 | CH36: 12 | CI36: 12 | CJ36: 12 | CK36: 12 | CL36: 12 | CM36: 12 | CN36: 12 | CO36: 12 | CP36: 12 | CQ36: 12 | CR36: 12 | CS36: 12 | CT36: 12 | CU36: 12 | CV36: 12 | CW36: 12 | CX36: 12 | CY36: 12 | CZ36: 12 | DA36: 12 | DB36: 12 | DC36: 12 | DD36: 12 | DE36: 12 | DF36: 12 | DG36: 12 | DH36: 12 | DI36: 12 | DJ36: 12 | DK36: 12 | DL36: 12 | DM36: 12 | DN36: 12 | DO36: 12 | DP36: 12 | DQ36: 12 | DR36: 12 | DS36: 12 | DT36: 12 | DU36: 12 | DV36: 12 | DW36: 12 | DX36: 12 | DY36: 12 | DZ36: 12 | EA36: 12 | EB36: 12 | EC36: 12 | ED36: 12 | EE36: 12 | EF36: 12 | EG36: 12 | EH36: 12 | EI36: 12 | EJ36: 12 | EK36: 12 | EL36: 12 | EM36: 12 | EN36: 12 | EO36: 12 | EP36: 12 | EQ36: 12 | ER36: 12 | ES36: 12 | ET36: 12 | EU36: 12 | EV36: 12 | EW36: 12 | EX36: 12 | EY36: 12 | EZ36: 12 | FA36: 12 | FB36: 12 | FC36: 12 | FD36: 12 | FE36: 12 | FF36: 12 | FG36: 12 | FH36: 12 | FI36: 12 | FJ36: 12 | FK36: 12 | FL36: 12 | FM36: 12 | FN36: 12 | FO36: 12 | FP36: 12 | FQ36: 12 | FR36: 12 | FS36: 12 | FT36: 12 | FU36: 12 | FV36: 12 | FW36: 12 | FX36: 12 | FY36: 12 | FZ36: 12 | GA36: 12 | GB36: 12 | GC36: 12 | GD36: 12 | GE36: 12 | GF36: 12 | GG36: 12 | GH36: 12 | GI36: 12 | GJ36: 12 | GK36: 12 | GL36: 12 | GM36: 12 | GN36: 12 | GO36: 12 | GP36: 12 | GQ36: 12 | GR36: 12 | GS36: 12 | GT36: 12 | GU36: 12 | GV36: 12 | GW36: 12 | GX36: 12 | GY36: 12 | GZ36: 12 | HA36: 12 | HB36: 12 | HC36: 12 | HD36: 12 | HE36: 12 | HF36: 12 | HG36: 12 | HH36: 12 | HI36: 12 | HJ36: 12 | HK36: 12 | HL36: 12 | HM36: 12 | HN36: 12 | HO36: 12 | HP36: 12 | HQ36: 12 | HR36: 12 | HS36: 12 | HT36: 12 | HU36: 12 | HV36: 12 | HW36: 12 | HX36: 12 | HY36: 12 | HZ36: 12 | IA36: 12 | IB36: 12 | IC36: 12 | ID36: 12 | IE36: 12 | IF36: 12 | IG36: 12 | IH36: 12 | II36: 12 | IJ36: 12 | IK36: 12 | IL36: 12 | IM36: 12 | IN36: 12 | IO36: 12 | IP36: 12 | IQ36: 12 | IR36: 12 | IS36: 12 | IT36: 12 | IU36: 12 | IV36: 12 | IW36: 12 | IX36: 12 | IY36: 12 | IZ36: 12 | JA36: 12 | JB36: 12 | JC36: 12 | JD36: 12 | JE36: 12 | JF36: 12 | JG36: 12 | JH36: 12 | JI36: 12 | JJ36: 12 | JK36: 12 | JL36: 12 | JM36: 12 | JN36: 12 | JO36: 12 | JP36: 12 | JQ36: 12 | JR36: 12 | JS36: 12 | JT36: 12 | JU36: 12 | JV36: 12 | JW36: 12 | JX36: 12 | JY36: 12 | JZ36: 12 | KA36: 12 | KB36: 12 | KC36: 12 | KD36: 12 | KE36: 12 | KF36: 12 | KG36: 12 | KH36: 12 | KI36: 12 | KJ36: 12 | KK36: 12 | KL36: 12 | KM36: 12 | KN36: 12 | KO36: 12 | KP36: 12 | KQ36: 12 | KR36: 12 | KS36: 12 | KT36: 12 | KU36: 12 | KV36: 12 | KW36: 12 | KX36: 12 | KY36: 12 | KZ36: 12 | LA36: 12 | LB36: 12 | LC36: 12 | LD36: 12 | LE36: 12 | LF36: 12 | LG36: 12 | LH36: 12 | LI36: 12 | LJ36: 12 | LK36: 12 | LL36: 12 | LM36: 12 | LN36: 12 | LO36: 12 | LP36: 12 | LQ36: 12 | LR36: 12 | LS36: 12 | LT36: 12 | LU36: 12 | LV36: 12 | LW36: 12 | LX36: 12 | LY36: 12 | LZ36: 12 | MA36: 12 | MB36: 12 | MC36: 12 | MD36: 12 | ME36: 12 | MF36: 12 | MG36: 12 | MH36: 12 | MI36: 12 | MJ36: 12 | MK36: 12 | ML36: 12 | MM36: 12 | MN36: 12 | MO36: 12 | MP36: 12 | MQ36: 12 | MR36: 12 | MS36: 12 | MT36: 12 | MU36: 12 | MV36: 12 | MW36: 12 | MX36: 12 | MY36: 12 | MZ36: 12 | NA36: 12 | NB36: 12 | NC36: 12 | ND36: 12 | NE36: 12 | NF36: 12 | NG36: 12 | NH36: 12 | NI36: 12 | NJ36: 12 | NK36: 12 | NL36: 12 | NM36: 12 | NN36: 12 | NO36: 12 | NP36: 12 | NQ36: 12 | NR36: 12 | NS36: 12 | NT36: 12 | NU36: 12 | NV36: 12 | NW36: 12 | NX36: 12 | NY36: 12 | NZ36: 12 | OA36: 12 | OB36: 12 | OC36: 12 | OD36: 12 | OE36: 12 | OF36: 12 | OG36: 12 | OH36: 12 | OI36: 12 | OJ36: 12 | OK36: 12 | OL36: 12 | OM36: 12 | ON36: 12 | OO36: 12 | OP36: 12 | OQ36: 12 | OR36: 12 | OS36: 12 | OT36: 12 | OU36: 12 | OV36: 12 | OW36: 12 | OX36: 12 | OY36: 12 | OZ36: 12 | PA36: 12 | PB36: 12 | PC36: 12 | PD36: 12 | PE36: 12 | PF36: 12 | PG36: 12 | PH36: 12 | PI36: 12 | PJ36: 12 | PK36: 12 | PL36: 12 | PM36: 12 | PN36: 12 | PO36: 12 | PP36: 12 | PQ36: 12 | PR36: 12 | PS36: 12 | PT36: 12 | PU36: 12 | PV36: 12 | PW36: 12 | PX36: 12 | PY36: 12 | PZ36: 12 | QA36: 12 | QB36: 12 | QC36: 12 | QD36: 12 | QE36: 12 | QF36: 12 | QG36: 12 | QH36: 12 | QI36: 12 | QJ36: 12 | QK36: 12 | QL36: 12 | QM36: 12 | QN36: 12 | QO36: 12 | QP36: 12 | QQ36: 12 | QR36: 12 | QS36: 12 | QT36: 12 | QU36: 12 | QV36: 12 | QW36: 12 | QX36: 12 | QY36: 12 | QZ36: 12 | RA36: 12 | RB36: 12 | RC36: 12 | RD36: 12 | RE36: 12 | RF36: 12 | RG36: 12 | RH36: 12 | RI36: 12 | RJ36: 12 | RK36: 12 | RL36: 12 | RM36: 12 | RN36: 12 | RO36: 12 | RP36: 12 | RQ36: 12 | RR36: 12 | RS36: 12 | RT36: 12 | RU36: 12 | RV36: 12 | RW36: 12 | RX36: 12 | RY36: 12 | RZ36: 12 | SA36: 12 | SB36: 12 | SC36: 12 | SD36: 12 | SE36: 12 | SF36: 12 | SG36: 12 | SH36: 12 | SI36: 12 | SJ36: 12 | SK36: 12 | SL36: 12 | SM36: 12 | SN36: 12 | SO36: 12 | SP36: 12 | SQ36: 12 | SR36: 12 | SS36: 12 | ST36: 12 | SU36: 12 | SV36: 12 | SW36: 12 | SX36: 12 | SY36: 12 | SZ36: 12 | TA36: 12 | TB36: 12 | TC36: 12 | TD36: 12 | TE36: 12 | TF36: 12 | TG36: 12 | TH36: 12 | TI36: 12 | TJ36: 12 | TK36: 12 | TL36: 12 | TM36: 12 | TN36: 12 | TO36: 12 | TP36: 12 | TQ36: 12 | TR36: 12 | TS36: 12 | TT36: 12 | TU36: 12 | TV36: 12 | TW36: 12 | TX36: 12 | TY36: 12 | TZ36: 12 | UA36: 12 | UB36: 12 | UC36: 12 | UD36: 12 | UE36: 12 | UF36: 12 | UG36: 12 | UH36: 12 | UI36: 12 | UJ36: 12 | UK36: 12 | UL36: 12 | UM36: 12 | UN36: 12 | UO36: 12 | UP36: 12 | UQ36: 12 | UR36: 12 | US36: 12 | UT36: 12 | UU36: 12 | UV36: 12 | UW36: 12 | UX36: 12 | UY36: 12 | UZ36: 12 | VA36: 12 | VB36: 12 | VC36: 12 | VD36: 12 | VE36: 12 | VF36: 12 | VG36: 12 | VH36: 12 | VI36: 12 | VJ36: 12 | VK36: 12 | VL36: 12 | VM36: 12 | VN36: 12 | VO36: 12 | VP36: 12 | VQ36: 12 | VR36: 12 | VS36: 12 | VT36: 12 | VU36: 12 | VV36: 12 | VW36: 12 | VX36: 12 | VY36: 12 | VZ36: 12 | WA36: 12 | WB36: 12 | WC36: 12 | WD36: 12 | WE36: 12 | WF36: 12 | WG36: 12 | WH36: 12 | WI36: 12 | WJ36: 12 | WK36: 12 | WL36: 12 | WM36: 12 | WN36: 12 | WO36: 12 | WP36: 12 | WQ36: 12 | WR36: 12 | WS36: 12 | WT36: 12 | WU36: 12 | WV36: 12 | WW36: 12 | WX36: 12 | WY36: 12 | WZ36: 12 | XA36: 12 | XB36: 12 | XC36: 12 | XD36: 12 | XE36: 12 | XF36: 12 | XG36: 12 | XH36: 12 | XI36: 12 | XJ36: 12 | XK36: 12 | XL36: 12 | XM36: 12 | XN36: 12 | XO36: 12 | XP36: 12 | XQ36: 12 | XR36: 12 | XS36: 12 | XT36: 12 | XU36: 12 | XV36: 12 | XW36: 12 | XX36: 12 | XY36: 12 | XZ36: 12 | YA36: 12 | YB36: 12 | YC36: 12 | YD36: 12 | YE36: 12 | YF36: 12 | YG36: 12 | YH36: 12 | YI36: 12 | YJ36: 12 | YK36: 12 | YL36: 12 | YM36: 12 | YN36: 12 | YO36: 12 | YP36: 12 | YQ36: 12 | YR36: 12 | YS36: 12 | YT36: 12 | YU36: 12 | YV36: 12 | YW36: 12 | YX36: 12 | YY36: 12 | YZ36: 12 | ZA36: 12 | ZB36: 12 | ZC36: 12 | ZD36: 12 | ZE36: 12 | ZF36: 12 | ZG36: 12 | ZH36: 12 | ZI36: 12 | ZJ36: 12 | ZK36: 12 | ZL36: 12 | ZM36: 12 | ZN36: 12 | ZO36: 12 | ZP36: 12 | ZQ36: 12 | ZR36: 12 | ZS36: 12 | ZT36: 12 | ZU36: 12 | ZV36: 12 | ZW36: 12 | ZX36: 12 | ZY36: 12 | ZZ36: 12 | AAA36: 12 | AAB36: 12 | AAC36: 12 | AAD36: 12 | AAE36: 12 | AAF36: 12 | AAG36: 12 | AAH36: 12 | AAI36: 12 | AAJ36: 12 | AAK36: 12 | AAL36: 12 | AAM36: 12 | AAN36: 12 | AAO36: 12 | AAP36: 12 | AAQ36: 12 | AAR36: 12 | AAS36: 12 | AAT36: 12 | AAU36: 12 | AAV36: 12 | AAW36: 12 | AAX36: 12 | AAY36: 12 | AAZ36: 12 | ABA36: 12 | ABB36: 12 | ABC36: 12 | ABD36: 12 | ABE36: 12 | ABF36: 12 | ABG36: 12 | ABH36: 12 | ABI36: 12 | ABJ36: 12 | ABK36: 12 | ABL36: 12 | ABM36: 12 | ABN36: 12 | ABO36: 12 | ABP36: 12 | ABQ36: 12 | ABR36: 12 | ABS36: 12 | ABT36: 12 | ABU36: 12 | ABV36: 12 | ABW36: 12 | ABX36: 12 | ABY36: 12 | ABZ36: 12 | ACA36: 12 | ACB36: 12 | ACC36: 12 | ACD36: 12 | ACE36: 12 | ACF36: 12 | ACG36: 12 | ACH36: 12 | ACI36: 12 | ACJ36: 12 | ACK36: 12 | ACL36: 12 | ACM36: 12 | ACN36: 12 | ACO36: 12 | ACP36: 12 | ACQ36: 12 | ACR36: 12 | ACS36: 12 | ACT36: 12 | ACU36: 12 | ACV36: 12 | ACW36: 12 | ACX36: 12 | ACY36: 12 | ACZ36: 12 | ADA36: 12 | ADB36: 12 | ADC36: 12 | ADD36: 12 | ADE36: 12 | ADF36: 12 | ADG36: 12 | ADH36: 12 | ADI36: 12 | ADJ36: 12 | ADK36: 12 | ADL36: 12 | ADM36: 12 | ADN36: 12 | ADO36: 12 | ADP36: 12 | ADQ36: 12 | ADR36: 12 | ADS36: 12 | ADT36: 12 | ADU36: 12 | ADV36: 12 | ADW36: 12 | ADX36: 12 | ADY36: 12 | ADZ36: 12 | AEA36: 12 | AEB36: 12 | AEC36: 12 | AED36: 12 | AEE36: 12 | AEF36: 12 | AEG36: 12 | AEH36: 12 | AEI36: 12 | AEJ36: 12 | AEK36: 12 | AEL36: 12 | AEM36: 12 | AEN36: 12 | AEO36: 12 | AEP36: 12 | AEQ36: 12 | AER36: 12 | AES36: 12 | AET36: 12 | AEU36: 12 | AEV36: 12 | AEW36: 12 | AEX36: 12 | AEY36: 12 | AEZ36: 12 | AFA36: 12 | AFB36: 12 | AFC36: 12 | AFD36: 12 | AFE36: 12 | AFF36: 12 | AFG36: 12 | AFH36: 12 | AFI36: 12 | AFJ36: 12 | AFK36: 12 | AFL36: 12 | AFM36: 12 | AFN36: 12 | AFO36: 12 | AFP36: 12 | AFQ36: 12 | AFR36: 12 | AFS36: 12 | AFT36: 12 | AFU36: 12 | AFV36: 12 | AFW36: 12 | AFX36: 12 | AFY36: 12 | AFZ36: 12 | AGA36: 12 | AGB36: 12 | AGC36: 12 | AGD36: 12 | AGE36: 12 | AGF36: 12 | AGG36: 12 | AGH36: 12 | AGI36: 12 | AGJ36: 12 | AGK36: 12 | AGL36: 12 | AGM36: 12 | AGN36: 12 | AGO36: 12 | AGP36: 12 | AGQ36: 12 | AGR36: 12 | AGS36: 12 | AGT36: 12 | AGU36: 12 | AGV36: 12 | AGW36: 12 | AGX36: 12 | AGY36: 12 | AGZ36: 12 | AHA36: 12 | AHB36: 12 | AHC36: 12 | AHD36: 12 | AHE36: 12 | AHF36: 12 | AHG36: 12 | AHH36: 12 | AHI36: 12 | AHJ36: 12 | AHK36: 12 | AHL36: 12 | AHM36: 12 | AHN36: 12 | AHO36: 12 | AHP36: 12 | AHQ36: 12 | AHR36: 12 | AHS36: 12 | AHT36: 12 | AHU36: 12 | AHV36: 12 | AHW36: 12 | AHX36: 12 | AHY36: 12 | AHZ36: 12 | AIA36: 12 | AIB36: 12 | AIC36: 12 | AID36: 12 | AIE36: 12 | AIF36: 12 | AIG36: 12 | AIH36: 12 | AII36: 12 | AIJ36: 12 | AIK36: 12 | AIL36: 12 | AIM36: 12 | AIN36: 12 | AIO36: 12 | AIP36: 12 | AIQ36: 12 | AIR36: 12 | AIS36: 12 | AIT36: 12 | AIU36: 12 | AIV36: 12 | AIW36: 12 | AIX36: 12 | AIY36: 12 | AIZ36: 12 | AJA36: 12 | AJB36: 12 | AJC36: 12 | AJD36: 12 | AJE36: 12 | AJF36: 12 | AJG36: 12 | AJH36: 12 | AJI36: 12 | AJJ36: 12 | AJK36: 12 | AJL36: 12 | AJM36: 12 | AJN36: 12 | AJO36: 12 | AJP36: 12 | AJQ36: 12 | AJR36: 12 | AJS36: 12 | AJT36: 12 | AJU36: 12 | AJV36: 12 | AJW36: 12 | AJX36: 12 | AJY36: 12 | AJZ36: 12 | AKA36: 12 | AKB36: 12 | AKC36: 12 | AKD36: 12 | AKE36: 12 | AKF36: 12 | AKG36: 12 | AKH36: 12 | AKI36: 12 | AKJ36: 12 | AKK36: 12 | AKL36: 12 | AKM36: 12 | AKN36: 12 | AKO36: 12 | AKP36: 12 | AKQ36: 12 | AKR36: 12 | AKS36: 12 | AKT36: 12 | AKU36: 12 | AKV36: 12 | AKW36: 12 | AKX36: 12 | AKY36: 12 | AKZ36: 12 | ALA36: 12 | ALB36: 12 | ALC36: 12 | ALD36: 12 | ALE36: 12 | ALF36: 12 | ALG36: 12 | ALH36: 12 | ALI36: 12 | ALJ36: 12 | ALK36: 12 | ALL36: 12 | ALM36: 12 | ALN36: 12 | ALO36: 12 | ALP36: 12 | ALQ36: 12 | ALR36: 12 | ALS36: 12 | ALT36: 12 | ALU36: 12 | ALV36: 12 | ALW36: 12 | ALX36: 12 | ALY36: 12 | ALZ36: 12 | AMA36: 12 | AMB36: 12 | AMC36: 12 | AMD36: 12 | AME36: 12 | AMF36: 12 | AMG36: 12 | AMH36: 12 | AMI36: 12 | AMJ36: 12 | AMK36: 12 | AML36: 12 | AMM36: 12 | AMN36: 12 | AMO36: 12 | AMP36: 12 | AMQ36: 12 | AMR36: 12 | AMS36: 12 | AMT36: 12 | AMU36: 12 | AMV36: 12 | AMW36: 12 | AMX36: 12 | AMY36: 12 | AMZ36: 12 | ANA36: 12 | ANB36: 12 | ANC36: 12 | AND36: 12 | ANE36: 12 | ANF36: 12 | ANG36: 12 | ANH36: 12 | ANI36: 12 | ANJ36: 12 | ANK36: 12 | ANL36: 12 | ANM36: 12 | ANN36: 12 | ANO36: 12 | ANP36: 12 | ANQ36: 12 | ANR36: 12 | ANS36: 12 | ANT36: 12 | ANU36: 12 | ANV36: 12 | ANW36: 12 | ANX36: 12 | ANY36: 12 | ANZ36: 12 | AOA36: 12 | AOB36: 12 | AOC36: 12 | AOD36: 12 | AOE36: 12 | AOF36: 12 | AOG36: 12 | AOH36: 12 | AOI36: 12 | AOJ36: 12 | AOK36: 12 | AOL36: 12 | AOM36: 12 | AON36: 12 | AOO36: 12 | AOP36: 12 | AOQ36: 12 | AOR36: 12 | AOS36: 12 | AOT36: 12 | AOU36: 12 | AOV36: 12 | AOW36: 12 | AOX36: 12 | AOY36: 12 | AOZ36: 12 | APA36: 12 | APB36: 12 | APC36: 12 | APD36: 12 | APE36: 12 | APF36: 12 | APG36: 12 | APH36: 12 | API36: 12 | APJ36: 12 | APK36: 12 | APL36: 12 | APM36: 12 | APN36: 12 | APO36: 12 | APP36: 12 | APQ36: 12 | APR36: 12 | APS36: 12 | APT36: 12 | APU36: 12 | APV36: 12 | APW36: 12 | APX36: 12 | APY36: 12 | APZ36: 12 | AQA36: 12 | AQB36: 12 | AQC36: 12 | AQD36: 12 | AQE36: 12 | AQF36: 12 | AQG36: 12 | AQH36: 12 | AQI36: 12 | AQJ36: 12 | AQK36: 12 | AQL36: 12 | AQM36: 12 | AQN36: 12 | AQO36: 12 | AQP36: 12 | AQQ36: 12 | AQR36: 12 | AQS36: 12 | AQT36: 12 | AQU36: 12 | AQV36: 12 | AQW36: 12 | AQX36: 12 | AQY36: 12 | AQZ36: 12 | ARA36: 12 | ARB36: 12 | ARC36: 12 | ARD36: 12 | ARE36: 12 | ARF36: 12 | ARG36: 12 | ARH36: 12 | ARI36: 12 | ARJ36: 12 | ARK36: 12 | ARL36: 12 | ARM36: 12 | ARN36: 12 | ARO36: 12 | ARP36: 12 | ARQ36: 12 | ARR36: 12 | ARS36: 12 | ART36: 12 | ARU36: 12 | ARV36: 12 | ARW36: 12 | ARX36: 12 | ARY36: 12 | ARZ36: 12 | ASA36: 12 | ASB36: 12 | ASC36: 12 | ASD36: 12 | ASE36: 12 | ASF36: 12 | ASG36: 12 | ASH36: 12 | ASI36: 12 | ASJ36: 12 | ASK36: 12 | ASL36: 12 | ASM36: 12 | ASN36: 12 | ASO36: 12 | ASP36: 12 | ASQ36: 12 | ASR36: 12 | ASS36: 12 | AST36: 12 | ASU36: 12 | ASV36: 12 | ASW36: 12 | ASX36: 12 | ASY36: 12 | ASZ36: 12 | ATA36: 12 | ATB36: 12 | ATC36: 12 | ATD36: 12 | ATE36: 12 | ATF36: 12 | ATG36: 12 | ATH36: 12 | ATI36: 12 | ATJ36: 12 | ATK36: 12 | ATL36: 12 | ATM36: 12 | ATN36: 12 | ATO36: 12 | ATP36: 12 | ATQ36: 12 | ATR36: 12 | ATS36: 12 | ATT36: 12 | ATU36: 12 | ATV36: 12 | ATW36: 12 | ATX36: 12 | ATY36: 12 | ATZ36: 12 | AUA36: 12 | AUB36: 12 | AUC36: 12 | AUD36: 12 | AUE36: 12 | AUF36: 12 | AUG36: 12 | AUH36: 12 | AUI36: 12 | AUJ36: 12 | AUK36: 12 | AUL36: 12 | AUM36: 12 | AUN36: 12 | AUO36: 12 | AUP36: 12 | AUQ36: 12 | AUR36: 12 | AUS36: 12 | AUT36: 12 | AUU36: 12 | AUV36: 12 | AUW36: 12 | AUX36: 12 | AUY36: 12 | AUZ36: 12 | AVA36: 12 | AVB36: 12 | AVC36: 12 | AVD36: 12 | AVE36: 12 | AVF36: 12 | AVG36: 12 | AVH36: 12 | AVI36: 12 | AVJ36: 12 | AVK36: 12 | AVL36: 12 | AVM36: 12 | AVN36: 12 | AVO36: 12 | AVP36: 12 | AVQ36: 12 | AVR36: 12 | AVS36: 12 | AVT36: 12 | AVU36: 12 | AVV36: 12 | AVW36: 12 | AVX36: 12 | AVY36: 12 | AVZ36: 12 | AWA36: 12 | AWB36: 12 | AWC36: 12 | AWD36: 12 | AWE36: 12 | AWF36: 12 | AWG36: 12 | AWH36: 12 | AWI36: 12 | AWJ36: 12 | AWK36: 12 | AWL36: 12 | AWM36: 12 | AWN36: 12 | AWO36: 12 | AWP36: 12 | AWQ36: 12 | AWR36: 12 | AWS36: 12 | AWT36: 12 | AWU36: 12 | AWV36: 12 | AWW36: 12 | AWX36: 12 | AWY36: 12 | AWZ36: 12 | AXA36: 12 | AXB36: 12 | AXC36: 12 | AXD36: 12 | AXE36: 12 | AXF36: 12 | AXG36: 12 | AXH36: 12 | AXI36: 12 | AXJ36: 12 | AXK36: 12 | AXL36: 12 | AXM36: 12 | AXN36: 12 | AXO36: 12 | AXP36: 12 | AXQ36: 12 | AXR36: 12 | AXS36: 12 | AXT36: 12 | AXU36: 12 | AXV36: 12 | AXW36: 12 | AXX36: 12 | AXY36: 12 | AXZ36: 12 | AYA36: 12 | AYB36: 12 | AYC36: 12 | AYD36: 12 | AYE36: 12 | AYF36: 12 | AYG36: 12 | AYH36: 12 | AYI36: 12 | AYJ36: 12 | AYK36: 12 | AYL36: 12 | AYM36: 12 | AYN36: 12 | AYO36: 12 | AYP36: 12 | AYQ36: 12 | AYR36: 12 | AYS36: 12 | AYT36: 12 | AYU36: 12 | AYV36: 12 | AYW36: 12 | AYX36: 12 | AYY36: 12 | AYZ36: 12 | AZA36: 12 | AZB36: 12 | AZC36: 12 | AZD36: 12 | AZE36: 12 | AZF36: 12 | AZG36: 12 | AZH36: 12 | AZI36: 12 | AZJ36: 12 | AZK36: 12 | AZL36: 12 | AZM36: 12 | AZN36: 12 | AZO36: 12 | AZP36: 12 | AZQ36: 12 | AZR36: 12 | AZS36: 12 | AZT36: 12 | AZU36: 12 | AZV36: 12 | AZW36: 12 | AZX36: 12 | AZY36: 12 | AZZ36: 12 | BAA36: 12 | BAB36: 12 | BAC36: 12 | BAD36: 12 | BAE36: 12 | BAF36: 12 | BAG36: 12 | BAH36: 12 | BAI36: 12 | BAJ36: 12 | BAK36: 12 | BAL36: 12 | BAM36: 12 | BAN36: 12 | BAO36: 12 | BAP36: 12 | BAQ36: 12 | BAR36: 12 | BAS36: 12 | BAT36: 12 | BAU36: 12 | BAV36: 12 | BAW36: 12 | BAX36: 12 | BAY36: 12 | BAZ36: 12 | BBA36: 12 | BBB36: 12 | BBC36: 12 | BBD36: 12 | BBE36: 12 | BBF36: 12 | BBG36: 12 | BBH36: 12 | BBI36: 12 | BBJ36: 12 | BBK36: 12 | BBL36: 12 | BBM36: 12 | BBN36: 12 | BBO36: 12 | BBP36: 12 | BBQ36: 12 | BBR36: 12 | BBS36: 12 | BBT36: 12 | BBU36: 12 | BBV36: 12 | BBW36: 12 | BBX36: 12 | BBY36: 12 | BBZ36: 12 | BCA36: 12 | BCB36: 12 | BCC36: 12 | BCD36: 12 | BCE36: 12 | BCF36: 12 | BCG36: 12 | BCH36: 12 | BCI36: 12 | BCJ36: 12 | BCK36: 12 | BCL36: 12 | BCM36: 12 | BCN36: 12 | BCO36: 12 | BCP36: 12 | BCQ36: 12 | BCR36: 12 | BCS36: 12 | BCT36: 12 | BCU36: 12 | BCV36: 12 | BCW36: 12 | BCX36: 12 | BCY36: 12 | BCZ36: 12 | BDA36: 12 | BDB36: 12 | BDC36: 12 | BDD36: 12 | BDE36: 12 | BDF36: 12 | BDG36: 12 | BDH36: 12 | BDI36: 12 | BDJ36: 12 | BDK36: 12 | BDL36: 12 | BDM36: 12 | BDN36: 12 | BDO36: 12 | BDP36: 12 | BDQ36: 12 | BDR36: 12 | BDS36: 12 | BDT36: 12 | BDU36: 12 | BDV36: 12 | BDW36: 12 | BDX36: 12 | BDY36: 12 | BDZ36: 12 | BEA36: 12 | BEB36: 12 | BEC36: 12 | BED36: 12 | BEE36: 12 | BEF36: 12 | BEG36: 12 | BEH36: 12 | BEI36: 12 | BEJ36: 12 | BEK36: 12 | BEL36: 12 | BEM36: 12 | BEN36: 12 | BEO36: 12 | BEP36: 12 | BEQ36: 12 | BER36: 12 | BES36: 12 | BET36: 12 | BEU36: 12 | BEV36: 12 | BEW36: 12 | BEX36: 12 | BEY36: 12 | BEZ36: 12 | BFA36: 12 | BFB36: 12 | BFC36: 12 | BFD36: 12 | BFE36: 12 | BFF36: 12 | BFG36: 12 | BFH36: 12 | BFI36: 12 | BFJ36: 12 | BFK36: 12 | BFL36: 12 | BFM36: 12 | BFN36: 12 | BFO36: 12 | BFP36: 12 | BFQ36: 12 | BFR36: 12 | BFS36: 12 | BFT36: 12 | BFU36: 12 | BFV36: 12 | BFW36: 12 | BFX36: 12 | BFY36: 12 | BFZ36: 12 | BGA36: 12 | BGB36: 12 | BGC36: 12 | BGD36: 12 | BGE36: 12 | BGF36: 12 | BGG36: 12 | BGH36: 12 | BGI36: 12 | BGJ36: 12 | BGK36: 12 | BGL36: 12 | BGM36: 12 | BGN36: 12 | BGO36: 12 | BGP36: 12 | BGQ36: 12 | BGR36: 12 | BGS36: 12 | BGT36: 12 | BGU36: 12 | BGV36: 12 | BGW36: 12 | BGX36: 12 | BGY36: 12 | BGZ36: 12 | BHA36: 12 | BHB36: 12 | BHC36: 12 | BHD36: 12 | BHE36: 12 | BHF36: 12 | BHG36: 12 | BHH36: 12 | BHI36: 12 | BHJ36: 12 | BHK36: 12 | BHL36: 12 | BHM36: 12 | BHN36: 12 | BHO36: 12 | BHP36: 12 | BHQ36: 12 | BHR36: 12 | BHS36: 12 | BHT36: 12 | BHU36: 12 | BHV36: 12 | BHW36: 12 | BHX36: 12 | BHY36: 12 | BHZ36: 12 | BIA36: 12 | BIB36: 12 | BIC36: 12 | BID36: 12 | BIE36: 12 | BIF36: 12 | BIG36: 12 | BIH36: 12 | BII36: 12 | BIJ36: 12 | BIK36: 12 | BIL36: 12 | BIM36: 12 | BIN36: 12 | BIO36: 12 | BIP36: 12 | BIQ36: 12 | BIR36: 12 | BIS36: 12 | BIT36: 12 | BIU36: 12 | BIV36: 12 | BIW36: 12 | BIX36: 12 | BIY36: 12 | BIZ36: 12 | BJA36: 12 | BJB36: 12 | BJC36: 12 | BJD36: 12 | BJE36: 12 | BJF36: 12 | BJG36: 12 | BJH36: 12 | BJI36: 12 | BJJ36: 12 | BJK36: 12 | BJL36: 12 | BJM36: 12 | BJN36: 12 | BJO36: 12 | BJP36: 12 | BJQ36: 12 | BJR36: 12 | BJS36: 12 | BJT36: 12 | BJU36: 12 | BJV36: 12 | BJW36: 12 | BJX36: 12 | BJY36: 12 | BJZ36: 12 | BKA36: 12 | BKB36: 12 | BKC36: 12 | BKD36: 12 | BKE36: 12 | BKF36: 12 | BKG36: 12 | BKH36: 12 | BKI36: 12 | BKJ36: 12 | BKK36: 12 | BKL36: 12 | BKM36: 12 | BKN36: 12 | BKO36: 12 | BKP36: 12 | BKQ36: 12 | BKR36: 12 | BKS36: 12 | BKT36: 12 | BKU36: 12 | BKV36: 12 | BKW36: 12 | BKX36: 12 | BKY36: 12 | BKZ36: 12 | BLA36: 12 | BLB36: 12 | BLC36: 12 | BLD36: 12 | BLE36: 12 | BLF36: 12 | BLG36: 12 | BLH36: 12 | BLI36: 12 | BLJ36: 12 | BLK36: 12 | BLL36: 12 | BLM36: 12 | BLN36: 12 | BLO36: 12 | BLP36: 12 | BLQ36: 12 | BLR36: 12 | BLS36: 12 | BLT36: 12 | BLU36: 12 | BLV36: 12 | BLW36: 12 | BLX36: 12 | BLY36: 12 | BLZ36: 12 | BMA36: 12 | BMB36: 12 | BMC36: 12 | BMD36: 12 | BME36: 12 | BMF36: 12 | BMG36: 12 | BMH36: 12 | BMI36: 12 | BMJ36: 12 | BMK36: 12 | BML36: 12 | BMM36: 12 | BMN36: 12 | BMO36: 12 | BMP36: 12 | BMQ36: 12 | BMR36: 12 | BMS36: 12 | BMT36: 12 | BMU36: 12 | BMV36: 12 | BMW36: 12 | BMX36: 12 | BMY36: 12 | BMZ36: 12 | BNA36: 12 | BNB36: 12 | BNC36: 12 | BND36: 12 | BNE36: 12 | BNF36: 12 | BNG36: 12 | BNH36: 12 | BNI36: 12 | BNJ36: 12 | BNK36: 12 | BNL36: 12 | BNM36: 12 | BNN36: 12 | BNO36: 12 | BNP36: 12 | BNQ36: 12 | BNR36: 12 | BNS36: 12 | BNT36: 12 | BNU36: 12 | BNV36: 12 | BNW36: 12 | BNX36: 12 | BNY36: 12 | BNZ36: 12 | BOA36: 12 | BOB36: 12 | BOC36: 12 | BOD36: 12 | BOE36: 12 | BOF36: 12 | BOG36: 12 | BOH36: 12 | BOI36: 12 | BOJ36: 12 | BOK36: 12 | BOL36: 12 | BOM36: 12 | BON36: 12 | BOO36: 12 | BOP36: 12 | BOQ36: 12 | BOR36: 12 | BOS36: 12 | BOT36: 12 | BOU36: 12 | BOV36: 12 | BOW36: 12 | BOX36: 12 | BOY36: 12 | BOZ36: 12 | BPA36: 12 | BPB36: 12 | BPC36: 12 | BPD36: 12 | BPE36: 12 | BPF36: 12 | BPG36: 12 | BPH36: 12 | BPI36: 12 | BPJ36: 12 | BPK36: 12 | BPL36: 12 | BPM36: 12 | BPN36: 12 | BPO36: 12 | BPP36: 12 | BPQ36: 12 | BPR36: 12 | BPS36: 12 | BPT36: 12 | BPU36: 12 | BPV36: 12 | BPW36: 12 | BPX36: 12 | BPY36: 12 | BPZ36: 12 | BQA36: 12 | BQB36: 12 | BQC36: 12 | BQD36: 12 | BQE36: 12 | BQF36: 12 | BQG36: 12 | BQH36: 12 | BQI36: 12 | BQJ36: 12 | BQK36: 12 | BQL36: 12 | BQM36: 12 | BQN36: 12 | BQO36: 12 | BQP36: 12 | BQQ36: 12 | BQR36: 12 | BQS36: 12 | BQT36: 12 | BQU36: 12 | BQV36: 12 | BQW36: 12 | BQX36: 12 | BQY36: 12 | BQZ36: 12 | BRA36: 12 | BRB36: 12 | BRC36: 12 | BRD36: 12 | BRE36: 12 | BRF36: 12 | BRG36: 12 | BRH36: 12 | BRI36: 12 | BRJ36: 12 | BRK36: 12 | BRL36: 12 | BRM36: 12 | BRN36: 12 | BRO36: 12 | BRP36: 12 | BRQ36: 12 | BRR36: 12 | BRS36: 12 | BRT36: 12 | BRU36: 12 | BRV36: 12 | BRW36: 12 | BRX36: 12 | BRY36: 12 | BRZ36: 12 | BSA36: 12 | BSB36: 12 | BSC36: 12 | BSD36: 12 | BSE36: 12 | BSF36: 12 | BSG36: 12 | BSH36: 12 | BSI36: 12 | BSJ36: 12 | BSK36: 12 | BSL36: 12 | BSM36: 12 | BSN36: 12 | BSO36: 12 | BSP36: 12 | BSQ36: 12 | BSR36: 12 | BSS36: 12 | BST36: 12 | BSU36: 12 | BSV36: 12 | BSW36: 12 | BSX36: 12 | BSY36: 12 | BSZ36: 12 | BTA36: 12 | BTB36: 12 | BTC36: 12 | BTD36: 12 | BTE36: 12 | BTF36: 12 | BTG36: 12 | BTH36: 12 | BTI36: 12 | BTJ36: 12 | BTK36: 12 | BTL36: 12 | BTM36: 12 | BTN36: 12 | BTO36: 12 | BTP36: 12 | BTQ36: 12 | BTR36: 12 | BTS36: 12 | BTT36: 12 | BTU36: 12 | BTV36: 12 | BTW36: 12 | BTX36: 12 | BTY36: 12 | BTZ36: 12 | BUA36: 12 | BUB36: 12 | BUC36: 12 | BUD36: 12 | BUE36: 12 | BUF36: 12 | BUG36: 12 | BUH36: 12 | BUI36: 12 | BUJ36: 12 | BUK36: 12 | BUL36: 12 | BUM36: 12 | BUN36: 12 | BUO36: 12 | BUP36: 12 | BUQ36: 12 | BUR36: 12 | BUS36: 12 | BUT36: 12 | BUU36: 12 | BUV36: 12 | BUW36: 12 | BUX36: 12 | BUY36: 12 | BUZ36: 12 | BVA36: 12 | BVB36: 12 | BVC36: 12 | BVD36: 12 | BVE36: 12 | BVF36: 12 | BVG36: 12 | BVH36: 12 | BVI36: 12 | BVJ36: 12 | BVK36: 12 | BVL36: 12 | BVM36: 12 | BVN36: 12 | BVO36: 12 | BVP36: 12 | BVQ36: 12 | BVR36: 12 | BVS36: 12 | BVT36: 12 | BVU36: 12 | BVV36: 12 | BVW36: 12 | BVX36: 12 | BVY36: 12 | BVZ36: 12 | BWA36: 12 | BWB36: 12 | BWC36: 12 | BWD36: 12 | BWE36: 12 | BWF36: 12 | BWG36: 12 | BWH36: 12 | BWI36: 12 | BWJ36: 12 | BWK36: 12 | BWL36: 12 | BWM36: 12 | BWN36: 12 | BWO36: 12 | BWP36: 12 | BWQ36: 12 | BWR36: 12 | BWS36: 12 | BWT36: 12 | BWU36: 12 | BWV36: 12 | BWW36: 12 | BWX36: 12 | BWY36: 12 | BWZ36: 12 | BXA36: 12 | BXB36: 12 | BXC36: 12 | BXD36: 12 | BXE36: 12 | BXF36: 12 | BXG36: 12 | BXH36: 12 | BXI36: 12 | BXJ36: 12 | BXK36: 12 | BXL36: 12 | BXM36: 12 | BXN36: 12 | BXO36: 12 | BXP36: 12 | BXQ36: 12 | BXR36: 12 | BXS36: 12 | BXT36: 12 | BXU36: 12 | BXV36: 12 | BXW36: 12 | BXX36: 12 | BXY36: 12 | BXZ36: 12 | BYA36: 12 | BYB36: 12 | BYC36: 12 | BYD36: 12 | BYE36: 12 | BYF36: 12 | BYG36: 12 | BYH36: 12 | BYI36: 12 | BYJ36: 12 | BYK36: 12 | BYL36: 12 | BYM36: 12 | BYN36: 12 | BYO36: 12 | BYP36: 12 | BYQ36: 12 | BYR36: 12 | BYS36: 12 | BYT36: 12 | BYU36: 12 | BYV36: 12 | BYW36: 12 | BYX36: 12 | BYY36: 12 | BYZ36: 12 | BZA36: 12 | BZB36: 12 | BZC36: 12 | BZD36: 12 | BZE36: 12 | BZF36: 12 | BZG36: 12 | BZH36: 12 | BZI36: 12 | BZJ36: 12 | BZK36: 12 | BZL36: 12 | BZM36: 12 | BZN36: 12 | BZO36: 12 | BZP36: 12 | BZQ36: 12 | BZR36: 12 | BZS36: 12 | BZT36: 12 | BZU36: 12 | BZV36: 12 | BZW36: 12 | BZX36: 12 | BZY36: 12 | BZZ36: 12 | CAA36: 12 | CAB36: 12 | CAC36: 12 | CAD36: 12 | CAE36: 12 | CAF36: 12 | CAG36: 12 | CAH36: 12 | CAI36: 12 | CAJ36: 12 | CAK36: 12 | CAL36: 12 | CAM36: 12 | CAN36: 12 | CAO36: 12 | CAP36: 12 | CAQ36: 12 | CAR36: 12 | CAS36: 12 | CAT36: 12 | CAU36: 12 | CAV36: 12 | CAW36: 12 | CAX36: 12 | CAY36: 12 | CAZ36: 12 | CBA36: 12 | CBB36: 12 | CBC36: 12 | CBD36: 12 | CBE36: 12 | CBF36: 12 | CBG36: 12 | CBH36: 12 | CBI36: 12 | CBJ36: 12 | CBK36: 12 | CBL36: 12 | CBM36: 12 | CBN36: 12 | CBO36: 12 | CBP36: 12 | CBQ36: 12 | CBR36: 12 | CBS36: 12 | CBT36: 12 | CBU36: 12 | CBV36: 12 | CBW36: 12 | CBX36: 12 | CBY36: 12 | CBZ36: 12 | CCA36: 12 | CCB36: 12 | CCC36: 12 | CCD36: 12 | CCE36: 12 | CCF36: 12 | CCG36: 12 | CCH36: 12 | CCI36: 12 | CCJ36: 12 | CCK36: 12 | CCL36: 12 | CCM36: 12 | CCN36: 12 | CCO36: 12 | CCP36: 12 | CCQ36: 12 | CCR36: 12 | CCS36: 12 | CCT36: 12 | CCU36: 12 | CCV36: 12 | CCW36: 12 | CCX36: 12 | CCY36: 12 | CCZ36: 12 | CDA36: 12 | CDB36: 12 | CDC36: 12 | CDD36: 12 | CDE36: 12 | CDF36: 12 | CDG36: 12 | CDH36: 12 | CDI36: 12 | CDJ36: 12 | CDK36: 12 | CDL36: 12 | CDM36: 12 | CDN36: 12 | CDO36: 12 | CDP36: 12 | CDQ36: 12 | CDR36: 12 | CDS36: 12 | CDT36: 12 | CDU36: 12 | CDV36: 12 | CDW36: 12 | CDX36: 12 | CDY36: 12 | CDZ36: 12 | CEA36: 12 | CEB36: 12 | CEC36: 12 | CED36: 12 | CEE36: 12 | CEF36: 12 | CEG36: 12 | CEH36: 12 | CEI36: 12 | CEJ36: 12 | CEK36: 12 | CEL36: 12 | CEM36: 12 | CEN36: 12 | CEO36: 12 | CEP36: 12 | CEQ36: 12 | CER36: 12 | CES36: 12 | CET36: 12 | CEU36: 12 | CEV36: 12 | CEW36: 12 | CEX36: 12 | CEY36: 12 | CEZ36: 12 | CFA36: 12 | CFB36: 12 | CFC36: 12 | CFD36: 12 | CFE36: 12 | CFF36: 12 | CFG36: 12 | CFH36: 12 | CFI36: 12 | CFJ36: 12 | CFK36: 12 | CFL36: 12 | CFM36: 12 | CFN36: 12 | CFO36: 12 | CFP36: 12 | CFQ36: 12 | CFR36: 12 | CFS36: 12 | CFT36: 12 | CFU36: 12 | CFV36: 12 | CFW36: 12 | CFX36: 12 | CFY36: 12 | CFZ36: 12 | CGA36: 12 | CGB36: 12 | CGC36: 12 | CGD36: 12 | CGE36: 12 | CGF36: 12 | CGG36: 12 | CGH36: 12 | CGI36: 12 | CGJ36: 12 | CGK36: 12 | CGL36: 12 | CGM36: 12 | CGN36: 12 | CGO36: 12 | CGP36: 12 | CGQ36: 12 | CGR36: 12 | CGS36: 12 | CGT36: 12 | CGU36: 12 | CGV36: 12 | CGW36: 12 | CGX36: 12 | CGY36: 12 | CGZ36: 12 | CHA36: 12 | CHB36: 12 | CHC36: 12 | CHD36: 12 | CHE36: 12 | CHF36: 12 | CHG36: 12 | CHH36: 12 | CHI36: 12 | CHJ36: 12 | CHK36: 12 | CHL36: 12 | CHM36: 12 | CHN36: 12 | CHO36: 12 | CHP36: 12 | CHQ36: 12 | CHR36: 12 | CHS36: 12 | CHT36: 12 | CHU36: 12 | CHV36: 12 | CHW36: 12 | CHX36: 12 | CHY36: 12 | CHZ36: 12 | CIA36: 12 | CIB36: 12 | CIC36: 12 | CID36: 12 | CIE36: 12 | CIF36: 12 | CIG36: 12 | CIH36: 12 | CII36: 12 | CIJ36: 12 | CIK36: 12 | CIL36: 12 | CIM36: 12 | CIN36: 12 | CIO36: 12 | CIP36: 12 | CIQ36: 12 | CIR36: 12 | CIS36: 12 | CIT36: 12 | CIU36: 12 | CIV36: 12 | CIW36: 12 | CIX36: 12 | CIY36: 12 | CIZ36: 12 | CJA36: 12 | CJB36: 12 | CJC36: 12 | CJD36: 12 | CJE36: 12 | CJF36: 12 | CJG36: 12 | CJH36: 12 | CJI36: 12 | CJJ36: 12 | CJK36: 12 | CJL36: 12 | CJM36: 12 | CJN36: 12 | CJO36: 12 | CJP36: 12 | CJQ36: 12 | CJR36: 12 | CJS36: 12 | CJT36: 12 | CJU36: 12 | CJV36: 12 | CJW36: 12 | CJX36: 12 | CJY36: 12 | CJZ36: 12 | CKA36: 12 | CKB36: 12 | CKC36: 12 | CKD36: 12 | CKE36: 12 | CKF36: 12 | CKG36: 12 | CKH36: 12 | CKI36: 12 | CKJ36: 12 | CKK36: 12 | CKL36: 12 | CKM36: 12 | CKN36: 12 | CKO36: 12 | CKP36: 12 | CKQ36: 12 | CKR36: 12 | CKS36: 12 | CKT36: 12 | CKU36: 12 | CKV36: 12 | CKW36: 12 | CKX36: 12 | CKY36: 12 | CKZ36: 12 | CLA36: 12 | CLB36: 12 | CLC36: 12 | CLD36: 12 | CLE36: 12 | CLF36: 12 | CLG36: 12 | CLH36: 12 | CLI36: 12 | CLJ36: 12 | CLK36: 12 | CLL36: 12 | CLM36: 12 | CLN36: 12 | CLO36: 12 | CLP36: 12 | CLQ36: 12 | CLR36: 12 | CLS36: 12 | CLT36: 12 | CLU36: 12 | CLV36: 12 | CLW36: 12 | CLX36: 12 | CLY36: 12 | CLZ36: 12 | CMA36: 12 | CMB36: 12 | CMC36: 12 | CMD36: 12 | CME36: 12 | CMF36: 12 | CMG36: 12 | CMH36: 12 | CMI36: 12 | CMJ36: 12 | CMK36: 12 | CML36: 12 | CMM36: 12 | CMN36: 12 | CMO36: 12 | CMP36: 12 | CMQ36: 12 | CMR36: 12 | CMS36: 12 | CMT36: 12 | CMU36: 12 | CMV36: 12 | CMW36: 12 | CMX36: 12 | CMY36: 12 | CMZ36: 12 | CNA36: 12 | CNB36: 12 | CNC36: 12 | CND36: 12 | CNE36: 12 | CNF36: 12 | CNG36: 12 | CNH36: 12 | CNI36: 12 | CNJ36: 12 | CNK36: 12 | CNL36: 12 | CNM36: 12 | CNN36: 12 | CNO36: 12 | CNP36: 12 | CNQ36: 12 | CNR36: 12 | CNS36: 12 | CNT36: 12 | CNU36: 12 | CNV36: 12 | CNW36: 12 | CNX36: 12 | CNY36: 12 | CNZ36: 12 | COA36: 12 | COB36: 12 | COC36: 12 | COD36: 12 | COE36: 12 | COF36: 12 | COG36: 12 | COH36: 12 | COI36: 12 | COJ36: 12 | COK36: 12 | COL36: 12 | COM36: 12 | CON36: 12 | COO36: 12 | COP36: 12 | COQ36: 12 | COR36: 12 | COS36: 12 | COT36: 12 | COU36: 12 | COV36: 12 | COW36: 12 | COX36: 12 | COY36: 12 | COZ36: 12 | CPA36: 12 | CPB36: 12 | CPC36: 12 | CPD36: 12 | CPE36: 12 | CPF36: 12 | CPG36: 12 | CPH36: 12 | CPI36: 12 | CPJ36: 12 | CPK36: 12 | CPL36: 12 | CPM36: 12 | CPN36: 12 | CPO36: 12 | CPP36: 12 | CPQ36: 12 | CPR36: 12 | CPS36: 12 | CPT36: 12 | CPU36: 12 | CPV36: 12 | CPW36: 12 | CPX36: 12 | CPY36: 12 | CPZ36: 12 | CQA36: 12 | CQB36: 12 | CQC36: 12 | CQD36: 12 | CQE36: 12 | CQF36: 12 | CQG36: 12 | CQH36: 12 | CQI36: 12 | CQJ36: 12 | CQK36: 12 | CQL36: 12 | CQM36: 12 | CQN36: 12 | CQO36: 12 | CQP36: 12 | CQQ36: 12 | CQR36: 12 | CQS36: 12 | CQT36: 12 | CQU36: 12 | CQV36: 12 | CQW36: 12 | CQX36: 12 | CQY36: 12 | CQZ36: 12 | CRA36: 12 | CRB36: 12 | CRC36: 12 | CRD36: 12 | CRE36: 12 | CRF36: 12 | CRG36: 12 | CRH36: 12 | CRI36: 12 | CRJ36: 12 | CRK36: 12 | CRL36: 12 | CRM36: 12 | CRN36: 12 | CRO36: 12 | CRP36: 12 | CRQ36: 12 | CRR36: 12 | CRS36: 12 | CRT36: 12 | CRU36: 12 | CRV36: 12 | CRW36: 12 | CRX36: 12 | CRY36: 12 | CRZ36: 12 | CSA36: 12 | CSB36: 12 | CSC36: 12 | CSD36: 12 | CSE36: 12 | CSF36: 12 | CSG36: 12 | CSH36: 12 | CSI36: 12 | CSJ36: 12 | CSK36: 12 | CSL36: 12 | CSM36: 12 | CSN36: 12 | CSO36: 12 | CSP36: 12 | CSQ36: 12 | CSR36: 12 | CSS36: 12 | CST36: 12 | CSU36: 12 | CSV36: 12 | CSW36: 12 | CSX36: 12 | CSY36: 12 | CSZ36: 12 | CTA36: 12 | CTB36: 12 | CTC36: 12 | CTD36: 12 | CTE36: 12 | CTF36: 12 | CTG36: 12 | CTH36: 12 | CTI36: 12 | CTJ36: 12 | CTK36: 12 | CTL36: 12 | CTM36: 12 | CTN36: 12 | CTO36: 12 | CTP36: 12 | CTQ36: 12 | CTR36: 12 | CTS36: 12 | CTT36: 12 | CTU36: 12 | CTV36: 12 | CTW36: 12 | CTX36: 12 | CTY36: 12 | CTZ36: 12 | CUA36: 12 | CUB36: 12 | CUC36: 12 | CUD36: 12 | CUE36: 12 | CUF36: 12 | CUG36: 12 | CUH36: 12 | CUI36: 12 | CUJ36: 12 | CUK36: 12 | CUL36: 12 | CUM36: 12 | CUN36: 12 | CUO36: 12 | CUP36: 12 | CUQ36: 12 | CUR36: 12 | CUS36: 12 | CUT36: 12 | CUU36: 12 | CUV36: 12 | CUW36: 12 | CUX36: 12 | CUY36: 12 | CUZ36: 12 | CVA36: 12 | CVB36: 12 | CVC36: 12 | CVD36: 12 | CVE36: 12 | CVF36: 12 | CVG36: 12 | CVH36: 12 | CVI36: 12 | CVJ36: 12 | CVK36: 12 | CVL36: 12 | CVM36: 12 | CVN36: 12 | CVO36: 12 | CVP36: 12 | CVQ36: 12 | CVR36: 12 | CVS36: 12 | CVT36: 12 | CVU36: 12 | CVV36: 12 | CVW36: 12 | CVX36: 12 | CVY36: 12 | CVZ36: 12 | CWA36: 12 | CWB36: 12 | CWC36: 12 | CWD36: 12 | CWE36: 12 | CWF36: 12 | CWG36: 12 | CWH36: 12 | CWI36: 12 | CWJ36: 12 | CWK36: 12 | CWL36: 12 | CWM36: 12 | CWN36: 12 | CWO36: 12 | CWP36: 12 | CWQ36: 12 | CWR36: 12 | CWS36: 12 | CWT36: 12 | CWU36: 12 | CWV36: 12 | CWW36: 12 | CWX36: 12 | CWY36: 12 | CWZ36: 12 | CXA36: 12 | CXB36: 12 | CXC36: 12 | CXD36: 12 | CXE36: 12 | CXF36: 12 | CXG36: 12 | CXH36: 12 | CXI36: 12 | CXJ36: 12 | CXK36: 12 | CXL36: 12 | CXM36: 12 | CXN36: 12 | CXO36: 12 | CXP36: 12 | CXQ36: 12 | CXR36: 12 | CXS36: 12 | CXT36: 12 | CXU36: 12 | CXV36: 12 | CXW36: 12 | CXX36: 12 | CXY36: 12 | CXZ36: 12 | CYA36: 12 | CYB36: 12 | CYC36: 12 | CYD36: 12 | CYE36: 12 | CYF36: 12 | CYG36: 12 | CYH36: 12 | CYI36: 12 | CYJ36: 12 | CYK36: 12 | CYL36: 12 | CYM36: 12 | CYN36: 12 | CYO36: 12 | CYP36: 12 | CYQ36: 12 | CYR36: 12 | CYS36: 12 | CYT36: 12 | CYU36: 12 | CYV36: 12 | CYW36: 12 | CYX36: 12 | CYY36: 12 | CYZ36: 12 | CZA36: 12 | CZB36: 12 | CZC36: 12 | CZD36: 12 | CZE36: 12 | CZF36: 12 | CZG36: 12 | CZH36: 12 | CZI36: 12 | CZJ36: 12 | CZK36: 12 | CZL36: 12 | CZM36: 12 | CZN36: 12 | CZO36: 12 | CZP36: 12 | CZQ36: 12 | CZR36: 12 | CZS36: 12 | CZT36: 12 | CZU36: 12 | CZV36: 12 | CZW36: 12 | CZX36: 12 | CZY36: 12 | CZZ36: 12 | DAA36: 12 | DAB36: 12 | DAC36: 12 | DAD36: 12 | DAE36: 12 | DAF36: 12 | DAG36: 12 | DAH36: 12 | DAI36: 12 | DAJ36: 12 | DAK36: 12 | DAL36: 12 | DAM36: 12 | DAN36: 12 | DAO36: 12 | DAP36: 12 | DAQ36: 12 | DAR36: 12 | DAS36: 12 | DAT36: 12 | DAU36: 12 | DAV36: 12 | DAW36: 12 | DAX36: 12 | DAY36: 12 | DAZ36: 12 | DBA36: 12 | DBB36: 12 | DBC36: 12 | DBD36: 12 | DBE36: 12 | DBF36: 12 | DBG36: 12 | DBH36: 12 | DBI36: 12 | DBJ36: 12 | DBK36: 12 | DBL36: 12 | DBM36: 12 | DBN36: 12 | DBO36: 12 | DBP36: 12 | DBQ36: 12 | DBR36: 12 | DBS36: 12 | DBT36: 12 | DBU36: 12 | DBV36: 12 | DBW36: 12 | DBX36: 12 | DBY36: 12 | DBZ36: 12 | DCA36: 12 | DCB36: 12 | DCC36: 12 | DCD36: 12 | DCE36: 12 | DCF36: 12 | DCG36: 12 | DCH36: 12 | DCI36: 12 | DCJ36: 12 | DCK36: 12 | DCL36: 12 | DCM36: 12 | DCN36: 12 | DCO36: 12 | DCP36: 12 | DCQ36: 12 | DCR36: 12 | DCS36: 12 | DCT36: 12 | DCU36: 12 | DCV36: 12 | DCW36: 12 | DCX36: 12 | DCY36: 12 | DCZ36: 12 | DDA36: 12 | DDB36: 12 | DDC36: 12 | DDD36: 12 | DDE36: 12 | DDF36: 12 | DDG36: 12 | DDH36: 12 | DDI36: 12 | DDJ36: 12 | DDK36: 12 | DDL36: 12 | DDM36: 12 | DDN36: 12 | DDO36: 12 | DDP36: 12 | DDQ36: 12 | DDR36: 12 | DDS36: 12 | DDT36: 12 | DDU36: 12 | DDV36: 12 | DDW36: 12 | DDX36: 12 | DDY36: 12 | DDZ36: 12 | DEA36: 12 | DEB36: 12 | DEC36: 12 | DED36: 12 | DEE36: 12 | DEF36: 12 | DEG36: 12 | DEH36: 12 | DEI36: 12 | DEJ36: 12 | DEK36: 12 | DEL36: 12 | DEM36: 12 | DEN36: 12 | DEO36: 12 | DEP36: 12 | DEQ36: 12 | DER36: 12 | DES36: 12 | DET36: 12 | DEU36: 12 | DEV36: 12 | DEW36: 12 | DEX36: 12 | DEY36: 12 | DEZ36: 12 | DFA36: 12 | DFB36: 12 | DFC36: 12 | DFD36: 12 | DFE36: 12 | DFF36: 12 | DFG36: 12 | DFH36: 12 | DFI36: 12 | DFJ36: 12 | DFK36: 12 | DFL36: 12 | DFM36: 12 | DFN36: 12 | DFO36: 12 | DFP36: 12 | DFQ36: 12 | DFR36: 12 | DFS36: 12 | DFT36: 12 | DFU36: 12 | DFV36: 12 | DFW36: 12 | DFX36: 12 | DFY36: 12 | DFZ36: 12 | DGA36: 12 | DGB36: 12 | DGC36: 12 | DGD36: 12 | DGE36: 12 | DGF36: 12 | DGG36: 12 | DGH36: 12 | DGI36: 12 | DGJ36: 12 | DGK36: 12 | DGL36: 12 | DGM36: 12 | DGN36: 12 | DGO36: 12 | DGP36: 12 | DGQ36: 12 | DGR36: 12 | DGS36: 12 | DGT36: 12 | DGU36: 12 | DGV36: 12 | DGW36: 12 | DGX36: 12 | DGY36: 12 | DGZ36: 12 | DHA36: 12 | DHB36: 12 | DHC36: 12 | DHD36: 12 | DHE36: 12 | DHF36: 12 | DHG36: 12 | DHH36: 12 | DHI36: 12 | DHJ36: 12 | DHK36: 12 | DHL36: 12 | DHM36: 12 | DHN36: 12 | DHO36: 12 | DHP36: 12 | DHQ36: 12 | DHR36: 12 | DHS36: 12 | DHT36: 12 | DHU36: 12 | DHV36: 12 | DHW36: 12 | DHX36: 12 | DHY36: 12 | DHZ36: 12 | DIA36: 12 | DIB36: 12 | DIC36: 12 | DID36: 12 | DIE36: 12 | DIF36: 12 | DIG36: 12 | DIH36: 12 | DII36: 12 | DIJ36: 12 | DIK36: 12 | DIL36: 12 | DIM36: 12 | DIN36: 12 | DIO36: 12 | DIP36: 12 | DIQ36: 12 | DIR36: 12 | DIS36: 12 | DIT36: 12 | DIU36: 12 | DIV36: 12 | DIW36: 12 | DIX36: 12 | DIY36: 12 | DIZ36: 12 | DJA36: 12 | DJB36: 12 | DJC36: 12 | DJD36: 12 | DJE36: 12 | DJF36: 12 | DJG36: 12 | DJH36: 12 | DJI36: 12 | DJJ36: 12 | DJK36: 12 | DJL36: 12 | DJM36: 12 | DJN36: 12 | DJO36: 12 | DJP36: 12 | DJQ36: 12 | DJR36: 12 | DJS36: 12 | DJT36: 12 | DJU36: 12 | DJV36: 12 | DJW36: 12 | DJX36: 12 | DJY36: 12 | DJZ36: 12 | DKA36: 12 | DKB36: 12 | DKC36: 12 | DKD36: 12 | DKE36: 12 | DKF36: 12 | DKG36: 12 | DKH36: 12 | DKI36: 12 | DKJ36: 12 | DKK36: 12 | DKL36: 12 | DKM36: 12 | DKN36: 12 | DKO36: 12 | DKP36: 12 | DKQ36: 12 | DKR36: 12 | DKS36: 12 | DKT36: 12 | DKU36: 12 | DKV36: 12 | DKW36: 12 | DKX36: 12 | DKY36: 12 | DKZ36: 12 | DLA36: 12 | DLB36: 12 | DLC36: 12 | DLD36: 12 | DLE36: 12 | DLF36: 12 | DLG36: 12 | DLH36: 12 | DLI36: 12 | DLJ36: 12 | DLK36: 12 | DLL36: 12 | DLM36: 12 | DLN36: 12 | DLO36: 12 | DLP36: 12 | DLQ36: 12 | DLR36: 12 | DLS36: 12 | DLT36: 12 | DLU36: 12 | DLV36: 12 | DLW36: 12 | DLX36: 12 | DLY36: 12 | DLZ36: 12 | DMA36: 12 | DMB36: 12 | DMC36: 12 | DMD36: 12 | DME36: 12 | DMF36: 12 | DMG36: 12 | DMH36: 12 | DMI36: 12 | DMJ36: 12 | DMK36: 12 | DML36: 12 | DMM36: 12 | DMN36: 12 | DMO36: 12 | DMP36: 12 | DMQ36: 12 | DMR36: 12 | DMS36: 12 | DMT36: 12 | DMU36: 12 | DMV36: 12 | DMW36: 12 | DMX36: 12 | DMY36: 12 | DMZ36: 12 | DNA36: 12 | DNB36: 12 | DNC36: 12 | DND36: 12 | DNE36: 12 | DNF36: 12 | DNG36: 12 | DNH36: 12 | DNI36: 12 | DNJ36: 12 | DNK36: 12 | DNL36: 12 | DNM36: 12 | DNN36: 12 | DNO36: 12 | DNP36: 12 | DNQ36: 12 | DNR36: 12 | DNS36: 12 | DNT36: 12 | DNU36: 12 | DNV36: 12 | DNW36: 12 | DNX36: 12 | DNY36: 12 | DNZ36: 12 | DOA36: 12 | DOB36: 12 | DOC36: 12 | DOD36: 12 | DOE36: 12 | DOF36: 12 | DOG36: 12 | DOH36: 12 | DOI36: 12 | DOJ36: 12 | DOK36: 12 | DOL36: 12 | DOM36: 12 | DON36: 12 | DOO36: 12 | DOP36: 12 | DOQ36: 12 | DOR36: 12 | DOS36: 12 | DOT36: 12 | DOU36: 12 | DOV36: 12 | DOW36: 12 | DOX36: 12 | DOY36: 12 | DOZ36: 12 | DPA36: 12 | DPB36: 12 | DPC36: 12 | DPD36: 12 | DPE36: 12 | DPF36: 12 | DPG36: 12 | DPH36: 12 | DPI36: 12 | DPJ36: 12 | DPK36: 12 | DPL36: 12 | DPM36: 12 | DPN36: 12 | DPO36: 12 | DPP36: 12 | DPQ36: 12 | DPR36: 12 | DPS36: 12 | DPT36: 12 | DPU36: 12 | DPV36: 12 | DPW36: 12 | DPX36: 12 | DPY36: 12 | DPZ36: 12 | DQA36: 12 | DQB36: 12 | DQC36: 12 | DQD36: 12 | DQE36: 12 | DQF36: 12 | DQG36: 12 | DQH36: 12 | DQI36: 12 | DQJ36: 12 | DQK36: 12 | DQL36: 12 | DQM36: 12 | DQN36: 12 | DQO36: 12 | DQP36: 12 | DQQ36: 12 | DQR36: 12 | DQS36: 12 | DQT36: 12 | DQU36: 12 | DQV36: 12 | DQW36: 12 | DQX36: 12 | DQY36: 12 | DQZ36: 12 | DRA36: 12 | DRB36: 12 | DRC36: 12 | DRD36: 12 | DRE36: 12 | DRF36: 12 | DRG36: 12 | DRH36: 12 | DRI36: 12 | DRJ36: 12 | DRK36: 12 | DRL36: 12 | DRM36: 12 | DRN36: 12 | DRO36: 12 | DRP36: 12 | DRQ36: 12 | DRR36: 12 | DRS36: 12 | DRT36: 12 | DRU36: 12 | DRV36: 12 | DRW36: 12 | DRX36: 12 | DRY36: 12 | DRZ36: 12 | DSA36: 12 | DSB36: 12 | DSC36: 12 | DSD36: 12 | DSE36: 12 | DSF36: 12 | DSG36: 12 | DSH36: 12 | DSI36: 12 | DSJ36: 12 | DSK36: 12 | DSL36: 12 | DSM36: 12 | DSN36: 12 | DSO36: 12 | DSP36: 12 | DSQ36: 12 | DSR36: 12 | DSS36: 12 | DST36: 12 | DSU36: 12 | DSV36: 12 | DSW36: 12 | DSX36: 12 | DSY36: 12 | DSZ36: 12 | DTA36: 12 | DTB36: 12 | DTC36: 12 | DTD36: 12 | DTE36: 12 | DTF36: 12 | DTG36: 12 | DTH36: 12 | DTI36: 12 | DTJ36: 12 | DTK36: 12 | DTL36: 12 | DTM36: 12 | DTN36: 12 | DTO36: 12 | DTP36: 12 | DTQ36: 12 | DTR36: 12 | DTS36: 12 | DTT36: 12 | DTU36: 12 | DTV36: 12 | DTW36: 12 | DTX36: 12 | DTY36: 12 | DTZ36: 12 | DUA36: 12 | DUB36: 12 | DUC36: 12 | DUD36: 12 | DUE36: 12 | DUF36: 12 | DUG36: 12 | DUH36: 12 | DUI36: 12 | DUJ36: 12 | DUK36: 12 | DUL36: 12 | DUM36: 12 | DUN36: 12 | DUO36: 12 | DUP36: 12 | DUQ36: 12 | DUR36: 12 | DUS36: 12 | DUT36: 12 | DUU36: 12 | DUV36: 12 | DUW36: 12 | DUX36: 12 | DUY36: 12 | DUZ36: 12 | DVA36: 12 | DVB36: 12 | DVC36: 12 | DVD36: 12 | DVE36: 12 | DVF36: 12 | DVG36: 12 | DVH36: 12 | DVI36: 12 | DVJ36: 12 | DVK36: 12 | DVL36: 12 | DVM36: 12 | DVN36: 12 | DVO36: 12 | DVP36: 12 | DVQ36: 12 | DVR36: 12 | DVS36: 12 | DVT36: 12 | DVU36: 12 | DVV36: 12 | DVW36: 12 | DVX36: 12 | DVY36: 12 | DVZ36: 12 | DWA36: 12 | DWB36: 12 | DWC36: 12 | DWD36: 12 | DWE36: 12 | DWF36: 12 | DWG36: 12 | DWH36: 12 | DWI36: 12 | DWJ36: 12 | DWK36: 12 | DWL36: 12 | DWM36: 12 | DWN36: 12 | DWO36: 12 | DWP36: 12 | DWQ36: 12 | DWR36: 12 | DWS36: 12 | DWT36: 12 | DWU36: 12 | DWV36: 12 | DWW36: 12 | DWX36: 12 | DWY36: 12 | DWZ36: 12 | DXA36: 12 | DXB36: 12 | DXC36: 12 | DXD36: 12 | DXE36: 12 | DXF36: 12 | DXG36: 12 | DXH36: 12 | DXI36: 12 | DXJ36: 12 | DXK36: 12 | DXL36: 12 | DXM36: 12 | DXN36: 12 | DXO36: 12 | DXP36: 12 | DXQ36: 12 | DXR36: 12 | DXS36: 12 | DXT36: 12 | DXU36: 12 | DXV36: 12 | DXW36: 12 | DXX36: 12 | DXY36: 12 | DXZ36: 12 | DYA36: 12 | DYB36: 12 | DYC36: 12 | DYD36: 12 | DYE36: 12 | DYF36: 12 | DYG36: 12 | DYH36: 12 | DYI36: 12 | DYJ36: 12 | DYK36: 12 | DYL36: 12 | DYM36: 12 | DYN36: 12 | DYO36: 12 | DYP36: 12 | DYQ36: 12 | DYR36: 12 | DYS36: 12 | DYT36: 12 | DYU36: 12 | DYV36: 12 | DYW36: 12 | DYX36: 12 | DYY36: 12 | DYZ36: 12 | DZA36: 12 | DZB36: 12 | DZC36: 12 | DZD36: 12 | DZE36: 12 | DZF36: 12 | DZG36: 12 | DZH36: 12 | DZI36: 12 | DZJ36: 12 | DZK36: 12 | DZL36: 12 | DZM36: 12 | DZN36: 12 | DZO36: 12 | DZP36: 12 | DZQ36: 12 | DZR36: 12 | DZS36: 12 | DZT36: 12 | DZU36: 12 | DZV36: 12 | DZW36: 12 | DZX36: 12 | DZY36: 12 | DZZ36: 12 | EAA36: 12 | EAB36: 12 | EAC36: 12 | EAD36: 12 | EAE36: 12 | EAF36: 12 | EAG36: 12 | EAH36: 12 | EAI36: 12 | EAJ36: 12 | EAK36: 12 | EAL36: 12 | EAM36: 12 | EAN36: 12 | EAO36: 12 | EAP36: 12 | EAQ36: 12 | EAR36: 12 | EAS36: 12 | EAT36: 12 | EAU36: 12 | EAV36: 12 | EAW36: 12 | EAX36: 12 | EAY36: 12 | EAZ36: 12 | EBA36: 12 | EBB36: 12 | EBC36: 12 | EBD36: 12 | EBE36: 12 | EBF36: 12 | EBG36: 12 | EBH36: 12 | EBI36: 12 | EBJ36: 12 | EBK36: 12 | EBL36: 12 | EBM36: 12 | EBN36: 12 | EBO36: 12 | EBP36: 12 | EBQ36: 12 | EBR36: 12 | EBS36: 12 | EBT36: 12 | EBU36: 12 | EBV36: 12 | EBW36: 12 | EBX36: 12 | EBY36: 12 | EBZ36: 12 | ECA36: 12 | ECB36: 12 | ECC36: 12 | ECD36: 12 | ECE36: 12 | ECF36: 12 | ECG36: 12 | ECH36: 12 | ECI36: 12 | ECJ36: 12 | ECK36: 12 | ECL36: 12 | ECM36: 12 | ECN36: 12 | ECO36: 12 | ECP36: 12 | ECQ36: 12 | ECR36: 12 | ECS36: 12 | ECT36: 12 | ECU36: 12 | ECV36: 12 | ECW36: 12 | ECX36: 12 | ECY36: 12 | ECZ36: 12 | EDA36: 12 | EDB36: 12 | EDC36: 12 | EDD36: 12 | EDE36: 12 | EDF36: 12 | EDG36: 12 | EDH36: 12 | EDI36: 12 | EDJ36: 12 | EDK36: 12 | EDL36: 12 | EDM36: 12 | EDN36: 12 | EDO36: 12 | EDP36: 12 | EDQ36: 12 | EDR36: 12 | EDS36: 12 | EDT36: 12 | EDU36: 12 | EDV36: 12 | EDW36: 12 | EDX36: 12 | EDY36: 12 | EDZ36: 12 | EEA36: 12 | EEB36: 12 | EEC36: 12 | EED36: 12 | EEE36: 12 | EEF36: 12 | EEG36: 12 | EEH36: 12 | EEI36: 12 | EEJ36: 12 | EEK36: 12 | EEL36: 12 | EEM36: 12 | EEN36: 12 | EEO36: 12 | EEP36: 12 | EEQ36: 12 | EER36: 12 | EES36: 12 | EET36: 12 | EEU36: 12 | EEV36: 12 | EEW36: 12 | EEX36: 12 | EEY36: 12 | EEZ36: 12 | EFA36: 12 | EFB36: 12 | EFC36: 12 | EFD36: 12 | EFE36: 12 | EFF36: 12 | EFG36: 12 | EFH36: 12 | EFI36: 12 | EFJ36: 12 | EFK36: 12 | EFL36: 12 | EFM36: 12 | EFN36: 12 | EFO36: 12 | EFP36: 12 | EFQ36: 12 | EFR36: 12 | EFS36: 12 | EFT36: 12 | EFU36: 12 | EFV36: 12 | EFW36: 12 | EFX36: 12 | EFY36: 12 | EFZ36: 12 | EGA36: 12 | EGB36: 12 | EGC36: 12 | EGD36: 12 | EGE36: 12 | EGF36: 12 | EGG36: 12 | EGH36: 12 | EGI36: 12 | EGJ36: 12 | EGK36: 12 | EGL36: 12 | EGM36: 12 | EGN36: 12 | EGO36: 12 | EGP36: 12 | EGQ36: 12 | EGR36: 12 | EGS36: 12 | EGT36: 12 | EGU36: 12 | EGV36: 12 | EGW36: 12 | EGX36: 12 | EGY36: 12 | EGZ36: 12 | EHA36: 12 | EHB36: 12 | EHC36: 12 | EHD36: 12 | EHE36: 12 | EHF36: 12 | EHG36: 12 | EHH36: 12 | EHI36: 12 | EHJ36: 12 | EHK36: 12 | EHL36: 12 | EHM36: 12 | EHN36: 12 | EHO36: 12 | EHP36: 12 | EHQ36: 12 | EHR36: 12 | EHS36: 12 | EHT36: 12 | EHU36: 12 | EHV36: 12 | EHW36: 12 | EHX36: 12 | EHY36: 12 | EHZ36: 12 | EIA36: 12 | EIB36: 12 | EIC36: 12 | EID36: 12 | EIE36: 12 | EIF36: 12 | EIG36: 12 | EIH36: 12 | EII36: 12 | EIJ36: 12 | EIK36: 12 | EIL36: 12 | EIM36: 12 | EIN36: 12 | EIO36: 12 | EIP36: 12 | EIQ36: 12 | EIR36: 12 | EIS36: 12 | EIT36: 12 | EIU36: 12 | EIV36: 12 | EIW36: 12 | EIX36: 12 | EIY36: 12 | EIZ36: 12 | EJA36: 12 | EJB36: 12 | EJC36: 12 | EJD36: 12 | EJE36: 12 | EJF36: 12 | EJG36: 12 | EJH36: 12 | EJI36: 12 | EJJ36: 12 | EJK36: 12 | EJL36: 12 | EJM36: 12 | EJN36: 12 | EJO36: 12 | EJP36: 12 | EJQ36: 12 | EJR36: 12 | EJS36: 12 | EJT36: 12 | EJU36: 12 | EJV36: 12 | EJW36: 12 | EJX36: 12 | EJY36: 12 | EJZ36: 12 | EKA36: 12 | EKB36: 12 | EKC36: 12 | EKD36: 12 | EKE36: 12 | EKF36: 12 | EKG36: 12 | EKH36: 12 | EKI36: 12 | EKJ36: 12 | EKK36: 12 | EKL36: 12 | EKM36: 12 | EKN36: 12 | EKO36: 12 | EKP36: 12 | EKQ36: 12 | EKR36: 12 | EKS36: 12 | EKT36: 12 | EKU36: 12 | EKV36: 12 | EKW36: 12 | EKX36: 12 | EKY36: 12 | EKZ36: 12 | ELA36: 12 | ELB36: 12 | ELC36: 12 | ELD36: 12 | ELE36: 12 | ELF36: 12 | ELG36: 12 | ELH36: 12 | ELI36: 12 | ELJ36: 12 | ELK36: 12 | ELL36: 12 | ELM36: 12 | ELN36: 12 | ELO36: 12 | ELP36: 12 | ELQ36: 12 | ELR36: 12 | ELS36: 12 | ELT36: 12 | ELU36: 12 | ELV36: 12 | ELW36: 12 | ELX36: 12 | ELY36: 12 | ELZ36: 12 | EMA36: 12 | EMB36: 12 | EMC36: 12 | EMD36: 12 | EME36: 12 | EMF36: 12 | EMG36: 12 | EMH36: 12 | EMI36: 12 | EMJ36: 12 | EMK36: 12 | EML36: 12 | EMM36: 12 | EMN36: 12 | EMO36: 12 | EMP36: 12 | EMQ36: 12 | EMR36: 12 | EMS36: 12 | EMT36: 12 | EMU36: 12 | EMV36: 12 | EMW36: 12 | EMX36: 12 | EMY36: 12 | EMZ36: 12 | ENA36: 12 | ENB36: 12 | ENC36: 12 | END36: 12 | ENE36: 12 | ENF36: 12 | ENG36: 12 | ENH36: 12 | ENI36: 12 | ENJ36: 12 | ENK36: 12 | ENL36: 12 | ENM36: 12 | ENN36: 12 | ENO36: 12 | ENP36: 12 | ENQ36: 12 | ENR36: 12 | ENS36: 12 | ENT36: 12 | ENU36: 12 | ENV36: 12 | ENW36: 12 | ENX36: 12 | ENY36: 12 | ENZ36: 12 | EOA36: 12 | EOB36: 12 | EOC36: 12 | EOD36: 12 | EOE36: 12 | EOF36: 12 | EOG36: 12 | EOH36: 12 | EOI36: 12 | EOJ36: 12 | EOK36: 12 | EOL36: 12 | EOM36: 12 | EON36: 12 | EOO36: 12 | EOP36: 12 | EOQ36: 12 | EOR36: 12 | EOS36: 12 | EOT36: 12 | EOU36: 12 | EOV36: 12 | EOW36: 12 | EOX36: 12 | EOY36: 12 | EOZ36: 12 | EPA36: 12 | EPB36: 12 | EPC36: 12 | EPD36: 12 | EPE36: 12 | EPF36: 12 | EPG36: 12 | EPH36: 12 | EPI36: 12 | EPJ36: 12 | EPK36: 12 | EPL36: 12 | EPM36: 12 | EPN36: 12 | EPO36: 12 | EPP36: 12 | EPQ36: 12 | EPR36: 12 | EPS36: 12 | EPT36: 12 | EPU36: 12 | EPV36: 12 | EPW36: 12 | EPX36: 12 | EPY36: 12 | EPZ36: 12 | EQA36: 12 | EQB36: 12 | EQC36: 12 | EQD36: 12 | EQE36: 12 | EQF36: 12 | EQG36: 12 | EQH36: 12 | EQI36: 12 | EQJ36: 12 | EQK36: 12 | EQL36: 12 | EQM36: 12 | EQN36: 12 | EQO36: 12 | EQP36: 12 | EQQ36: 12 | EQR36: 12 | EQS36: 12 | EQT36: 12 | EQU36: 12 | EQV36: 12 | EQW36: 12 | EQX36: 12 | EQY36: 12 | EQZ36: 12 | ERA36: 12 | ERB36: 12 | ERC36: 12 | ERD36: 12 | ERE36: 12 | ERF36: 12 | ERG36: 12 | ERH36: 12 | ERI36: 12 | ERJ36: 12 | ERK36: 12 | ERL36: 12 | ERM36: 12 | ERN36: 12 | ERO36: 12 | ERP36: 12 | ERQ36: 12 | ERR36: 12 | ERS36: 12 | ERT36: 12 | ERU36: 12 | ERV36: 12 | ERW36: 12 | ERX36: 12 | ERY36: 12 | ERZ36: 12 | ESA36: 12 | ESB36: 12 | ESC36: 12 | ESD36: 12 | ESE36: 12 | ESF36: 12 | ESG36: 12 | ESH36: 12 | ESI36: 12 | ESJ36: 12 | ESK36: 12 | ESL36: 12 | ESM36: 12 | ESN36: 12 | ESO36: 12 | ESP36: 12 | ESQ36: 12 | ESR36: 12 | ESS36: 12 | EST36: 12 | ESU36: 12 | ESV36: 12 | ESW36: 12 | ESX36: 12 | ESY36: 12 | ESZ36: 12 | ETA36: 12 | ETB36: 12 | ETC36: 12 | ETD36: 12 | ETE36: 12 | ETF36: 12 | ETG36: 12 | ETH36: 12 | ETI36: 12 | ETJ36: 12 | ETK36: 12 | ETL36: 12 | ETM36: 12 | ETN36: 12 | ETO36: 12 | ETP36: 12 | ETQ36: 12 | ETR36: 12 | ETS36: 12 | ETT36: 12 | ETU36: 12 | ETV36: 12 | ETW36: 12 | ETX36: 12 | ETY36: 12 | ETZ36: 12 | EUA36: 12 | EUB36: 12 | EUC36: 12 | EUD36: 12 | EUE36: 12 | EUF36: 12 | EUG36: 12 | EUH36: 12 | EUI36: 12 | EUJ36: 12 | EUK36: 12 | EUL36: 12 | EUM36: 12 | EUN36: 12 | EUO36: 12 | EUP36: 12 | EUQ36: 12 | EUR36: 12 | EUS36: 12 | EUT36: 12 | EUU36: 12 | EUV36: 12 | EUW36: 12 | EUX36: 12 | EUY36: 12 | EUZ36: 12 | EVA36: 12 | EVB36: 12 | EVC36: 12 | EVD36: 12 | EVE36: 12 | EVF36: 12 | EVG36: 12 | EVH36: 12 | EVI36: 12 | EVJ36: 12 | EVK36: 12 | EVL36: 12 | EVM36: 12 | EVN36: 12 | EVO36: 12 | EVP36: 12 | EVQ36: 12 | EVR36: 12 | EVS36: 12 | EVT36: 12 | EVU36: 12 | EVV36: 12 | EVW36: 12 | EVX36: 12 | EVY36: 12 | EVZ36: 12 | EWA36: 12 | EWB36: 12 | EWC36: 12 | EWD36: 12 | EWE36: 12 | EWF36: 12 | EWG36: 12 | EWH36: 12 | EWI36: 12 | EWJ36: 12 | EWK36: 12 | EWL36: 12 | EWM36: 12 | EWN36: 12 | EWO36: 12 | EWP36: 12 | EWQ36: 12 | EWR36: 12 | EWS36: 12 | EWT36: 12 | EWU36: 12 | EWV36: 12 | EWW36: 12 | EWX36: 12 | EWY36: 12 | EWZ36: 12 | EXA36: 12 | EXB36: 12 | EXC36: 12 | EXD36: 12 | EXE36: 12 | EXF36: 12 | EXG36: 12 | EXH36: 12 | EXI36: 12 | EXJ36: 12 | EXK36: 12 | EXL36: 12 | EXM36: 12 | EXN36: 12 | EXO36: 12 | EXP36: 12 | EXQ36: 12 | EXR36: 12 | EXS36: 12 | EXT36: 12 | EXU36: 12 | EXV36: 12 | EXW36: 12 | EXX36: 12 | EXY36: 12 | EXZ36: 12 | EYA36: 12 | EYB36: 12 | EYC36: 12 | EYD36: 12 | EYE36: 12 | EYF36: 12 | EYG36: 12 | EYH36: 12 | EYI36: 12 | EYJ36: 12 | EYK36: 12 | EYL36: 12 | EYM36: 12 | EYN36: 12 | EYO36: 12 | EYP36: 12 | EYQ36: 12 | EYR36: 12 | EYS36: 12 | EYT36: 12 | EYU36: 12 | EYV36: 12 | EYW36: 12 | EYX36: 12 | EYY36: 12 | EYZ36: 12 | EZA36: 12 | EZB36: 12 | EZC36: 12 | EZD36: 12 | EZE36: 12 | EZF36: 12 | EZG36: 12 | EZH36: 12 | EZI36: 12 | EZJ36: 12 | EZK36: 12 | EZL36: 12 | EZM36: 12 | EZN36: 12 | EZO36: 12 | EZP36: 12 | EZQ36: 12 | EZR36: 12 | EZS36: 12 | EZT36: 12 | EZU36: 12 | EZV36: 12 | EZW36: 12 | EZX36: 12 | EZY36: 12 | EZZ36: 12 | FAA36: 12 | FAB36: 12 | FAC36: 12 | FAD36: 12 | FAE36: 12 | FAF36: 12 | FAG36: 12 | FAH36: 12 | FAI36: 12 | FAJ36: 12 | FAK36: 12 | FAL36: 12 | FAM36: 12 | FAN36: 12 | FAO36: 12 | FAP36: 12 | FAQ36: 12 | FAR36: 12 | FAS36: 12 | FAT36: 12 | FAU36: 12 | FAV36: 12 | FAW36: 12 | FAX36: 12 | FAY36: 12 | FAZ36: 12 | FBA36: 12 | FBB36: 12 | FBC36: 12 | FBD36: 12 | FBE36: 12 | FBF36: 12 | FBG36: 12 | FBH36: 12 | FBI36: 12 | FBJ36: 12 | FBK36: 12 | FBL36: 12 | FBM36: 12 | FBN36: 12 | FBO36: 12 | FBP36: 12 | FBQ36: 12 | FBR36: 12 | FBS36: 12 | FBT36: 12 | FBU36: 12 | FBV36: 12 | FBW36: 12 | FBX36: 12 | FBY36: 12 | FBZ36: 12 | FCA36: 12 | FCB36: 12 | FCC36: 12 | FCD36: 12 | FCE36: 12 | FCF36: 12 | FCG36: 12 | FCH36: 12 | FCI36: 12 | FCJ36: 12 | FCK36: 12 | FCL36: 12 | FCM36: 12 | FCN36: 12 | FCO36: 12 | FCP36: 12 | FCQ36: 12 | FCR36: 12 | FCS36: 12 | FCT36: 12 | FCU36: 12 | FCV36: 12 | FCW36: 12 | FCX36: 12 | FCY36: 12 | FCZ36: 12 | FDA36: 12 | FDB36: 12 | FDC36: 12 | FDD36: 12 | FDE36: 12 | FDF36: 12 | FDG36: 12 | FDH36: 12 | FDI36: 12 | FDJ36: 12 | FDK36: 12 | FDL36: 12 | FDM36: 12 | FDN36: 12 | FDO36: 12 | FDP36: 12 | FDQ36: 12 | FDR36: 12 | FDS36: 12 | FDT36: 12 | FDU36: 12 | FDV36: 12 | FDW36: 12 | FDX36: 12 | FDY36: 12 | FDZ36: 12 | FEA36: 12 | FEB36: 12 | FEC36: 12 | FED36: 12 | FEE36: 12 | FEF36: 12 | FEG36: 12 | FEH36: 12 | FEI36: 12 | FEJ36: 12 | FEK36: 12 | FEL36: 12 | FEM36: 12 | FEN36: 12 | FEO36: 12 | FEP36: 12 | FEQ36: 12 | FER36: 12 | FES36: 12 | FET36: 12 | FEU36: 12 | FEV36: 12 | FEW36: 12 | FEX36: 12 | FEY36: 12 | FEZ36: 12 | FFA36: 12 | FFB36: 12 | FFC36: 12 | FFD36: 12 | FFE36: 12 | FFF36: 12 | FFG36: 12 | FFH36: 12 | FFI36: 12 | FFJ36: 12 | FFK36: 12 | FFL36: 12 | FFM36: 12 | FFN36: 12 | FFO36: 12 | FFP36: 12 | FFQ36: 12 | FFR36: 12 | FFS36: 12 | FFT36: 12 | FFU36: 12 | FFV36: 12 | FFW36: 12 | FFX36: 12 | FFY36: 12 | FFZ36: 12 | FGA36: 12 | FGB36: 12 | FGC36: 12 | FGD36: 12 | FGE36: 12 | FGF36: 12 | FGG36: 12 | FGH36: 12 | FGI36: 12 | FGJ36: 12 | FGK36: 12 | FGL36: 12 | FGM36: 12 | FGN36: 12 | FGO36: 12 | FGP36: 12 | FGQ36: 12 | FGR36: 12 | FGS36: 12 | FGT36: 12 | FGU36: 12 | FGV36: 12 | FGW36: 12 | FGX36: 12 | FGY36: 12 | FGZ36: 12 | FHA36: 12 | FHB36: 12 | FHC36: 12 | FHD36: 12 | FHE36: 12 | FHF36: 12 | FHG36: 12 | FHH36: 12 | FHI36: 12 | FHJ36: 12 | FHK36: 12 | FHL36: 12 | FHM36: 12 | FHN36: 12 | FHO36: 12 | FHP36: 12 | FHQ36: 12 | FHR36: 12 | FHS36: 12 | FHT36: 12 | FHU36: 12 | FHV36: 12 | FHW36: 12 | FHX36: 12 | FHY36: 12 | FHZ36: 12 | FIA36: 12 | FIB36: 12 | FIC36: 12 | FID36: 12 | FIE36: 12 | FIF36: 12 | FIG36: 12 | FIH36: 12 | FII36: 12 | FIJ36: 12 | FIK36: 12 | FIL36: 12 | FIM36: 12 | FIN36: 12 | FIO36: 12 | FIP36: 12 | FIQ36: 12 | FIR36: 12 | FIS36: 12 | FIT36: 12 | FIU36: 12 | FIV36: 12 | FIW36: 12 | FIX36: 12 | FIY36: 12 | FIZ36: 12 | FJA36: 12 | FJB36: 12 | FJC36: 12 | FJD36: 12 | FJE36: 12 | FJF36: 12 | FJG36: 12 | FJH36: 12 | FJI36: 12 | FJJ36: 12 | FJK36: 12 | FJL36: 12 | FJM36: 12 | FJN36: 12 | FJO36: 12 | FJP36: 12 | FJQ36: 12 | FJR36: 12 | FJS36: 12 | FJT36: 12 | FJU36: 12 | FJV36: 12 | FJW36: 12 | FJX36: 12 | FJY36: 12 | FJZ36: 12 | FKA36: 12 | FKB36: 12 | FKC36: 12 | FKD36: 12 | FKE36: 12 | FKF36: 12 | FKG36: 12 | FKH36: 12 | FKI36: 12 | FKJ36: 12 | FKK36: 12 | FKL36: 12 | FKM36: 12 | FKN36: 12 | FKO36: 12 | FKP36: 12 | FKQ36: 12 | FKR36: 12 | FKS36: 12 | FKT36: 12 | FKU36: 12 | FKV36: 12 | FKW36: 12 | FKX36: 12 | FKY36: 12 | FKZ36: 12 | FLA36: 12 | FLB36: 12 | FLC36: 12 | FLD36: 12 | FLE36: 12 | FLF36: 12 | FLG36: 12 | FLH36: 12 | FLI36: 12 | FLJ36: 12 | FLK36: 12 | FLL36: 12 | FLM36: 12 | FLN36: 12 | FLO36: 12 | FLP36: 12 | FLQ36: 12 | FLR36: 12 | FLS36: 12 | FLT36: 12 | FLU36: 12 | FLV36: 12 | FLW36: 12 | FLX36: 12 | FLY36: 12 | FLZ36: 12 | FMA36: 12 | FMB36: 12 | FMC36: 12 | FMD36: 12 | FME36: 12 | FMF36: 12 | FMG36: 12 | FMH36: 12 | FMI36: 12 | FMJ36: 12 | FMK36: 12 | FML36: 12 | FMM36: 12 | FMN36: 12 | FMO36: 12 | FMP36: 12 | FMQ36: 12 | FMR36: 12 | FMS36: 12 | FMT36: 12 | FMU36: 12 | FMV36: 12 | FMW36: 12 | FMX36: 12 | FMY36: 12 | FMZ36: 12 | FNA36: 12 | FNB36: 12 | FNC36: 12 | FND36: 12 | FNE36: 12 | FNF36: 12 | FNG36: 12 | FNH36: 12 | FNI36: 12 | FNJ36: 12 | FNK36: 12 | FNL36: 12 | FNM36: 12 | FNN36: 12 | FNO36: 12 | FNP36: 12 | FNQ36: 12 | FNR36: 12 | FNS36: 12 | FNT36: 12 | FNU36: 12 | FNV36: 12 | FNW36: 12 | FNX36: 12 | FNY36: 12 | FNZ36: 12 | FOA36: 12 | FOB36: 12 | FOC36: 12 | FOD36: 12 | FOE36: 12 | FOF36: 12 | FOG36: 12 | FOH36: 12 | FOI36: 12 | FOJ36: 12 | FOK36: 12 | FOL36: 12 | FOM36: 12 | FON36: 12 | FOO36: 12 | FOP36: 12 | FOQ36: 12 | FOR36: 12 | FOS36: 12 | FOT36: 12 | FOU36: 12 | FOV36: 12 | FOW36: 12 | FOX36: 12 | FOY36: 12 | FOZ36: 12 | FPA36: 12 | FPB36: 12 | FPC36: 12 | FPD36: 12 | FPE36: 12 | FPF36: 12 | FPG36: 12 | FPH36: 12 | FPI36: 12 | FPJ36: 12 | FPK36: 12 | FPL36: 12 | FPM36: 12 | FPN36: 12 | FPO36: 12 | FPP36: 12 | FPQ36: 12 | FPR36: 12 | FPS36: 12 | FPT36: 12 | FPU36: 12 | FPV36: 12 | FPW36: 12 | FPX36: 12 | FPY36: 12 | FPZ36: 12 | FQA36: 12 | FQB36: 12 | FQC36: 12 | FQD36: 12 | FQE36: 12 | FQF36: 12 | FQG36: 12 | FQH36: 12 | FQI36: 12 | FQJ36: 12 | FQK36: 12 | FQL36: 12 | FQM36: 12 | FQN36: 12 | FQO36: 12 | FQP36: 12 | FQQ36: 12 | FQR36: 12 | FQS36: 12 | FQT36: 12 | FQU36: 12 | FQV36: 12 | FQW36: 12 | FQX36: 12 | FQY36: 12 | FQZ36: 12 | FRA36: 12 | FRB36: 12 | FRC36: 12 | FRD36: 12 | FRE36: 12 | FRF36: 12 | FRG36: 12 | FRH36: 12 | FRI36: 12 | FRJ36: 12 | FRK36: 12 | FRL36: 12 | FRM36: 12 | FRN36: 12 | FRO36: 12 | FRP36: 12 | FRQ36: 12 | FRR36: 12 | FRS36: 12 | FRT36: 12 | FRU36: 12 | FRV36: 12 | FRW36: 12 | FRX36: 12 | FRY36: 12 | FRZ36: 12 | FSA36: 12 | FSB36: 12 | FSC36: 12 | FSD36: 12 | FSE36: 12 | FSF36: 12 | FSG36: 12 | FSH36: 12 | FSI36: 12 | FSJ36: 12 | FSK36: 12 | FSL36: 12 | FSM36: 12 | FSN36: 12 | FSO36: 12 | FSP36: 12 | FSQ36: 12 | FSR36: 12 | FSS36: 12 | FST36: 12 | FSU36: 12 | FSV36: 12 | FSW36: 12 | FSX36: 12 | FSY36: 12 | FSZ36: 12 | FTA36: 12 | FTB36: 12 | FTC36: 12 | FTD36: 12 | FTE36: 12 | FTF36: 12 | FTG36: 12 | FTH36: 12 | FTI36: 12 | FTJ36: 12 | FTK36: 12 | FTL36: 12 | FTM36: 12 | FTN36: 12 | FTO36: 12 | FTP36: 12 | FTQ36: 12 | FTR36: 12 | FTS36: 12 | FTT36: 12 | FTU36: 12 | FTV36: 12 | FTW36: 12 | FTX36: 12 | FTY36: 12 | FTZ36: 12 | FUA36: 12 | FUB36: 12 | FUC36: 12 | FUD36: 12 | FUE36: 12 | FUF36: 12 | FUG36: 12 | FUH36: 12 | FUI36: 12 | FUJ36: 12 | FUK36: 12 | FUL36: 12 | FUM36: 12 | FUN36: 12 | FUO36: 12 | FUP36: 12 | FUQ36: 12 | FUR36: 12 | FUS36: 12 | FUT36: 12 | FUU36: 12 | FUV36: 12 | FUW36: 12 | FUX36: 12 | FUY36: 12 | FUZ36: 12 | FVA36: 12 | FVB36: 12 | FVC36: 12 | FVD36: 12 | FVE36: 12 | FVF36: 12 | FVG36: 12 | FVH36: 12 | FVI36: 12 | FVJ36: 12 | FVK36: 12 | FVL36: 12 | FVM36: 12 | FVN36: 12 | FVO36: 12 | FVP36: 12 | FVQ36: 12 | FVR36: 12 | FVS36: 12 | FVT36: 12 | FVU36: 12 | FVV36: 12 | FVW36: 12 | FVX36: 12 | FVY36: 12 | FVZ36: 12 | FWA36: 12 | FWB36: 12 | FWC36: 12 | FWD36: 12 | FWE36: 12 | FWF36: 12 | FWG36: 12 | FWH36: 12 | FWI36: 12 | FWJ36: 12 | FWK36: 12 | FWL36: 12 | FWM36: 12 | FWN36: 12 | FWO36: 12 | FWP36: 12 | FWQ36: 12 | FWR36: 12 | FWS36: 12 | FWT36: 12 | FWU36: 12 | FWV36: 12 | FWW36: 12 | FWX36: 12 | FWY36: 12 | FWZ36: 12 | FXA36: 12 | FXB36: 12 | FXC36: 12 | FXD36: 12 | FXE36: 12 | FXF36: 12 | FXG36: 12 | FXH36: 12 | FXI36: 12 | FXJ36: 12 | FXK36: 12 | FXL36: 12 | FXM36: 12 | FXN36: 12 | FXO36: 12 | FXP36: 12 | FXQ36: 12 | FXR36: 12 | FXS36: 12 | FXT36: 12 | FXU36: 12 | FXV36: 12 | FXW36: 12 | FXX36: 12 | FXY36: 12 | FXZ36: 12 | FYA36: 12 | FYB36: 12 | FYC36: 12 | FYD36: 12 | FYE36: 12 | FYF36: 12 | FYG36: 12 | FYH36: 12 | FYI36: 12 | FYJ36: 12 | FYK36: 12 | FYL36: 12 | FYM36: 12 | FYN36: 12 | FYO36: 12 | FYP36: 12 | FYQ36: 12 | FYR36: 12 | FYS36: 12 | FYT36: 12 | FYU36: 12 | FYV36: 12 | FYW36: 12 | FYX36: 12 | FYY36: 12 | FYZ36: 12 | FZA36: 12 | FZB36: 12 | FZC36: 12 | FZD36: 12 | FZE36: 12 | FZF36: 12 | FZG36: 12 | FZH36: 12 | FZI36: 12 | FZJ36: 12 | FZK36: 12 | FZL36: 12 | FZM36: 12 | FZN36: 12 | FZO36: 12 | FZP36: 12 | FZQ36: 12 | FZR36: 12 | FZS36: 12 | FZT36: 12 | FZU36: 12 | FZV36: 12 | FZW36: 12 | FZX36: 12 | FZY36: 12 | FZZ36: 12 | GAA36: 12 | GAB36: 12 | GAC36: 12 | GAD36: 12 | GAE36: 12 | GAF36: 12 | GAG36: 12 | GAH36: 12 | GAI36: 12 | GAJ36: 12 | GAK36: 12 | GAL36: 12 | GAM36: 12 | GAN36: 12 | GAO36: 12 | GAP36: 12 | GAQ36: 12 | GAR36: 12 | GAS36: 12 | GAT36: 12 | GAU36: 12 | GAV36: 12 | GAW36: 12 | GAX36: 12 | GAY36: 12 | GAZ36: 12 | GBA36: 12 | GBB36: 12 | GBC36: 12 | GBD36: 12 | GBE36: 12 | GBF36: 12 | GBG36: 12 | GBH36: 12 | GBI36: 12 | GBJ36: 12 | GBK36: 12 | GBL36: 12 | GBM36: 12 | GBN36: 12 | GBO36: 12 | GBP36: 12 | GBQ36: 12 | GBR36: 12 | GBS36: 12 | GBT36: 12 | GBU36: 12 | GBV36: 12 | GBW36: 12 | GBX36: 12 | GBY36: 12 | GBZ36: 12 | GCA36: 12 | GCB36: 12 | GCC36: 12 | GCD36: 12 | GCE36: 12 | GCF36: 12 | GCG36: 12 | GCH36: 12 | GCI36: 12 | GCJ36: 12 | GCK36: 12 | GCL36: 12 | GCM36: 12 | GCN36: 12 | GCO36: 12 | GCP36: 12 | GCQ36: 12 | GCR36: 12 | GCS36: 12 | GCT36: 12 | GCU36: 12 | GCV36: 12 | GCW36: 12 | GCX36: 12 | GCY36: 12 | GCZ36: 12 | GDA36: 12 | GDB36: 12 | GDC36: 12 | GDD36: 12 | GDE36: 12 | GDF36: 12 | GDG36: 12 | GDH36: 12 | GDI36: 12 | GDJ36: 12 | GDK36: 12 | GDL36: 12 | GDM36: 12 | GDN36: 12 | GDO36: 12 | GDP36: 12 | GDQ36: 12 | GDR36: 12 | GDS36: 12 | GDT36: 12 | GDU36: 12 | GDV36: 12 | GDW36: 12 | GDX36: 12 | GDY36: 12 | GDZ36: 12 | GEA36: 12 | GEB36: 12 | GEC36: 12 | GED36: 12 | GEE36: 12 | GEF36: 12 | GEG36: 12 | GEH36: 12 | GEI36: 12 | GEJ36: 12 | GEK36: 12 | GEL36: 12 | GEM36: 12 | GEN36: 12 | GEO36: 12 | GEP36: 12 | GEQ36: 12 | GER36: 12 | GES36: 12 | GET36: 12 | GEU36: 12 | GEV36: 12 | GEW36: 12 | GEX36: 12 | GEY36: 12 | GEZ36: 12 | GFA36: 12 | GFB36: 12 | GFC36: 12 | GFD36: 12 | GFE36: 12 | GFF36: 12 | GFG36: 12 | GFH36: 12 | GFI36: 12 | GFJ36: 12 | GFK36: 12 | GFL36: 12 | GFM36: 12 | GFN36: 12 | GFO36: 12 | GFP36: 12 | GFQ36: 12 | GFR36: 12 | GFS36: 12 | GFT36: 12 | GFU36: 12 | GFV36: 12 | GFW36: 12 | GFX36: 12 | GFY36: 12 | GFZ36: 12 | GGA36: 12 | GGB36: 12 | GGC36: 12 | GGD36: 12 | GGE36: 12 | GGF36: 12 | GGG36: 12 | GGH36: 12 | GGI36: 12 | GGJ36: 12 | GGK36: 12 | GGL36: 12 | GGM36: 12 | GGN36: 12 | GGO36: 12 | GGP36: 12 | GGQ36: 12 | GGR36: 12 | GGS36: 12 | GGT36: 12 | GGU36: 12 | GGV36: 12 | GGW36: 12 | GGX36: 12 | GGY36: 12 | GGZ36: 12 | GHA36: 12 | GHB36: 12 | GHC36: 12 | GHD36: 12 | GHE36: 12 | GHF36: 12 | GHG36: 12 | GHH36: 12 | GHI36: 12 | GHJ36: 12 | GHK36: 12 | GHL36: 12 | GHM36: 12 | GHN36: 12 | GHO36: 12 | GHP36: 12 | GHQ36: 12 | GHR36: 12 | GHS36: 12 | GHT36: 12 | GHU36: 12 | GHV36: 12 | GHW36: 12 | GHX36: 12 | GHY36: 12 | GHZ36: 12 | GIA36: 12 | GIB36: 12 | GIC36: 12 | GID36: 12 | GIE36: 12 | GIF36: 12 | GIG36: 12 | GIH36: 12 | GII36: 12 | GIJ36: 12 | GIK36: 12 | GIL36: 12 | GIM36: 12 | GIN36: 12 | GIO36: 12 | GIP36: 12 | GIQ36: 12 | GIR36: 12 | GIS36: 12 | GIT36: 12 | GIU36: 12 | GIV36: 12 | GIW36: 12 | GIX36: 12 | GIY36: 12 | GIZ36: 12 | GJA36: 12 | GJB36: 12 | GJC36: 12 | GJD36: 12 | GJE36: 12 | GJF36: 12 | GJG36: 12 | GJH36: 12 | GJI36: 12 | GJJ36: 12 | GJK36: 12 | GJL36: 12 | GJM36: 12 | GJN36: 12 | GJO36: 12 | GJP36: 12 | GJQ36: 12 | GJR36: 12 | GJS36: 12 | GJT36: 12 | GJU36: 12 | GJV36: 12 | GJW36: 12 | GJX36: 12 | GJY36: 12 | GJZ36: 12 | GKA36: 12 | GKB36: 12 | GKC36: 12 | GKD36: 12 | GKE36: 12 | GKF36: 12 | GKG36: 12 | GKH36: 12 | GKI36: 12 | GKJ36: 12 | GKK36: 12 | GKL36: 12 | GKM36: 12 | GKN36: 12 | GKO36: 12 | GKP36: 12 | GKQ36: 12 | GKR36: 12 | GKS36: 12 | GKT36: 12 | GKU36: 12 | GKV36: 12 | GKW36: 12 | GKX36: 12 | GKY36: 12 | GKZ36: 12 | GLA36: 12 | GLB36: 12 | GLC36: 12 | GLD36: 12 | GLE36: 12 | GLF36: 12 | GLG36: 12 | GLH36: 12 | GLI36: 12 | GLJ36: 12 | GLK36: 12 | GLL36: 12 | GLM36: 12 | GLN36: 12 | GLO36: 12 | GLP36: 12 | GLQ36: 12 | GLR36: 12 | GLS36: 12 | GLT36: 12 | GLU36: 12 | GLV36: 12 | GLW36: 12 | GLX36: 12 | GLY36: 12 | GLZ36: 12 | GMA36: 12 | GMB36: 12 | GMC36: 12 | GMD36: 12 | GME36: 12 | GMF36: 12 | GMG36: 12 | GMH36: 12 | GMI36: 12 | GMJ36: 12 | GMK36: 12 | GML36: 12 | GMM36: 12 | GMN36: 12 | GMO36: 12 | GMP36: 12 | GMQ36: 12 | GMR36: 12 | GMS36: 12 | GMT36: 12 | GMU36: 12 | GMV36: 12 | GMW36: 12 | GMX36: 12 | GMY36: 12 | GMZ36: 12 | GNA36: 12 | GNB36: 12 | GNC36: 12 | GND36: 12 | GNE36: 12 | GNF36: 12 | GNG36: 12 | GNH36: 12 | GNI36: 12 | GNJ36: 12 | GNK36: 12 | GNL36: 12 | GNM36: 12 | GNN36: 12 | GNO36: 12 | GNP36: 12 | GNQ36: 12 | GNR36: 12 | GNS36: 12 | GNT36: 12 | GNU36: 12 | GNV36: 12 | GNW36: 12 | GNX36: 12 | GNY36: 12 | GNZ36: 12 | GOA36: 12 | GOB36: 12 | GOC36: 12 | GOD36: 12 | GOE36: 12 | GOF36: 12 | GOG36: 12 | GOH36: 12 | GOI36: 12 | GOJ36: 12 | GOK36: 12 | GOL36: 12 | GOM36: 12 | GON36: 12 | GOO36: 12 | GOP36: 12 | GOQ36: 12 | GOR36: 12 | GOS36: 12 | GOT36: 12 | GOU36: 12 | GOV36: 12 | GOW36: 12 | GOX36: 12 | GOY36: 12 | GOZ36: 12 | GPA36: 12 | GPB36: 12 | GPC36: 12 | GPD36: 12 | GPE36: 12 | GPF36: 12 | GPG36: 12 | GPH36: 12 | GPI36: 12 | GPJ36: 12 | GPK36: 12 | GPL36: 12 | GPM36: 12 | GPN36: 12 | GPO36: 12 | GPP36: 12 | GPQ36: 12 | GPR36: 12 | GPS36: 12 | GPT36: 12 | GPU36: 12 | GPV36: 12 | GPW36: 12 | GPX36: 12 | GPY36: 12 | GPZ36: 12 | GQA36: 12 | GQB36: 12 | GQC36: 12 | GQD36: 12 | GQE36: 12 | GQF36: 12 | GQG36: 12 | GQH36: 12 | GQI36: 12 | GQJ36: 12 | GQK36: 12 | GQL36: 12 | GQM36: 12 | GQN36: 12 | GQO36: 12 | GQP36: 12 | GQQ36: 12 | GQR36: 12 | GQS36: 12 | GQT36: 12 | GQU36: 12 | GQV36: 12 | GQW36: 12 | GQX36: 12 | GQY36: 12 | GQZ36: 12 | GRA36: 12 | GRB36: 12 | GRC36: 12 | GRD36: 12 | GRE36: 12 | GRF36: 12 | GRG36: 12 | GRH36: 12 | GRI36: 12 | GRJ36: 12 | GRK36: 12 | GRL36: 12 | GRM36: 12 | GRN36: 12 | GRO36: 12 | GRP36: 12 | GRQ36: 12 | GRR36: 12 | GRS36: 12 | GRT36: 12 | GRU36: 12 | GRV36: 12 | GRW36: 12 | GRX36: 12 | GRY36: 12 | GRZ36: 12 | GSA36: 12 | GSB36: 12 | GSC36: 12 | GSD36: 12 | GSE36: 12 | GSF36: 12 | GSG36: 12 | GSH36: 12 | GSI36: 12 | GSJ36: 12 | GSK36: 12 | GSL36: 12 | GSM36: 12 | GSN36: 12 | GSO36: 12 | GSP36: 12 | GSQ36: 12 | GSR36: 12 | GSS36: 12 | GST36: 12 | GSU36: 12 | GSV36: 12 | GSW36: 12 | GSX36: 12 | GSY36: 12 | GSZ36: 12 | GTA36: 12 | GTB36: 12 | GTC36: 12 | GTD36: 12 | GTE36: 12 | GTF36: 12 | GTG36: 12 | GTH36: 12 | GTI36: 12 | GTJ36: 12 | GTK36: 12 | GTL36: 12 | GTM36: 12 | GTN36: 12 | GTO36: 12 | GTP36: 12 | GTQ36: 12 | GTR36: 12 | GTS36: 12 | GTT36: 12 | GTU36: 12 | GTV36: 12 | GTW36: 12 | GTX36: 12 | GTY36: 12 | GTZ36: 12 | GUA36: 12 | GUB36: 12 | GUC36: 12 | GUD36: 12 | GUE36: 12 | GUF36: 12 | GUG36: 12 | GUH36: 12 | GUI36: 12 | GUJ36: 12 | GUK36: 12 | GUL36: 12 | GUM36: 12 | GUN36: 12 | GUO36: 12 | GUP36: 12 | GUQ36: 12 | GUR36: 12 | GUS36: 12 | GUT36: 12 | GUU36: 12 | GUV36: 12 | GUW36: 12 | GUX36: 12 | GUY36: 12 | GUZ36: 12 | GVA36: 12 | GVB36: 12 | GVC36: 12 | GVD36: 12 | GVE36: 12 | GVF36: 12 | GVG36: 12 | GVH36: 12 | GVI36: 12 | GVJ36: 12 | GVK36: 12 | GVL36: 12 | GVM36: 12 | GVN36: 12 | GVO36: 12 | GVP36: 12 | GVQ36: 12 | GVR36: 12 | GVS36: 12 | GVT36: 12 | GVU36: 12 | GVV36: 12 | GVW36: 12 | GVX36: 12 | GVY36: 12 | GVZ36: 12 | GWA36: 12 | GWB36: 12 | GWC36: 12 | GWD36: 12 | GWE36: 12 | GWF36: 12 | GWG36: 12 | GWH36: 12 | GWI36: 12 | GWJ36: 12 | GWK36: 12 | GWL36: 12 | GWM36: 12 | GWN36: 12 | GWO36: 12 | GWP36: 12 | GWQ36: 12 | GWR36: 12 | GWS36: 12 | GWT36: 12 | GWU36: 12 | GWV36: 12 | GWW36: 12 | GWX36: 12 | GWY36: 12 | GWZ36: 12 | GXA36: 12 | GXB36: 12 | GXC36: 12 | GXD36: 12 | GXE36: 12 | GXF36: 12 | GXG36: 12 | GXH36: 12 | GXI36: 12 | GXJ36: 12 | GXK36: 12 | GXL36: 12 | GXM36: 12 | GXN36: 12 | GXO36: 12 | GXP36: 12 | GXQ36: 12 | GXR36: 12 | GXS36: 12 | GXT36: 12 | GXU36: 12 | GXV36: 12 | GXW36: 12 | GXX36: 12 | GXY36: 12 | GXZ36: 12 | GYA36: 12 | GYB36: 12 | GYC36: 12 | GYD36: 12 | GYE36: 12 | GYF36: 12 | GYG36: 12 | GYH36: 12 | GYI36: 12 | GYJ36: 12 | GYK36: 12 | GYL36: 12 | GYM36: 12 | GYN36: 12 | GYO36: 12 | GYP36: 12 | GYQ36: 12 | GYR36: 12 | GYS36: 12 | GYT36: 12 | GYU36: 12 | GYV36: 12 | GYW36: 12 | GYX36: 12 | GYY36: 12 | GYZ36: 12 | GZA36: 12 | GZB36: 12 | GZC36: 12 | GZD36: 12 | GZE36: 12 | GZF36: 12 | GZG36: 12 | GZH36: 12 | GZI36: 12 | GZJ36: 12 | GZK36: 12 | GZL36: 12 | GZM36: 12 | GZN36: 12 | GZO36: 12 | GZP36: 12 | GZQ36: 12 | GZR36: 12 | GZS36: 12 | GZT36: 12 | GZU36: 12 | GZV36: 12 | GZW36: 12 | GZX36: 12 | GZY36: 12 | GZZ36: 12 | HAA36: 12 | HAB36: 12 | HAC36: 12 | HAD36: 12 | HAE36: 12 | HAF36: 12 | HAG36: 12 | HAH36: 12 | HAI36: 12 | HAJ36: 12 | HAK36: 12 | HAL36: 12 | HAM36: 12 | HAN36: 12 | HAO36: 12 | HAP36: 12 | HAQ36: 12 | HAR36: 12 | HAS36: 12 | HAT36: 12 | HAU36: 12 | HAV36: 12 | HAW36: 12 | HAX36: 12 | HAY36: 12 | HAZ36: 12 | HBA36: 12 | HBB36: 12 | HBC36: 12 | HBD36: 12 | HBE36: 12 | HBF36: 12 | HBG36: 12 | HBH36: 12 | HBI36: 12 | HBJ36: 12 | HBK36: 12 | HBL36: 12 | HBM36: 12 | HBN36: 12 | HBO36: 12 | HBP36: 12 | HBQ36: 12 | HBR36: 12 | HBS36: 12 | HBT36: 12 | HBU36: 12 | HBV36: 12 | HBW36: 12 | HBX36: 12 | HBY36: 12 | HBZ36: 12 | HCA36: 12 | HCB36: 12 | HCC36: 12 | HCD36: 12 | HCE36: 12 | HCF36: 12 | HCG36: 12 | HCH36: 12 | HCI36: 12 | HCJ36: 12 | HCK36: 12 | HCL36: 12 | HCM36: 12 | HCN36: 12 | HCO36: 12 | HCP36: 12 | HCQ36: 12 | HCR36: 12 | HCS36: 12 | HCT36: 12 | HCU36: 12 | HCV36: 12 | HCW36: 12 | HCX36: 12 | HCY36: 12 | HCZ36: 12 | HDA36: 12 | HDB36: 12 | HDC36: 12 | HDD36: 12 | HDE36: 12 | HDF36: 12 | HDG36: 12 | HDH36: 12 | HDI36: 12 | HDJ36: 12 | HDK36: 12 | HDL36: 12 | HDM36: 12 | HDN36: 12 | HDO36: 12 | HDP36: 12 | HDQ36: 12 | HDR36: 12 | HDS36: 12 | HDT36: 12 | HDU36: 12 | HDV36: 12 | HDW36: 12 | HDX36: 12 | HDY36: 12 | HDZ36: 12 | HEA36: 12 | HEB36: 12 | HEC36: 12 | HED36: 12 | HEE36: 12 | HEF36: 12 | HEG36: 12 | HEH36: 12 | HEI36: 12 | HEJ36: 12 | HEK36: 12 | HEL36: 12 | HEM36: 12 | HEN36: 12 | HEO36: 12 | HEP36: 12 | HEQ36: 12 | HER36: 12 | HES36: 12 | HET36: 12 | HEU36: 12 | HEV36: 12 | HEW36: 12 | HEX36: 12 | HEY36: 12 | HEZ36: 12 | HFA36: 12 | HFB36: 12 | HFC36: 12 | HFD36: 12 | HFE36: 12 | HFF36: 12 | HFG36: 12 | HFH36: 12 | HFI36: 12 | HFJ36: 12 | HFK36: 12 | HFL36: 12 | HFM36: 12 | HFN36: 12 | HFO36: 12 | HFP36: 12 | HFQ36: 12 | HFR36: 12 | HFS36: 12 | HFT36: 12 | HFU36: 12 | HFV36: 12 | HFW36: 12 | HFX36: 12 | HFY36: 12 | HFZ36: 12 | HGA36: 12 | HGB36: 12 | HGC36: 12 | HGD36: 12 | HGE36: 12 | HGF36: 12 | HGG36: 12 | HGH36: 12 | HGI36: 12 | HGJ36: 12 | HGK36: 12 | HGL36: 12 | HGM36: 12 | HGN36: 12 | HGO36: 12 | HGP36: 12 | HGQ36: 12 | HGR36: 12 | HGS36: 12 | HGT36: 12 | HGU36: 12 | HGV36: 12 | HGW36: 12 | HGX36: 12 | HGY36: 12 | HGZ36: 12 | HHA36: 12 | HHB36: 12 | HHC36: 12 | HHD36: 12 | HHE36: 12 | HHF36: 12 | HHG36: 12 | HHH36: 12 | HHI36: 12 | HHJ36: 12 | HHK36: 12 | HHL36: 12 | HHM36: 12 | HHN36: 12 | HHO36: 12 | HHP36: 12 | HHQ36: 12 | HHR36: 12 | HHS36: 12 | HHT36: 12 | HHU36: 12 | HHV36: 12 | HHW36: 12 | HHX36: 12 | HHY36: 12 | HHZ36: 12 | HIA36: 12 | HIB36: 12 | HIC36: 12 | HID36: 12 | HIE36: 12 | HIF36: 12 | HIG36: 12 | HIH36: 12 | HII36: 12 | HIJ36: 12 | HIK36: 12 | HIL36: 12 | HIM36: 12 | HIN36: 12 | HIO36: 12 | HIP36: 12 | HIQ36: 12 | HIR36: 12 | HIS36: 12 | HIT36: 12 | HIU36: 12 | HIV36: 12 | HIW36: 12 | HIX36: 12 | HIY36: 12 | HIZ36: 12 | HJA36: 12 | HJB36: 12 | HJC36: 12 | HJD36: 12 | HJE36: 12 | HJF36: 12 | HJG36: 12 | HJH36: 12 | HJI36: 12 | HJJ36: 12 | HJK36: 12 | HJL36: 12 | HJM36: 12 | HJN36: 12 | HJO36: 12 | HJP36: 12 | HJQ36: 12 | HJR36: 12 | HJS36: 12 | HJT36: 12 | HJU36: 12 | HJV36: 12 | HJW36: 12 | HJX36: 12 | HJY36: 12 | HJZ36: 12 | HKA36: 12 | HKB36: 12 | HKC36: 12 | HKD36: 12 | HKE36: 12 | HKF36: 12 | HKG36: 12 | HKH36: 12 | HKI36: 12 | HKJ36: 12 | HKK36: 12 | HKL36: 12 | HKM36: 12 | HKN36: 12 | HKO36: 12 | HKP36: 12 | HKQ36: 12 | HKR36: 12 | HKS36: 12 | HKT36: 12 | HKU36: 12 | HKV36: 12 | HKW36: 12 | HKX36: 12 | HKY36: 12 | HKZ36: 12 | HLA36: 12 | HLB36: 12 | HLC36: 12 | HLD36: 12 | HLE36: 12 | HLF36: 12 | HLG36: 12 | HLH36: 12 | HLI36: 12 | HLJ36: 12 | HLK36: 12 | HLL36: 12 | HLM36: 12 | HLN36: 12 | HLO36: 12 | HLP36: 12 | HLQ36: 12 | HLR36: 12 | HLS36: 12 | HLT36: 12 | HLU36: 12 | HLV36: 12 | HLW36: 12 | HLX36: 12 | HLY36: 12 | HLZ36: 12 | HMA36: 12 | HMB36: 12 | HMC36: 12 | HMD36: 12 | HME36: 12 | HMF36: 12 | HMG36: 12 | HMH36: 12 | HMI36: 12 | HMJ36: 12 | HMK36: 12 | HML36: 12 | HMM36: 12 | HMN36: 12 | HMO36: 12 | HMP36: 12 | HMQ36: 12 | HMR36: 12 | HMS36: 12 | HMT36: 12 | HMU36: 12 | HMV36: 12 | HMW36: 12 | HMX36: 12 | HMY36: 12 | HMZ36: 12 | HNA36: 12 | HNB36: 12 | HNC36: 12 | HND36: 12 | HNE36: 12 | HNF36: 12 | HNG36: 12 | HNH36: 12 | HNI36: 12 | HNJ36: 12 | HNK36: 12 | HNL36: 12 | HNM36: 12 | HNN36: 12 | HNO36: 12 | HNP36: 12 | HNQ36: 12 | HNR36: 12 | HNS36: 12 | HNT36: 12 | HNU36: 12 | HNV36: 12 | HNW36: 12 | HNX36: 12 | HNY36: 12 | HNZ36: 12 | HOA36: 12 | HOB36: 12 | HOC36: 12 | HOD36: 12 | HOE36: 12 | HOF36: 12 | HOG36: 12 | HOH36: 12 | HOI36: 12 | HOJ36: 12 | HOK36: 12 | HOL36: 12 | HOM36: 12 | HON36: 12 | HOO36: 12 | HOP36: 12 | HOQ36: 12 | HOR36: 12 | HOS36: 12 | HOT36: 12 | HOU36: 12 | HOV36: 12 | HOW36: 12 | HOX36: 12 | HOY36: 12 | HOZ36: 12 | HPA36: 12 | HPB36: 12 | HPC36: 12 | HPD36: 12 | HPE36: 12 | HPF36: 12 | HPG36: 12 | HPH36: 12 | HPI36: 12 | HPJ36: 12 | HPK36: 12 | HPL36: 12 | HPM36: 12 | HPN36: 12 | HPO36: 12 | HPP36: 12 | HPQ36: 12 | HPR36: 12 | HPS36: 12 | HPT36: 12 | HPU36: 12 | HPV36: 12 | HPW36: 12 | HPX36: 12 | HPY36: 12 | HPZ36: 12 | HQA36: 12 | HQB36: 12 | HQC36: 12 | HQD36: 12 | HQE36: 12 | HQF36: 12 | HQG36: 12 | HQH36: 12 | HQI36: 12 | HQJ36: 12 | HQK36: 12 | HQL36: 12 | HQM36: 12 | HQN36: 12 | HQO36: 12 | HQP36: 12 | HQQ36: 12 | HQR36: 12 | HQS36: 12 | HQT36: 12 | HQU36: 12 | HQV36: 12 | HQW36: 12 | HQX36: 12 | HQY36: 12 | HQZ36: 12 | HRA36: 12 | HRB36: 12 | HRC36: 12 | HRD36: 12 | HRE36: 12 | HRF36: 12 | HRG36: 12 | HRH36: 12 | HRI36: 12 | HRJ36: 12 | HRK36: 12 | HRL36: 12 | HRM36: 12 | HRN36: 12 | HRO36: 12 | HRP36: 12 | HRQ36: 12 | HRR36: 12 | HRS36: 12 | HRT36: 12 | HRU36: 12 | HRV36: 12 | HRW36: 12 | HRX36: 12 | HRY36: 12 | HRZ36: 12 | HSA36: 12 | HSB36: 12 | HSC36: 12 | HSD36: 12 | HSE36: 12 | HSF36: 12 | HSG36: 12 | HSH36: 12 | HSI36: 12 | HSJ36: 12 | HSK36: 12 | HSL36: 12 | HSM36: 12 | HSN36: 12 | HSO36: 12 | HSP36: 12 | HSQ36: 12 | HSR36: 12 | HSS36: 12 | HST36: 12 | HSU36: 12 | HSV36: 12 | HSW36: 12 | HSX36: 12 | HSY36: 12 | HSZ36: 12 | HTA36: 12 | HTB36: 12 | HTC36: 12 | HTD36: 12 | HTE36: 12 | HTF36: 12 | HTG36: 12 | HTH36: 12 | HTI36: 12 | HTJ36: 12 | HTK36: 12 | HTL36: 12 | HTM36: 12 | HTN36: 12 | HTO36: 12 | HTP36: 12 | HTQ36: 12 | HTR36: 12 | HTS36: 12 | HTT36: 12 | HTU36: 12 | HTV36: 12 | HTW36: 12 | HTX36: 12 | HTY36: 12 | HTZ36: 12 | HUA36: 12 | HUB36: 12 | HUC36: 12 | HUD36: 12 | HUE36: 12 | HUF36: 12 | HUG36: 12 | HUH36: 12 | HUI36: 12 | HUJ36: 12 | HUK36: 12 | HUL36: 12 | HUM36: 12 | HUN36: 12 | HUO36: 12 | HUP36: 12 | HUQ36: 12 | HUR36: 12 | HUS36: 12 | HUT36: 12 | HUU36: 12 | HUV36: 12 | HUW36: 12 | HUX36: 12 | HUY36: 12 | HUZ36: 12 | HVA36: 12 | HVB36: 12 | HVC36: 12 | HVD36: 12 | HVE36: 12 | HVF36: 12 | HVG36: 12 | HVH36: 12 | HVI36: 12 | HVJ36: 12 | HVK36: 12 | HVL36: 12 | HVM36: 12 | HVN36: 12 | HVO36: 12 | HVP36: 12 | HVQ36: 12 | HVR36: 12 | HVS36: 12 | HVT36: 12 | HVU36: 12 | HVV36: 12 | HVW36: 12 | HVX36: 12 | HVY36: 12 | HVZ36: 12 | HWA36: 12 | HWB36: 12 | HWC36: 12 | HWD36: 12 | HWE36: 12 | HWF36: 12 | HWG36: 12 | HWH36: 12 | HWI36: 12 | HWJ36: 12 | HWK36: 12 | HWL36: 12 | HWM36: 12 | HWN36: 12 | HWO36: 12 | HWP36: 12 | HWQ36: 12 | HWR36: 12 | HWS36: 12 | HWT36: 12 | HWU36: 12 | HWV36: 12 | HWW36: 12 | HWX36: 12 | HWY36: 12 | HWZ36: 12 | HXA36: 12 | HXB36: 12 | HXC36: 12 | HXD36: 12 | HXE36: 12 | HXF36: 12 | HXG36: 12 | HXH36: 12 | HXI36: 12 | HXJ36: 12 | HXK36: 12 | HXL36: 12 | HXM36: 12 | HXN36: 12 | HXO36: 12 | HXP36: 12 | HXQ36: 12 | HXR36: 12 | HXS36: 12 | HXT36: 12 | HXU36: 12 | HXV36: 12 | HXW36: 12 | HXX36: 12 | HXY36: 12 | HXZ36: 12 | HYA36: 12 | HYB36: 12 | HYC36: 12 | HYD36: 12 | HYE36: 12 | HYF36: 12 | HYG36: 12 | HYH36: 12 | HYI36: 12 | HYJ36: 12 | HYK36: 12 | HYL36: 12 | HYM36: 12 | HYN36: 12 | HYO36: 12 | HYP36: 12 | HYQ36: 12 | HYR36: 12 | HYS36: 12 | HYT36: 12 | HYU36: 12 | HYV36: 12 | HYW36: 12 | HYX36: 12 | HYY36: 12 | HYZ36: 12 | HZA36: 12 | HZB36: 12 | HZC36: 12 | HZD36: 12 | HZE36: 12 | HZF36: 12 | HZG36: 12 | HZH36: 12 | HZI36: 12 | HZJ36: 12 | HZK36: 12 | HZL36: 12 | HZM36: 12 | HZN36: 12 | HZO36: 12 | HZP36: 12 | HZQ36: 12 | HZR36: 12 | HZS36: 12 | HZT36: 12 | HZU36: 12 | HZV36: 12 | HZW36: 12 | HZX36: 12 | HZY36: 12 | HZZ36: 12 | IAA36: 12 | IAB36: 12 | IAC36: 12 | IAD36: 12 | IAE36: 12 | IAF36: 12 | IAG36: 12 | IAH36: 12 | IAI36: 12 | IAJ36: 12 | IAK36: 12 | IAL36: 12 | IAM36: 12 | IAN36: 12 | IAO36: 12 | IAP36: 12 | IAQ36: 12 | IAR36: 12 | IAS36: 12 | IAT36: 12 | IAU36: 12 | IAV36: 12 | IAW36: 12 | IAX36: 12 | IAY36: 12 | IAZ36: 12 | IBA36: 12 | IBB36: 12 | IBC36: 12 | IBD36: 12 | IBE36: 12 | IBF36: 12 | IBG36: 12 | IBH36: 12 | IBI36: 12 | IBJ36: 12 | IBK36: 12 | IBL36: 12 | IBM36: 12 | IBN36: 12 | IBO36: 12 | IBP36: 12 | IBQ36: 12 | IBR36: 12 | IBS36: 12 | IBT36: 12 | IBU36: 12 | IBV36: 12 | IBW36: 12 | IBX36: 12 | IBY36: 12 | IBZ36: 12 | ICA36: 12 | ICB36: 12 | ICC36: 12 | ICD36: 12 | ICE36: 12 | ICF36: 12 | ICG36: 12 | ICH36: 12 | ICI36: 12 | ICJ36: 12 | ICK36: 12 | ICL36: 12 | ICM36: 12 | ICN36: 12 | ICO36: 12 | ICP36: 12 | ICQ36: 12 | ICR36: 12 | ICS36: 12 | ICT36: 12 | ICU36: 12 | ICV36: 12 | ICW36: 12 | ICX36: 12 | ICY36: 12 | ICZ36: 12 | IDA36: 12 | IDB36: 12 | IDC36: 12 | IDD36: 12 | IDE36: 12 | IDF36: 12 | IDG36: 12 | IDH36: 12 | IDI36: 12 | IDJ36: 12 | IDK36: 12 | IDL36: 12 | IDM36: 12 | IDN36: 12 | IDO36: 12 | IDP36: 12 | IDQ36: 12 | IDR36: 12 | IDS36: 12 | IDT36: 12 | IDU36: 12 | IDV36: 12 | IDW36: 12 | IDX36: 12 | IDY36: 12 | IDZ36: 12 | IEA36: 12 | IEB36: 12 | IEC36: 12 | IED36: 12 | IEE36: 12 | IEF36: 12 | IEG36: 12 | IEH36: 12 | IEI36: 12 | IEJ36: 12 | IEK36: 12 | IEL36: 12 | IEM36: 12 | IEN36: 12 | IEO36: 12 | IEP36: 12 | IEQ36: 12 | IER36: 12 | IES36: 12 | IET36: 12 | IEU36: 12 | IEV36: 12 | IEW36: 12 | IEX36: 12 | IEY36: 12 | IEZ36: 12 | IFA36: 12 | IFB36: 12 | IFC36: 12 | IFD36: 12 | IFE36: 12 | IFF36: 12 | IFG36: 12 | IFH36: 12 | IFI36: 12 | IFJ36: 12 | IFK36: 12 | IFL36: 12 | IFM36: 12 | IFN36: 12 | IFO36: 12 | IFP36: 12 | IFQ36: 12 | IFR36: 12 | IFS36: 12 | IFT36: 12 | IFU36: 12 | IFV36: 12 | IFW36: 12 | IFX36: 12 | IFY36: 12 | IFZ36: 12 | IGA36: 12 | IGB36: 12 | IGC36: 12 | IGD36: 12 | IGE36: 12 | IGF36: 12 | IGG36: 12 | IGH36: 12 | IGI36: 12 | IGJ36: 12 | IGK36: 12 | IGL36: 12 | IGM36: 12 | IGN36: 12 | IGO36: 12 | IGP36: 12 | IGQ36: 12 | IGR36: 12 | IGS36: 12 | IGT36: 12 | IGU36: 12 | IGV36: 12 | IGW36: 12 | IGX36: 12 | IGY36: 12 | IGZ36: 12 | IHA36: 12 | IHB36: 12 | IHC36: 12 | IHD36: 12 | IHE36: 12 | IHF36: 12 | IHG36: 12 | IHH36: 12 | IHI36: 12 | IHJ36: 12 | IHK36: 12 | IHL36: 12 | IHM36: 12 | IHN36: 12 | IHO36: 12 | IHP36: 12 | IHQ36: 12 | IHR36: 12 | IHS36: 12 | IHT36: 12 | IHU36: 12 | IHV36: 12 | IHW36: 12 | IHX36: 12 | IHY36: 12 | IHZ36: 12 | IIA36: 12 | IIB36: 12 | IIC36: 12 | IID36: 12 | IIE36: 12 | IIF36: 12 | IIG36: 12 | IIH36: 12 | III36: 12 | IIJ36: 12 | IIK36: 12 | IIL36: 12 | IIM36: 12 | IIN36: 12 | IIO36: 12 | IIP36: 12 | IIQ36: 12 | IIR36: 12 | IIS36: 12 | IIT36: 12 | IIU36: 12 | IIV36: 12 | IIW36: 12 | IIX36: 12 | IIY36: 12 | IIZ36: 12 | IJA36: 12 | IJB36: 12 | IJC36: 12 | IJD36: 12 | IJE36: 12 | IJF36: 12 | IJG36: 12 | IJH36: 12 | IJI36: 12 | IJJ36: 12 | IJK36: 12 | IJL36: 12 | IJM36: 12 | IJN36: 12 | IJO36: 12 | IJP36: 12 | IJQ36: 12 | IJR36: 12 | IJS36: 12 | IJT36: 12 | IJU36: 12 | IJV36: 12 | IJW36: 12 | IJX36: 12 | IJY36: 12 | IJZ36: 12 | IKA36: 12 | IKB36: 12 | IKC36: 12 | IKD36: 12 | IKE36: 12 | IKF36: 12 | IKG36: 12 | IKH36: 12 | IKI36: 12 | IKJ36: 12 | IKK36: 12 | IKL36: 12 | IKM36: 12 | IKN36: 12 | IKO36: 12 | IKP36: 12 | IKQ36: 12 | IKR36: 12 | IKS36: 12 | IKT36: 12 | IKU36: 12 | IKV36: 12 | IKW36: 12 | IKX36: 12 | IKY36: 12 | IKZ36: 12 | ILA36: 12 | ILB36: 12 | ILC36: 12 | ILD36: 12 | ILE36: 12 | ILF36: 12 | ILG36: 12 | ILH36: 12 | ILI36: 12 | ILJ36: 12 | ILK36: 12 | ILL36: 12 | ILM36: 12 | ILN36: 12 | ILO36: 12 | ILP36: 12 | ILQ36: 12 | ILR36: 12 | ILS36: 12 | ILT36: 12 | ILU36: 12 | ILV36: 12 | ILW36: 12 | ILX36: 12 | ILY36: 12 | ILZ36: 12 | IMA36: 12 | IMB36: 12 | IMC36: 12 | IMD36: 12 | IME36: 12 | IMF36: 12 | IMG36: 12 | IMH36: 12 | IMI36: 12 | IMJ36: 12 | IMK36: 12 | IML36: 12 | IMM36: 12 | IMN36: 12 | IMO36: 12 | IMP36: 12 | IMQ36: 12 | IMR36: 12 | IMS36: 12 | IMT36: 12 | IMU36: 12 | IMV36: 12 | IMW36: 12 | IMX36: 12 | IMY36: 12 | IMZ36: 12 | INA36: 12 | INB36: 12 | INC36: 12 | IND36: 12 | INE36: 12 | INF36: 12 | ING36: 12 | INH36: 12 | INI36: 12 | INJ36: 12 | INK36: 12 | INL36: 12 | INM36: 12 | INN36: 12 | INO36: 12 | INP36: 12 | INQ36: 12 | INR36: 12 | INS36: 12 | INT36: 12 | INU36: 12 | INV36: 12 | INW36: 12 | INX36: 12 | INY36: 12 | INZ36: 12 | IOA36: 12 | IOB36: 12 | IOC36: 12 | IOD36: 12 | IOE36: 12 | IOF36: 12 | IOG36: 12 | IOH36: 12 | IOI36: 12 | IOJ36: 12 | IOK36: 12 | IOL36: 12 | IOM36: 12 | ION36: 12 | IOO36: 12 | IOP36: 12 | IOQ36: 12 | IOR36: 12 | IOS36: 12 | IOT36: 12 | IOU36: 12 | IOV36: 12 | IOW36: 12 | IOX36: 12 | IOY36: 12 | IOZ36: 12 | IPA36: 12 | IPB36: 12 | IPC36: 12 | IPD36: 12 | IPE36: 12 | IPF36: 12 | IPG36: 12 | IPH36: 12 | IPI36: 12 | IPJ36: 12 | IPK36: 12 | IPL36: 12 | IPM36: 12 | IPN36: 12 | IPO36: 12 | IPP36: 12 | IPQ36: 12 | IPR36: 12 | IPS36: 12 | IPT36: 12 | IPU36: 12 | IPV36: 12 | IPW36: 12 | IPX36: 12 | IPY36: 12 | IPZ36: 12 | IQA36: 12 | IQB36: 12 | IQC36: 12 | IQD36: 12 | IQE36: 12 | IQF36: 12 | IQG36: 12 | IQH36: 12 | IQI36: 12 | IQJ36: 12 | IQK36: 12 | IQL36: 12 | IQM36: 12 | IQN36: 12 | IQO36: 12 | IQP36: 12 | IQQ36: 12 | IQR36: 12 | IQS36: 12 | IQT36: 12 | IQU36: 12 | IQV36: 12 | IQW36: 12 | IQX36: 12 | IQY36: 12 | IQZ36: 12 | IRA36: 12 | IRB36: 12 | IRC36: 12 | IRD36: 12 | IRE36: 12 | IRF36: 12 | IRG36: 12 | IRH36: 12 | IRI36: 12 | IRJ36: 12 | IRK36: 12 | IRL36: 12 | IRM36: 12 | IRN36: 12 | IRO36: 12 | IRP36: 12 | IRQ36: 12 | IRR36: 12 | IRS36: 12 | IRT36: 12 | IRU36: 12 | IRV36: 12 | IRW36: 12 | IRX36: 12 | IRY36: 12 | IRZ36: 12 | ISA36: 12 | ISB36: 12 | ISC36: 12 | ISD36: 12 | ISE36: 12 | ISF36: 12 | ISG36: 12 | ISH36: 12 | ISI36: 12 | ISJ36: 12 | ISK36: 12 | ISL36: 12 | ISM36: 12 | ISN36: 12 | ISO36: 12 | ISP36: 12 | ISQ36: 12 | ISR36: 12 | ISS36: 12 | IST36: 12 | ISU36: 12 | ISV36: 12 | ISW36: 12 | ISX36: 12 | ISY36: 12 | ISZ36: 12 | ITA36: 12 | ITB36: 12 | ITC36: 12 | ITD36: 12 | ITE36: 12 | ITF36: 12 | ITG36: 12 | ITH36: 12 | ITI36: 12 | ITJ36: 12 | ITK36: 12 | ITL36: 12 | ITM36: 12 | ITN36: 12 | ITO36: 12 | ITP36: 12 | ITQ36: 12 | ITR36: 12 | ITS36: 12 | ITT36: 12 | ITU36: 12 | ITV36: 12 | ITW36: 12 | ITX36: 12 | ITY36: 12 | ITZ36: 12 | IUA36: 12 | IUB36: 12 | IUC36: 12 | IUD36: 12 | IUE36: 12 | IUF36: 12 | IUG36: 12 | IUH36: 12 | IUI36: 12 | IUJ36: 12 | IUK36: 12 | IUL36: 12 | IUM36: 12 | IUN36: 12 | IUO36: 12 | IUP36: 12 | IUQ36: 12 | IUR36: 12 | IUS36: 12 | IUT36: 12 | IUU36: 12 | IUV36: 12 | IUW36: 12 | IUX36: 12 | IUY36: 12 | IUZ36: 12 | IVA36: 12 | IVB36: 12 | IVC36: 12 | IVD36: 12 | IVE36: 12 | IVF36: 12 | IVG36: 12 | IVH36: 12 | IVI36: 12 | IVJ36: 12 | IVK36: 12 | IVL36: 12 | IVM36: 12 | IVN36: 12 | IVO36: 12 | IVP36: 12 | IVQ36: 12 | IVR36: 12 | IVS36: 12 | IVT36: 12 | IVU36: 12 | IVV36: 12 | IVW36: 12 | IVX36: 12 | IVY36: 12 | IVZ36: 12 | IWA36: 12 | IWB36: 12 | IWC36: 12 | IWD36: 12 | IWE36: 12 | IWF36: 12 | IWG36: 12 | IWH36: 12 | IWI36: 12 | IWJ36: 12 | IWK36: 12 | IWL36: 12 | IWM36: 12 | IWN36: 12 | IWO36: 12 | IWP36: 12 | IWQ36: 12 | IWR36: 12 | IWS36: 12 | IWT36: 12 | IWU36: 12 | IWV36: 12 | IWW36: 12 | IWX36: 12 | IWY36: 12 | IWZ36: 12 | IXA36: 12 | IXB36: 12 | IXC36: 12 | IXD36: 12 | IXE36: 12 | IXF36: 12 | IXG36: 12 | IXH36: 12 | IXI36: 12 | IXJ36: 12 | IXK36: 12 | IXL36: 12 | IXM36: 12 | IXN36: 12 | IXO36: 12 | IXP36: 12 | IXQ36: 12 | IXR36: 12 | IXS36: 12 | IXT36: 12 | IXU36: 12 | IXV36: 12 | IXW36: 12 | IXX36: 12 | IXY36: 12 | IXZ36: 12 | IYA36: 12 | IYB36: 12 | IYC36: 12 | IYD36: 12 | IYE36: 12 | IYF36: 12 | IYG36: 12 | IYH36: 12 | IYI36: 12 | IYJ36: 12 | IYK36: 12 | IYL36: 12 | IYM36: 12 | IYN36: 12 | IYO36: 12 | IYP36: 12 | IYQ36: 12 | IYR36: 12 | IYS36: 12 | IYT36: 12 | IYU36: 12 | IYV36: 12 | IYW36: 12 | IYX36: 12 | IYY36: 12 | IYZ36: 12 | IZA36: 12 | IZB36: 12 | IZC36: 12 | IZD36: 12 | IZE36: 12 | IZF36: 12 | IZG36: 12 | IZH36: 12 | IZI36: 12 | IZJ36: 12 | IZK36: 12 | IZL36: 12 | IZM36: 12 | IZN36: 12 | IZO36: 12 | IZP36: 12 | IZQ36: 12 | IZR36: 12 | IZS36: 12 | IZT36: 12 | IZU36: 12 | IZV36: 12 | IZW36: 12 | IZX36: 12 | IZY36: 12 | IZZ36: 12 | JAA36: 12 | JAB36: 12 | JAC36: 12 | JAD36: 12 | JAE36: 12 | JAF36: 12 | JAG36: 12 | JAH36: 12 | JAI36: 12 | JAJ36: 12 | JAK36: 12 | JAL36: 12 | JAM36: 12 | JAN36: 12 | JAO36: 12 | JAP36: 12 | JAQ36: 12 | JAR36: 12 | JAS36: 12 | JAT36: 12 | JAU36: 12 | JAV36: 12 | JAW36: 12 | JAX36: 12 | JAY36: 12 | JAZ36: 12 | JBA36: 12 | JBB36: 12 | JBC36: 12 | JBD36: 12 | JBE36: 12 | JBF36: 12 | JBG36: 12 | JBH36: 12 | JBI36: 12 | JBJ36: 12 | JBK36: 12 | JBL36: 12 | JBM36: 12 | JBN36: 12 | JBO36: 12 | JBP36: 12 | JBQ36: 12 | JBR36: 12 | JBS36: 12 | JBT36: 12 | JBU36: 12 | JBV36: 12 | JBW36: 12 | JBX36: 12 | JBY36: 12 | JBZ36: 12 | JCA36: 12 | JCB36: 12 | JCC36: 12 | JCD36: 12 | JCE36: 12 | JCF36: 12 | JCG36: 12 | JCH36: 12 | JCI36: 12 | JCJ36: 12 | JCK36: 12 | JCL36: 12 | JCM36: 12 | JCN36: 12 | JCO36: 12 | JCP36: 12 | JCQ36: 12 | JCR36: 12 | JCS36: 12 | JCT36: 12 | JCU36: 12 | JCV36: 12 | JCW36: 12 | JCX36: 12 | JCY36: 12 | JCZ36: 12 | JDA36: 12 | JDB36: 12 | JDC36: 12 | JDD36: 12 | JDE36: 12 | JDF36: 12 | JDG36: 12 | JDH36: 12 | JDI36: 12 | JDJ36: 12 | JDK36: 12 | JDL36: 12 | JDM36: 12 | JDN36: 12 | JDO36: 12 | JDP36: 12 | JDQ36: 12 | JDR36: 12 | JDS36: 12 | JDT36: 12 | JDU36: 12 | JDV36: 12 | JDW36: 12 | JDX36: 12 | JDY36: 12 | JDZ36: 12 | JEA36: 12 | JEB36: 12 | JEC36: 12 | JED36: 12 | JEE36: 12 | JEF36: 12 | JEG36: 12 | JEH36: 12 | JEI36: 12 | JEJ36: 12 | JEK36: 12 | JEL36: 12 | JEM36: 12 | JEN36: 12 | JEO36: 12 | JEP36: 12 | JEQ36: 12 | JER36: 12 | JES36: 12 | JET36: 12 | JEU36: 12 | JEV36: 12 | JEW36: 12 | JEX36: 12 | JEY36: 12 | JEZ36: 12 | JFA36: 12 | JFB36: 12 | JFC36: 12 | JFD36: 12 | JFE36: 12 | JFF36: 12 | JFG36: 12 | JFH36: 12 | JFI36: 12 | JFJ36: 12 | JFK36: 12 | JFL36: 12 | JFM36: 12 | JFN36: 12 | JFO36: 12 | JFP36: 12 | JFQ36: 12 | JFR36: 12 | JFS36: 12 | JFT36: 12 | JFU36: 12 | JFV36: 12 | JFW36: 12 | JFX36: 12 | JFY36: 12 | JFZ36: 12 | JGA36: 12 | JGB36: 12 | JGC36: 12 | JGD36: 12 | JGE36: 12 | JGF36: 12 | JGG36: 12 | JGH36: 12 | JGI36: 12 | JGJ36: 12 | JGK36: 12 | JGL36: 12 | JGM36: 12 | JGN36: 12 | JGO36: 12 | JGP36: 12 | JGQ36: 12 | JGR36: 12 | JGS36: 12 | JGT36: 12 | JGU36: 12 | JGV36: 12 | JGW36: 12 | JGX36: 12 | JGY36: 12 | JGZ36: 12 | JHA36: 12 | JHB36: 12 | JHC36: 12 | JHD36: 12 | JHE36: 12 | JHF36: 12 | JHG36: 12 | JHH36: 12 | JHI36: 12 | JHJ36: 12 | JHK36: 12 | JHL36: 12 | JHM36: 12 | JHN36: 12 | JHO36: 12 | JHP36: 12 | JHQ36: 12 | JHR36: 12 | JHS36: 12 | JHT36: 12 | JHU36: 12 | JHV36: 12 | JHW36: 12 | JHX36: 12 | JHY36: 12 | JHZ36: 12 | JIA36: 12 | JIB36: 12 | JIC36: 12 | JID36: 12 | JIE36: 12 | JIF36: 12 | JIG36: 12 | JIH36: 12 | JII36: 12 | JIJ36: 12 | JIK36: 12 | JIL36: 12 | JIM36: 12 | JIN36: 12 | JIO36: 12 | JIP36: 12 | JIQ36: 12 | JIR36: 12 | JIS36: 12 | JIT36: 12 | JIU36: 12 | JIV36: 12 | JIW36: 12 | JIX36: 12 | JIY36: 12 | JIZ36: 12 | JJA36: 12 | JJB36: 12 | JJC36: 12 | JJD36: 12 | JJE36: 12 | JJF36: 12 | JJG36: 12 | JJH36: 12 | JJI36: 12 | JJJ36: 12 | JJK36: 12 | JJL36: 12 | JJM36: 12 | JJN36: 12 | JJO36: 12 | JJP36: 12 | JJQ36: 12 | JJR36: 12 | JJS36: 12 | JJT36: 12 | JJU36: 12 | JJV36: 12 | JJW36: 12 | JJX36: 12 | JJY36: 12 | JJZ36: 12 | JKA36: 12 | JKB36: 12 | JKC36: 12 | JKD36: 12 | JKE36: 12 | JKF36: 12 | JKG36: 12 | JKH36: 12 | JKI36: 12 | JKJ36: 12 | JKK36: 12 | JKL36: 12 | JKM36: 12 | JKN36: 12 | JKO36: 12 | JKP36: 12 | JKQ36: 12 | JKR36: 12 | JKS36: 12 | JKT36: 12 | JKU36: 12 | JKV36: 12 | JKW36: 12 | JKX36: 12 | JKY36: 12 | JKZ36: 12 | JLA36: 12 | JLB36: 12 | JLC36: 12 | JLD36: 12 | JLE36: 12 | JLF36: 12 | JLG36: 12 | JLH36: 12 | JLI36: 12 | JLJ36: 12 | JLK36: 12 | JLL36: 12 | JLM36: 12 | JLN36: 12 | JLO36: 12 | JLP36: 12 | JLQ36: 12 | JLR36: 12 | JLS36: 12 | JLT36: 12 | JLU36: 12 | JLV36: 12 | JLW36: 12 | JLX36: 12 | JLY36: 12 | JLZ36: 12 | JMA36: 12 | JMB36: 12 | JMC36: 12 | JMD36: 12 | JME36: 12 | JMF36: 12 | JMG36: 12 | JMH36: 12 | JMI36: 12 | JMJ36: 12 | JMK36: 12 | JML36: 12 | JMM36: 12 | JMN36: 12 | JMO36: 12 | JMP36: 12 | JMQ36: 12 | JMR36: 12 | JMS36: 12 | JMT36: 12 | JMU36: 12 | JMV36: 12 | JMW36: 12 | JMX36: 12 | JMY36: 12 | JMZ36: 12 | JNA36: 12 | JNB36: 12 | JNC36: 12 | JND36: 12 | JNE36: 12 | JNF36: 12 | JNG36: 12 | JNH36: 12 | JNI36: 12 | JNJ36: 12 | JNK36: 12 | JNL36: 12 | JNM36: 12 | JNN36: 12 | JNO36: 12 | JNP36: 12 | JNQ36: 12 | JNR36: 12 | JNS36: 12 | JNT36: 12 | JNU36: 12 | JNV36: 12 | JNW36: 12 | JNX36: 12 | JNY36: 12 | JNZ36: 12 | JOA36: 12 | JOB36: 12 | JOC36: 12 | JOD36: 12 | JOE36: 12 | JOF36: 12 | JOG36: 12 | JOH36: 12 | JOI36: 12 | JOJ36: 12 | JOK36: 12 | JOL36: 12 | JOM36: 12 | JON36: 12 | JOO36: 12 | JOP36: 12 | JOQ36: 12 | JOR36: 12 | JOS36: 12 | JOT36: 12 | JOU36: 12 | JOV36: 12 | JOW36: 12 | JOX36: 12 | JOY36: 12 | JOZ36: 12 | JPA36: 12 | JPB36: 12 | JPC36: 12 | JPD36: 12 | JPE36: 12 | JPF36: 12 | JPG36: 12 | JPH36: 12 | JPI36: 12 | JPJ36: 12 | JPK36: 12 | JPL36: 12 | JPM36: 12 | JPN36: 12 | JPO36: 12 | JPP36: 12 | JPQ36: 12 | JPR36: 12 | JPS36: 12 | JPT36: 12 | JPU36: 12 | JPV36: 12 | JPW36: 12 | JPX36: 12 | JPY36: 12 | JPZ36: 12 | JQA36: 12 | JQB36: 12 | JQC36: 12 | JQD36: 12 | JQE36: 12 | JQF36: 12 | JQG36: 12 | JQH36: 12 | JQI36: 12 | JQJ36: 12 | JQK36: 12 | JQL36: 12 | JQM36: 12 | JQN36: 12 | JQO36: 12 | JQP36: 12 | JQQ36: 12 | JQR36: 12 | JQS36: 12 | JQT36: 12 | JQU36: 12 | JQV36: 12 | JQW36: 12 | JQX36: 12 | JQY36: 12 | JQZ36: 12 | JRA36: 12 | JRB36: 12 | JRC36: 12 | JRD36: 12 | JRE36: 12 | JRF36: 12 | JRG36: 12 | JRH36: 12 | JRI36: 12 | JRJ36: 12 | JRK36: 12 | JRL36: 12 | JRM36: 12 | JRN36: 12 | JRO36: 12 | JRP36: 12 | JRQ36: 12 | JRR36: 12 | JRS36: 12 | JRT36: 12 | JRU36: 12 | JRV36: 12 | JRW36: 12 | JRX36: 12 | JRY36: 12 | JRZ36: 12 | JSA36: 12 | JSB36: 12 | JSC36: 12 | JSD36: 12 | JSE36: 12 | JSF36: 12 | JSG36: 12 | JSH36: 12 | JSI36: 12 | JSJ36: 12 | JSK36: 12 | JSL36: 12 | JSM36: 12 | JSN36: 12 | JSO36: 12 | JSP36: 12 | JSQ36: 12 | JSR36: 12 | JSS36: 12 | JST36: 12 | JSU36: 12 | JSV36: 12 | JSW36: 12 | JSX36: 12 | JSY36: 12 | JSZ36: 12 | JTA36: 12 | JTB36: 12 | JTC36: 12 | JTD36: 12 | JTE36: 12 | JTF36: 12 | JTG36: 12 | JTH36: 12 | JTI36: 12 | JTJ36: 12 | JTK36: 12 | JTL36: 12 | JTM36: 12 | JTN36: 12 | JTO36: 12 | JTP36: 12 | JTQ36: 12 | JTR36: 12 | JTS36: 12 | JTT36: 12 | JTU36: 12 | JTV36: 12 | JTW36: 12 | JTX36: 12 | JTY36: 12 | JTZ36: 12 | JUA36: 12 | JUB36: 12 | JUC36: 12 | JUD36: 12 | JUE36: 12 | JUF36: 12 | JUG36: 12 | JUH36: 12 | JUI36: 12 | JUJ36: 12 | JUK36: 12 | JUL36: 12 | JUM36: 12 | JUN36: 12 | JUO36: 12 | JUP36: 12 | JUQ36: 12 | JUR36: 12 | JUS36: 12 | JUT36: 12 | JUU36: 12 | JUV36: 12 | JUW36: 12 | JUX36: 12 | JUY36: 12 | JUZ36: 12 | JVA36: 12 | JVB36: 12 | JVC36: 12 | JVD36: 12 | JVE36: 12 | JVF36: 12 | JVG36: 12 | JVH36: 12 | JVI36: 12 | JVJ36: 12 | JVK36: 12 | JVL36: 12 | JVM36: 12 | JVN36: 12 | JVO36: 12 | JVP36: 12 | JVQ36: 12 | JVR36: 12 | JVS36: 12 | JVT36: 12 | JVU36: 12 | JVV36: 12 | JVW36: 12 | JVX36: 12 | JVY36: 12 | JVZ36: 12 | JWA36: 12 | JWB36: 12 | JWC36: 12 | JWD36: 12 | JWE36: 12 | JWF36: 12 | JWG36: 12 | JWH36: 12 | JWI36: 12 | JWJ36: 12 | JWK36: 12 | JWL36: 12 | JWM36: 12 | JWN36: 12 | JWO36: 12 | JWP36: 12 | JWQ36: 12 | JWR36: 12 | JWS36: 12 | JWT36: 12 | JWU36: 12 | JWV36: 12 | JWW36: 12 | JWX36: 12 | JWY36: 12 | JWZ36: 12 | JXA36: 12 | JXB36: 12 | JXC36: 12 | JXD36: 12 | JXE36: 12 | JXF36: 12 | JXG36: 12 | JXH36: 12 | JXI36: 12 | JXJ36: 12 | JXK36: 12 | JXL36: 12 | JXM36: 12 | JXN36: 12 | JXO36: 12 | JXP36: 12 | JXQ36: 12 | JXR36: 12 | JXS36: 12 | JXT36: 12 | JXU36: 12 | JXV36: 12 | JXW36: 12 | JXX36: 12 | JXY36: 12 | JXZ36: 12 | JYA36: 12 | JYB36: 12 | JYC36: 12 | JYD36: 12 | JYE36: 12 | JYF36: 12 | JYG36: 12 | JYH36: 12 | JYI36: 12 | JYJ36: 12 | JYK36: 12 | JYL36: 12 | JYM36: 12 | JYN36: 12 | JYO36: 12 | JYP36: 12 | JYQ36: 12 | JYR36: 12 | JYS36: 12 | JYT36: 12 | JYU36: 12 | JYV36: 12 | JYW36: 12 | JYX36: 12 | JYY36: 12 | JYZ36: 12 | JZA36: 12 | JZB36: 12 | JZC36: 12 | JZD36: 12 | JZE36: 12 | JZF36: 12 | JZG36: 12 | JZH36: 12 | JZI36: 12 | JZJ36: 12 | JZK36: 12 | JZL36: 12 | JZM36: 12 | JZN36: 12 | JZO36: 12 | JZP36: 12 | JZQ36: 12 | JZR36: 12 | JZS36: 12 | JZT36: 12 | JZU36: 12 | JZV36: 12 | JZW36: 12 | JZX36: 12 | JZY36: 12 | JZZ36: 12 | KAA36: 12 | KAB36: 12 | KAC36: 12 | KAD36: 12 | KAE36: 12 | KAF36: 12 | KAG36: 12 | KAH36: 12 | KAI36: 12 | KAJ36: 12 | KAK36: 12 | KAL36: 12 | KAM36: 12 | KAN36: 12 | KAO36: 12 | KAP36: 12 | KAQ36: 12 | KAR36: 12 | KAS36: 12 | KAT36: 12 | KAU36: 12 | KAV36: 12 | KAW36: 12 | KAX36: 12 | KAY36: 12 | KAZ36: 12 | KBA36: 12 | KBB36: 12 | KBC36: 12 | KBD36: 12 | KBE36: 12 | KBF36: 12 | KBG36: 12 | KBH36: 12 | KBI36: 12 | KBJ36: 12 | KBK36: 12 | KBL36: 12 | KBM36: 12 | KBN36: 12 | KBO36: 12 | KBP36: 12 | KBQ36: 12 | KBR36: 12 | KBS36: 12 | KBT36: 12 | KBU36: 12 | KBV36: 12 | KBW36: 12 | KBX36: 12 | KBY36: 12 | KBZ36: 12 | KCA36: 12 | KCB36: 12 | KCC36: 12 | KCD36: 12 | KCE36: 12 | KCF36: 12 | KCG36: 12 | KCH36: 12 | KCI36: 12 | KCJ36: 12 | KCK36: 12 | KCL36: 12 | KCM36: 12 | KCN36: 12 | KCO36: 12 | KCP36: 12 | KCQ36: 12 | KCR36: 12 | KCS36: 12 | KCT36: 12 | KCU36: 12 | KCV36: 12 | KCW36: 12 | KCX36: 12 | KCY36: 12 | KCZ36: 12 | KDA36: 12 | KDB36: 12 | KDC36: 12 | KDD36: 12 | KDE36: 12 | KDF36: 12 | KDG36: 12 | KDH36: 12 | KDI36: 12 | KDJ36: 12 | KDK36: 12 | KDL36: 12 | KDM36: 12 | KDN36: 12 | KDO36: 12 | KDP36: 12 | KDQ36: 12 | KDR36: 12 | KDS36: 12 | KDT36: 12 | KDU36: 12 | KDV36: 12 | KDW36: 12 | KDX36: 12 | KDY36: 12 | KDZ36: 12 | KEA36: 12 | KEB36: 12 | KEC36: 12 | KED36: 12 | KEE36: 12 | KEF36: 12 | KEG36: 12 | KEH36: 12 | KEI36: 12 | KEJ36: 12 | KEK36: 12 | KEL36: 12 | KEM36: 12 | KEN36: 12 | KEO36: 12 | KEP36: 12 | KEQ36: 12 | KER36: 12 | KES36: 12 | KET36: 12 | KEU36: 12 | KEV36: 12 | KEW36: 12 | KEX36: 12 | KEY36: 12 | KEZ36: 12 | KFA36: 12 | KFB36: 12 | KFC36: 12 | KFD36: 12 | KFE36: 12 | KFF36: 12 | KFG36: 12 | KFH36: 12 | KFI36: 12 | KFJ36: 12 | KFK36: 12 | KFL36: 12 | KFM36: 12 | KFN36: 12 | KFO36: 12 | KFP36: 12 | KFQ36: 12 | KFR36: 12 | KFS36: 12 | KFT36: 12 | KFU36: 12 | KFV36: 12 | KFW36: 12 | KFX36: 12 | KFY36: 12 | KFZ36: 12 | KGA36: 12 | KGB36: 12 | KGC36: 12 | KGD36: 12 | KGE36: 12 | KGF36: 12 | KGG36: 12 | KGH36: 12 | KGI36: 12 | KGJ36: 12 | KGK36: 12 | KGL36: 12 | KGM36: 12 | KGN36: 12 | KGO36: 12 | KGP36: 12 | KGQ36: 12 | KGR36: 12 | KGS36: 12 | KGT36: 12 | KGU36: 12 | KGV36: 12 | KGW36: 12 | KGX36: 12 | KGY36: 12 | KGZ36: 12 | KHA36: 12 | KHB36: 12 | KHC36: 12 | KHD36: 12 | KHE36: 12 | KHF36: 12 | KHG36: 12 | KHH36: 12 | KHI36: 12 | KHJ36: 12 | KHK36: 12 | KHL36: 12 | KHM36: 12 | KHN36: 12 | KHO36: 12 | KHP36: 12 | KHQ36: 12 | KHR36: 12 | KHS36: 12 | KHT36: 12 | KHU36: 12 | KHV36: 12 | KHW36: 12 | KHX36: 12 | KHY36: 12 | KHZ36: 12 | KIA36: 12 | KIB36: 12 | KIC36: 12 | KID36: 12 | KIE36: 12 | KIF36: 12 | KIG36: 12 | KIH36: 12 | KII36: 12 | KIJ36: 12 | KIK36: 12 | KIL36: 12 | KIM36: 12 | KIN36: 12 | KIO36: 12 | KIP36: 12 | KIQ36: 12 | KIR36: 12 | KIS36: 12 | KIT36: 12 | KIU36: 12 | KIV36: 12 | KIW36: 12 | KIX36: 12 | KIY36: 12 | KIZ36: 12 | KJA36: 12 | KJB36: 12 | KJC36: 12 | KJD36: 12 | KJE36: 12 | KJF36: 12 | KJG36: 12 | KJH36: 12 | KJI36: 12 | KJJ36: 12 | KJK36: 12 | KJL36: 12 | KJM36: 12 | KJN36: 12 | KJO36: 12 | KJP36: 12 | KJQ36: 12 | KJR36: 12 | KJS36: 12 | KJT36: 12 | KJU36: 12 | KJV36: 12 | KJW36: 12 | KJX36: 12 | KJY36: 12 | KJZ36: 12 | KKA36: 12 | KKB36: 12 | KKC36: 12 | KKD36: 12 | KKE36: 12 | KKF36: 12 | KKG36: 12 | KKH36: 12 | KKI36: 12 | KKJ36: 12 | KKK36: 12 | KKL36: 12 | KKM36: 12 | KKN36: 12 | KKO36: 12 | KKP36: 12 | KKQ36: 12 | KKR36: 12 | KKS36: 12 | KKT36: 12 | KKU36: 12 | KKV36: 12 | KKW36: 12 | KKX36: 12 | KKY36: 12 | KKZ36: 12 | KLA36: 12 | KLB36: 12 | KLC36: 12 | KLD36: 12 | KLE36: 12 | KLF36: 12 | KLG36: 12 | KLH36: 12 | KLI36: 12 | KLJ36: 12 | KLK36: 12 | KLL36: 12 | KLM36: 12 | KLN36: 12 | KLO36: 12 | KLP36: 12 | KLQ36: 12 | KLR36: 12 | KLS36: 12 | KLT36: 12 | KLU36: 12 | KLV36: 12 | KLW36: 12 | KLX36: 12 | KLY36: 12 | KLZ36: 12 | KMA36: 12 | KMB36: 12 | KMC36: 12 | KMD36: 12 | KME36: 12 | KMF36: 12 | KMG36: 12 | KMH36: 12 | KMI36: 12 | KMJ36: 12 | KMK36: 12 | KML36: 12 | KMM36: 12 | KMN36: 12 | KMO36: 12 | KMP36: 12 | KMQ36: 12 | KMR36: 12 | KMS36: 12 | KMT36: 12 | KMU36: 12 | KMV36: 12 | KMW36: 12 | KMX36: 12 | KMY36: 12 | KMZ36: 12 | KNA36: 12 | KNB36: 12 | KNC36: 12 | KND36: 12 | KNE36: 12 | KNF36: 12 | KNG36: 12 | KNH36: 12 | KNI36: 12 | KNJ36: 12 | KNK36: 12 | KNL36: 12 | KNM36: 12 | KNN36: 12 | KNO36: 12 | KNP36: 12 | KNQ36: 12 | KNR36: 12 | KNS36: 12 | KNT36: 12 | KNU36: 12 | KNV36: 12 | KNW36: 12 | KNX36: 12 | KNY36: 12 | KNZ36: 12 | KOA36: 12 | KOB36: 12 | KOC36: 12 | KOD36: 12 | KOE36: 12 | KOF36: 12 | KOG36: 12 | KOH36: 12 | KOI36: 12 | KOJ36: 12 | KOK36: 12 | KOL36: 12 | KOM36: 12 | KON36: 12 | KOO36: 12 | KOP36: 12 | KOQ36: 12 | KOR36: 12 | KOS36: 12 | KOT36: 12 | KOU36: 12 | KOV36: 12 | KOW36: 12 | KOX36: 12 | KOY36: 12 | KOZ36: 12 | KPA36: 12 | KPB36: 12 | KPC36: 12 | KPD36: 12 | KPE36: 12 | KPF36: 12 | KPG36: 12 | KPH36: 12 | KPI36: 12 | KPJ36: 12 | KPK36: 12 | KPL36: 12 | KPM36: 12 | KPN36: 12 | KPO36: 12 | KPP36: 12 | KPQ36: 12 | KPR36: 12 | KPS36: 12 | KPT36: 12 | KPU36: 12 | KPV36: 12 | KPW36: 12 | KPX36: 12 | KPY36: 12 | KPZ36: 12 | KQA36: 12 | KQB36: 12 | KQC36: 12 | KQD36: 12 | KQE36: 12 | KQF36: 12 | KQG36: 12 | KQH36: 12 | KQI36: 12 | KQJ36: 12 | KQK36: 12 | KQL36: 12 | KQM36: 12 | KQN36: 12 | KQO36: 12 | KQP36: 12 | KQQ36: 12 | KQR36: 12 | KQS36: 12 | KQT36: 12 | KQU36: 12 | KQV36: 12 | KQW36: 12 | KQX36: 12 | KQY36: 12 | KQZ36: 12 | KRA36: 12 | KRB36: 12 | KRC36: 12 | KRD36: 12 | KRE36: 12 | KRF36: 12 | KRG36: 12 | KRH36: 12 | KRI36: 12 | KRJ36: 12 | KRK36: 12 | KRL36: 12 | KRM36: 12 | KRN36: 12 | KRO36: 12 | KRP36: 12 | KRQ36: 12 | KRR36: 12 | KRS36: 12 | KRT36: 12 | KRU36: 12 | KRV36: 12 | KRW36: 12 | KRX36: 12 | KRY36: 12 | KRZ36: 12 | KSA36: 12 | KSB36: 12 | KSC36: 12 | KSD36: 12 | KSE36: 12 | KSF36: 12 | KSG36: 12 | KSH36: 12 | KSI36: 12 | KSJ36: 12 | KSK36: 12 | KSL36: 12 | KSM36: 12 | KSN36: 12 | KSO36: 12 | KSP36: 12 | KSQ36: 12 | KSR36: 12 | KSS36: 12 | KST36: 12 | KSU36: 12 | KSV36: 12 | KSW36: 12 | KSX36: 12 | KSY36: 12 | KSZ36: 12 | KTA36: 12 | KTB36: 12 | KTC36: 12 | KTD36: 12 | KTE36: 12 | KTF36: 12 | KTG36: 12 | KTH36: 12 | KTI36: 12 | KTJ36: 12 | KTK36: 12 | KTL36: 12 | KTM36: 12 | KTN36: 12 | KTO36: 12 | KTP36: 12 | KTQ36: 12 | KTR36: 12 | KTS36: 12 | KTT36: 12 | KTU36: 12 | KTV36: 12 | KTW36: 12 | KTX36: 12 | KTY36: 12 | KTZ36: 12 | KUA36: 12 | KUB36: 12 | KUC36: 12 | KUD36: 12 | KUE36: 12 | KUF36: 12 | KUG36: 12 | KUH36: 12 | KUI36: 12 | KUJ36: 12 | KUK36: 12 | KUL36: 12 | KUM36: 12 | KUN36: 12 | KUO36: 12 | KUP36: 12 | KUQ36: 12 | KUR36: 12 | KUS36: 12 | KUT36: 12 | KUU36: 12 | KUV36: 12 | KUW36: 12 | KUX36: 12 | KUY36: 12 | KUZ36: 12 | KVA36: 12 | KVB36: 12 | KVC36: 12 | KVD36: 12 | KVE36: 12 | KVF36: 12 | KVG36: 12 | KVH36: 12 | KVI36: 12 | KVJ36: 12 | KVK36: 12 | KVL36: 12 | KVM36: 12 | KVN36: 12 | KVO36: 12 | KVP36: 12 | KVQ36: 12 | KVR36: 12 | KVS36: 12 | KVT36: 12 | KVU36: 12 | KVV36: 12 | KVW36: 12 | KVX36: 12 | KVY36: 12 | KVZ36: 12 | KWA36: 12 | KWB36: 12 | KWC36: 12 | KWD36: 12 | KWE36: 12 | KWF36: 12 | KWG36: 12 | KWH36: 12 | KWI36: 12 | KWJ36: 12 | KWK36: 12 | KWL36: 12 | KWM36: 12 | KWN36: 12 | KWO36: 12 | KWP36: 12 | KWQ36: 12 | KWR36: 12 | KWS36: 12 | KWT36: 12 | KWU36: 12 | KWV36: 12 | KWW36: 12 | KWX36: 12 | KWY36: 12 | KWZ36: 12 | KXA36: 12 | KXB36: 12 | KXC36: 12 | KXD36: 12 | KXE36: 12 | KXF36: 12 | KXG36: 12 | KXH36: 12 | KXI36: 12 | KXJ36: 12 | KXK36: 12 | KXL36: 12 | KXM36: 12 | KXN36: 12 | KXO36: 12 | KXP36: 12 | KXQ36: 12 | KXR36: 12 | KXS36: 12 | KXT36: 12 | KXU36: 12 | KXV36: 12 | KXW36: 12 | KXX36: 12 | KXY36: 12 | KXZ36: 12 | KYA36: 12 | KYB36: 12 | KYC36: 12 | KYD36: 12 | KYE36: 12 | KYF36: 12 | KYG36: 12 | KYH36: 12 | KYI36: 12 | KYJ36: 12 | KYK36: 12 | KYL36: 12 | KYM36: 12 | KYN36: 12 | KYO36: 12 | KYP36: 12 | KYQ36: 12 | KYR36: 12 | KYS36: 12 | KYT36: 12 | KYU36: 12 | KYV36: 12 | KYW36: 12 | KYX36: 12 | KYY36: 12 | KYZ36: 12 | KZA36: 12 | KZB36: 12 | KZC36: 12 | KZD36: 12 | KZE36: 12 | KZF36: 12 | KZG36: 12 | KZH36: 12 | KZI36: 12 | KZJ36: 12 | KZK36: 12 | KZL36: 12 | KZM36: 12 | KZN36: 12 | KZO36: 12 | KZP36: 12 | KZQ36: 12 | KZR36: 12 | KZS36: 12 | KZT36: 12 | KZU36: 12 | KZV36: 12 | KZW36: 12 | KZX36: 12 | KZY36: 12 | KZZ36: 12 | LAA36: 12 | LAB36: 12 | LAC36: 12 | LAD36: 12 | LAE36: 12 | LAF36: 12 | LAG36: 12 | LAH36: 12 | LAI36: 12 | LAJ36: 12 | LAK36: 12 | LAL36: 12 | LAM36: 12 | LAN36: 12 | LAO36: 12 | LAP36: 12 | LAQ36: 12 | LAR36: 12 | LAS36: 12 | LAT36: 12 | LAU36: 12 | LAV36: 12 | LAW36: 12 | LAX36: 12 | LAY36: 12 | LAZ36: 12 | LBA36: 12 | LBB36: 12 | LBC36: 12 | LBD36: 12 | LBE36: 12 | LBF36: 12 | LBG36: 12 | LBH36: 12 | LBI36: 12 | LBJ36: 12 | LBK36: 12 | LBL36: 12 | LBM36: 12 | LBN36: 12 | LBO36: 12 | LBP36: 12 | LBQ36: 12 | LBR36: 12 | LBS36: 12 | LBT36: 12 | LBU36: 12 | LBV36: 12 | LBW36: 12 | LBX36: 12 | LBY36: 12 | LBZ36: 12 | LCA36: 12 | LCB36: 12 | LCC36: 12 | LCD36: 12 | LCE36: 12 | LCF36: 12 | LCG36: 12 | LCH36: 12 | LCI36: 12 | LCJ36: 12 | LCK36: 12 | LCL36: 12 | LCM36: 12 | LCN36: 12 | LCO36: 12 | LCP36: 12 | LCQ36: 12 | LCR36: 12 | LCS36: 12 | LCT36: 12 | LCU36: 12 | LCV36: 12 | LCW36: 12 | LCX36: 12 | LCY36: 12 | LCZ36: 12 | LDA36: 12 | LDB36: 12 | LDC36: 12 | LDD36: 12 | LDE36: 12 | LDF36: 12 | LDG36: 12 | LDH36: 12 | LDI36: 12 | LDJ36: 12 | LDK36: 12 | LDL36: 12 | LDM36: 12 | LDN36: 12 | LDO36: 12 | LDP36: 12 | LDQ36: 12 | LDR36: 12 | LDS36: 12 | LDT36: 12 | LDU36: 12 | LDV36: 12 | LDW36: 12 | LDX36: 12 | LDY36: 12 | LDZ36: 12 | LEA36: 12 | LEB36: 12 | LEC36: 12 | LED36: 12 | LEE36: 12 | LEF36: 12 | LEG36: 12 | LEH36: 12 | LEI36: 12 | LEJ36: 12 | LEK36: 12 | LEL36: 12 | LEM36: 12 | LEN36: 12 | LEO36: 12 | LEP36: 12 | LEQ36: 12 | LER36: 12 | LES36: 12 | LET36: 12 | LEU36: 12 | LEV36: 12 | LEW36: 12 | LEX36: 12 | LEY36: 12 | LEZ36: 12 | LFA36: 12 | LFB36: 12 | LFC36: 12 | LFD36: 12 | LFE36: 12 | LFF36: 12 | LFG36: 12 | LFH36: 12 | LFI36: 12 | LFJ36: 12 | LFK36: 12 | LFL36: 12 | LFM36: 12 | LFN36: 12 | LFO36: 12 | LFP36: 12 | LFQ36: 12 | LFR36: 12 | LFS36: 12 | LFT36: 12 | LFU36: 12 | LFV36: 12 | LFW36: 12 | LFX36: 12 | LFY36: 12 | LFZ36: 12 | LGA36: 12 | LGB36: 12 | LGC36: 12 | LGD36: 12 | LGE36: 12 | LGF36: 12 | LGG36: 12 | LGH36: 12 | LGI36: 12 | LGJ36: 12 | LGK36: 12 | LGL36: 12 | LGM36: 12 | LGN36: 12 | LGO36: 12 | LGP36: 12 | LGQ36: 12 | LGR36: 12 | LGS36: 12 | LGT36: 12 | LGU36: 12 | LGV36: 12 | LGW36: 12 | LGX36: 12 | LGY36: 12 | LGZ36: 12 | LHA36: 12 | LHB36: 12 | LHC36: 12 | LHD36: 12 | LHE36: 12 | LHF36: 12 | LHG36: 12 | LHH36: 12 | LHI36: 12 | LHJ36: 12 | LHK36: 12 | LHL36: 12 | LHM36: 12 | LHN36: 12 | LHO36: 12 | LHP36: 12 | LHQ36: 12 | LHR36: 12 | LHS36: 12 | LHT36: 12 | LHU36: 12 | LHV36: 12 | LHW36: 12 | LHX36: 12 | LHY36: 12 | LHZ36: 12 | LIA36: 12 | LIB36: 12 | LIC36: 12 | LID36: 12 | LIE36: 12 | LIF36: 12 | LIG36: 12 | LIH36: 12 | LII36: 12 | LIJ36: 12 | LIK36: 12 | LIL36: 12 | LIM36: 12 | LIN36: 12 | LIO36: 12 | LIP36: 12 | LIQ36: 12 | LIR36: 12 | LIS36: 12 | LIT36: 12 | LIU36: 12 | LIV36: 12 | LIW36: 12 | LIX36: 12 | LIY36: 12 | LIZ36: 12 | LJA36: 12 | LJB36: 12 | LJC36: 12 | LJD36: 12 | LJE36: 12 | LJF36: 12 | LJG36: 12 | LJH36: 12 | LJI36: 12 | LJJ36: 12 | LJK36: 12 | LJL36: 12 | LJM36: 12 | LJN36: 12 | LJO36: 12 | LJP36: 12 | LJQ36: 12 | LJR36: 12 | LJS36: 12 | LJT36: 12 | LJU36: 12 | LJV36: 12 | LJW36: 12 | LJX36: 12 | LJY36: 12 | LJZ36: 12 | LKA36: 12 | LKB36: 12 | LKC36: 12 | LKD36: 12 | LKE36: 12 | LKF36: 12 | LKG36: 12 | LKH36: 12 | LKI36: 12 | LKJ36: 12 | LKK36: 12 | LKL36: 12 | LKM36: 12 | LKN36: 12 | LKO36: 12 | LKP36: 12 | LKQ36: 12 | LKR36: 12 | LKS36: 12 | LKT36: 12 | LKU36: 12 | LKV36: 12 | LKW36: 12 | LKX36: 12 | LKY36: 12 | LKZ36: 12 | LLA36: 12 | LLB36: 12 | LLC36: 12 | LLD36: 12 | LLE36: 12 | LLF36: 12 | LLG36: 12 | LLH36: 12 | LLI36: 12 | LLJ36: 12 | LLK36: 12 | LLL36: 12 | LLM36: 12 | LLN36: 12 | LLO36: 12 | LLP36: 12 | LLQ36: 12 | LLR36: 12 | LLS36: 12 | LLT36: 12 | LLU36: 12 | LLV36: 12 | LLW36: 12 | LLX36: 12 | LLY36: 12 | LLZ36: 12 | LMA36: 12 | LMB36: 12 | LMC36: 12 | LMD36: 12 | LME36: 12 | LMF36: 12 | LMG36: 12 | LMH36: 12 | LMI36: 12 | LMJ36: 12 | LMK36: 12 | LML36: 12 | LMM36: 12 | LMN36: 12 | LMO36: 12 | LMP36: 12 | LMQ36: 12 | LMR36: 12 | LMS36: 12 | LMT36: 12 | LMU36: 12 | LMV36: 12 | LMW36: 12 | LMX36: 12 | LMY36: 12 | LMZ36: 12 | LNA36: 12 | LNB36: 12 | LNC36: 12 | LND36: 12 | LNE36: 12 | LNF36: 12 | LNG36: 12 | LNH36: 12 | LNI36: 12 | LNJ36: 12 | LNK36: 12 | LNL36: 12 | LNM36: 12 | LNN36: 12 | LNO36: 12 | LNP36: 12 | LNQ36: 12 | LNR36: 12 | LNS36: 12 | LNT36: 12 | LNU36: 12 | LNV36: 12 | LNW36: 12 | LNX36: 12 | LNY36: 12 | LNZ36: 12 | LOA36: 12 | LOB36: 12 | LOC36: 12 | LOD36: 12 | LOE36: 12 | LOF36: 12 | LOG36: 12 | LOH36: 12 | LOI36: 12 | LOJ36: 12 | LOK36: 12 | LOL36: 12 | LOM36: 12 | LON36: 12 | LOO36: 12 | LOP36: 12 | LOQ36: 12 | LOR36: 12 | LOS36: 12 | LOT36: 12 | LOU36: 12 | LOV36: 12 | LOW36: 12 | LOX36: 12 | LOY36: 12 | LOZ36: 12 | LPA36: 12 | LPB36: 12 | LPC36: 12 | LPD36: 12 | LPE36: 12 | LPF36: 12 | LPG36: 12 | LPH36: 12 | LPI36: 12 | LPJ36: 12 | LPK36: 12 | LPL36: 12 | LPM36: 12 | LPN36: 12 | LPO36: 12 | LPP36: 12 | LPQ36: 12 | LPR36: 12 | LPS36: 12 | LPT36: 12 | LPU36: 12 | LPV36: 12 | LPW36: 12 | LPX36: 12 | LPY36: 12 | LPZ36: 12 | LQA36: 12 | LQB36: 12 | LQC36: 12 | LQD36: 12 | LQE36: 12 | LQF36: 12 | LQG36: 12 | LQH36: 12 | LQI36: 12 | LQJ36: 12 | LQK36: 12 | LQL36: 12 | LQM36: 12 | LQN36: 12 | LQO36: 12 | LQP36: 12 | LQQ36: 12 | LQR36: 12 | LQS36: 12 | LQT36: 12 | LQU36: 12 | LQV36: 12 | LQW36: 12 | LQX36: 12 | LQY36: 12 | LQZ36: 12 | LRA36: 12 | LRB36: 12 | LRC36: 12 | LRD36: 12 | LRE36: 12 | LRF36: 12 | LRG36: 12 | LRH36: 12 | LRI36: 12 | LRJ36: 12 | LRK36: 12 | LRL36: 12 | LRM36: 12 | LRN36: 12 | LRO36: 12 | LRP36: 12 | LRQ36: 12 | LRR36: 12 | LRS36: 12 | LRT36: 12 | LRU36: 12 | LRV36: 12 | LRW36: 12 | LRX36: 12 | LRY36: 12 | LRZ36: 12 | LSA36: 12 | LSB36: 12 | LSC36: 12 | LSD36: 12 | LSE36: 12 | LSF36: 12 | LSG36: 12 | LSH36: 12 | LSI36: 12 | LSJ36: 12 | LSK36: 12 | LSL36: 12 | LSM36: 12 | LSN36: 12 | LSO36: 12 | LSP36: 12 | LSQ36: 12 | LSR36: 12 | LSS36: 12 | LST36: 12 | LSU36: 12 | LSV36: 12 | LSW36: 12 | LSX36: 12 | LSY36: 12 | LSZ36: 12 | LTA36: 12 | LTB36: 12 | LTC36: 12 | LTD36: 12 | LTE36: 12 | LTF36: 12 | LTG36: 12 | LTH36: 12 | LTI36: 12 | LTJ36: 12 | LTK36: 12 | LTL36: 12 | LTM36: 12 | LTN36: 12 | LTO36: 12 | LTP36: 12 | LTQ36: 12 | LTR36: 12 | LTS36: 12 | LTT36: 12 | LTU36: 12 | LTV36: 12 | LTW36: 12 | LTX36: 12 | LTY36: 12 | LTZ36: 12 | LUA36: 12 | LUB36: 12 | LUC36: 12 | LUD36: 12 | LUE36: 12 | LUF36: 12 | LUG36: 12 | LUH36: 12 | LUI36: 12 | LUJ36: 12 | LUK36: 12 | LUL36: 12 | LUM36: 12 | LUN36: 12 | LUO36: 12 | LUP36: 12 | LUQ36: 12 | LUR36: 12 | LUS36: 12 | LUT36: 12 | LUU36: 12 | LUV36: 12 | LUW36: 12 | LUX36: 12 | LUY36: 12 | LUZ36: 12 | LVA36: 12 | LVB36: 12 | LVC36: 12 | LVD36: 12 | LVE36: 12 | LVF36: 12 | LVG36: 12 | LVH36: 12 | LVI36: 12 | LVJ36: 12 | LVK36: 12 | LVL36: 12 | LVM36: 12 | LVN36: 12 | LVO36: 12 | LVP36: 12 | LVQ36: 12 | LVR36: 12 | LVS36: 12 | LVT36: 12 | LVU36: 12 | LVV36: 12 | LVW36: 12 | LVX36: 12 | LVY36: 12 | LVZ36: 12 | LWA36: 12 | LWB36: 12 | LWC36: 12 | LWD36: 12 | LWE36: 12 | LWF36: 12 | LWG36: 12 | LWH36: 12 | LWI36: 12 | LWJ36: 12 | LWK36: 12 | LWL36: 12 | LWM36: 12 | LWN36: 12 | LWO36: 12 | LWP36: 12 | LWQ36: 12 | LWR36: 12 | LWS36: 12 | LWT36: 12 | LWU36: 12 | LWV36: 12 | LWW36: 12 | LWX36: 12 | LWY36: 12 | LWZ36: 12 | LXA36: 12 | LXB36: 12 | LXC36: 12 | LXD36: 12 | LXE36: 12 | LXF36: 12 | LXG36: 12 | LXH36: 12 | LXI36: 12 | LXJ36: 12 | LXK36: 12 | LXL36: 12 | LXM36: 12 | LXN36: 12 | LXO36: 12 | LXP36: 12 | LXQ36: 12 | LXR36: 12 | LXS36: 12 | LXT36: 12 | LXU36: 12 | LXV36: 12 | LXW36: 12 | LXX36: 12 | LXY36: 12 | LXZ36: 12 | LYA36: 12 | LYB36: 12 | LYC36: 12 | LYD36: 12 | LYE36: 12 | LYF36: 12 | LYG36: 12 | LYH36: 12 | LYI36: 12 | LYJ36: 12 | LYK36: 12 | LYL36: 12 | LYM36: 12 | LYN36: 12 | LYO36: 12 | LYP36: 12 | LYQ36: 12 | LYR36: 12 | LYS36: 12 | LYT36: 12 | LYU36: 12 | LYV36: 12 | LYW36: 12 | LYX36: 12 | LYY36: 12 | LYZ36: 12 | LZA36: 12 | LZB36: 12 | LZC36: 12 | LZD36: 12 | LZE36: 12 | LZF36: 12 | LZG36: 12 | LZH36: 12 | LZI36: 12 | LZJ36: 12 | LZK36: 12 | LZL36: 12 | LZM36: 12 | LZN36: 12 | LZO36: 12 | LZP36: 12 | LZQ36: 12 | LZR36: 12 | LZS36: 12 | LZT36: 12 | LZU36: 12 | LZV36: 12 | LZW36: 12 | LZX36: 12 | LZY36: 12 | LZZ36: 12 | MAA36: 12 | MAB36: 12 | MAC36: 12 | MAD36: 12 | MAE36: 12 | MAF36: 12 | MAG36: 12 | MAH36: 12 | MAI36: 12 | MAJ36: 12 | MAK36: 12 | MAL36: 12 | MAM36: 12 | MAN36: 12 | MAO36: 12 | MAP36: 12 | MAQ36: 12 | MAR36: 12 | MAS36: 12 | MAT36: 12 | MAU36: 12 | MAV36: 12 | MAW36: 12 | MAX36: 12 | MAY36: 12 | MAZ36: 12 | MBA36: 12 | MBB36: 12 | MBC36: 12 | MBD36: 12 | MBE36: 12 | MBF36: 12 | MBG36: 12 | MBH36: 12 | MBI36: 12 | MBJ36: 12 | MBK36: 12 | MBL36: 12 | MBM36: 12 | MBN36: 12 | MBO36: 12 | MBP36: 12 | MBQ36: 12 | MBR36: 12 | MBS36: 12 | MBT36: 12 | MBU36: 12 | MBV36: 12 | MBW36: 12 | MBX36: 12 | MBY36: 12 | MBZ36: 12 | MCA36: 12 | MCB36: 12 | MCC36: 12 | MCD36: 12 | MCE36: 12 | MCF36: 12 | MCG36: 12 | MCH36: 12 | MCI36: 12 | MCJ36: 12 | MCK36: 12 | MCL36: 12 | MCM36: 12 | MCN36: 12 | MCO36: 12 | MCP36: 12 | MCQ36: 12 | MCR36: 12 | MCS36: 12 | MCT36: 12 | MCU36: 12 | MCV36: 12 | MCW36: 12 | MCX36: 12 | MCY36: 12 | MCZ36: 12 | MDA36: 12 | MDB36: 12 | MDC36: 12 | MDD36: 12 | MDE36: 12 | MDF36: 12 | MDG36: 12 | MDH36: 12 | MDI36: 12 | MDJ36: 12 | MDK36: 12 | MDL36: 12 | MDM36: 12 | MDN36: 12 | MDO36: 12 | MDP36: 12 | MDQ36: 12 | MDR36: 12 | MDS36: 12 | MDT36: 12 | MDU36: 12 | MDV36: 12 | MDW36: 12 | MDX36: 12 | MDY36: 12 | MDZ36: 12 | MEA36: 12 | MEB36: 12 | MEC36: 12 | MED36: 12 | MEE36: 12 | MEF36: 12 | MEG36: 12 | MEH36: 12 | MEI36: 12 | MEJ36: 12 | MEK36: 12 | MEL36: 12 | MEM36: 12 | MEN36: 12 | MEO36: 12 | MEP36: 12 | MEQ36: 12 | MER36: 12 | MES36: 12 | MET36: 12 | MEU36: 12 | MEV36: 12 | MEW36: 12 | MEX36: 12 | MEY36: 12 | MEZ36: 12 | MFA36: 12 | MFB36: 12 | MFC36: 12 | MFD36: 12 | MFE36: 12 | MFF36: 12 | MFG36: 12 | MFH36: 12 | MFI36: 12 | MFJ36: 12 | MFK36: 12 | MFL36: 12 | MFM36: 12 | MFN36: 12 | MFO36: 12 | MFP36: 12 | MFQ36: 12 | MFR36: 12 | MFS36: 12 | MFT36: 12 | MFU36: 12 | MFV36: 12 | MFW36: 12 | MFX36: 12 | MFY36: 12 | MFZ36: 12 | MGA36: 12 | MGB36: 12 | MGC36: 12 | MGD36: 12 | MGE36: 12 | MGF36: 12 | MGG36: 12 | MGH36: 12 | MGI36: 12 | MGJ36: 12 | MGK36: 12 | MGL36: 12 | MGM36: 12 | MGN36: 12 | MGO36: 12 | MGP36: 12 | MGQ36: 12 | MGR36: 12 | MGS36: 12 | MGT36: 12 | MGU36: 12 | MGV36: 12 | MGW36: 12 | MGX36: 12 | MGY36: 12 | MGZ36: 12 | MHA36: 12 | MHB36: 12 | MHC36: 12 | MHD36: 12 | MHE36: 12 | MHF36: 12 | MHG36: 12 | MHH36: 12 | MHI36: 12 | MHJ36: 12 | MHK36: 12 | MHL36: 12 | MHM36: 12 | MHN36: 12 | MHO36: 12 | MHP36: 12 | MHQ36: 12 | MHR36: 12 | MHS36: 12 | MHT36: 12 | MHU36: 12 | MHV36: 12 | MHW36: 12 | MHX36: 12 | MHY36: 12 | MHZ36: 12 | MIA36: 12 | MIB36: 12 | MIC36: 12 | MID36: 12 | MIE36: 12 | MIF36: 12 | MIG36: 12 | MIH36: 12 | MII36: 12 | MIJ36: 12 | MIK36: 12 | MIL36: 12 | MIM36: 12 | MIN36: 12 | MIO36: 12 | MIP36: 12 | MIQ36: 12 | MIR36: 12 | MIS36: 12 | MIT36: 12 | MIU36: 12 | MIV36: 12 | MIW36: 12 | MIX36: 12 | MIY36: 12 | MIZ36: 12 | MJA36: 12 | MJB36: 12 | MJC36: 12 | MJD36: 12 | MJE36: 12 | MJF36: 12 | MJG36: 12 | MJH36: 12 | MJI36: 12 | MJJ36: 12 | MJK36: 12 | MJL36: 12 | MJM36: 12 | MJN36: 12 | MJO36: 12 | MJP36: 12 | MJQ36: 12 | MJR36: 12 | MJS36: 12 | MJT36: 12 | MJU36: 12 | MJV36: 12 | MJW36: 12 | MJX36: 12 | MJY36: 12 | MJZ36: 12 | MKA36: 12 | MKB36: 12 | MKC36: 12 | MKD36: 12 | MKE36: 12 | MKF36: 12 | MKG36: 12 | MKH36: 12 | MKI36: 12 | MKJ36: 12 | MKK36: 12 | MKL36: 12 | MKM36: 12 | MKN36: 12 | MKO36: 12 | MKP36: 12 | MKQ36: 12 | MKR36: 12 | MKS36: 12 | MKT36: 12 | MKU36: 12 | MKV36: 12 | MKW36: 12 | MKX36: 12 | MKY36: 12 | MKZ36: 12 | MLA36: 12 | MLB36: 12 | MLC36: 12 | MLD36: 12 | MLE36: 12 | MLF36: 12 | MLG36: 12 | MLH36: 12 | MLI36: 12 | MLJ36: 12 | MLK36: 12 | MLL36: 12 | MLM36: 12 | MLN36: 12 | MLO36: 12 | MLP36: 12 | MLQ36: 12 | MLR36: 12 | MLS36: 12 | MLT36: 12 | MLU36: 12 | MLV36: 12 | MLW36: 12 | MLX36: 12 | MLY36: 12 | MLZ36: 12 | MMA36: 12 | MMB36: 12 | MMC36: 12 | MMD36: 12 | MME36: 12 | MMF36: 12 | MMG36: 12 | MMH36: 12 | MMI36: 12 | MMJ36: 12 | MMK36: 12 | MML36: 12 | MMM36: 12 | MMN36: 12 | MMO36: 12 | MMP36: 12 | MMQ36: 12 | MMR36: 12 | MMS36: 12 | MMT36: 12 | MMU36: 12 | MMV36: 12 | MMW36: 12 | MMX36: 12 | MMY36: 12 | MMZ36: 12 | MNA36: 12 | MNB36: 12 | MNC36: 12 | MND36: 12 | MNE36: 12 | MNF36: 12 | MNG36: 12 | MNH36: 12 | MNI36: 12 | MNJ36: 12 | MNK36: 12 | MNL36: 12 | MNM36: 12 | MNN36: 12 | MNO36: 12 | MNP36: 12 | MNQ36: 12 | MNR36: 12 | MNS36: 12 | MNT36: 12 | MNU36: 12 | MNV36: 12 | MNW36: 12 | MNX36: 12 | MNY36: 12 | MNZ36: 12 | MOA36: 12 | MOB36: 12 | MOC36: 12 | MOD36: 12 | MOE36: 12 | MOF36: 12 | MOG36: 12 | MOH36: 12 | MOI36: 12 | MOJ36: 12 | MOK36: 12 | MOL36: 12 | MOM36: 12 | MON36: 12 | MOO36: 12 | MOP36: 12 | MOQ36: 12 | MOR36: 12 | MOS36: 12 | MOT36: 12 | MOU36: 12 | MOV36: 12 | MOW36: 12 | MOX36: 12 | MOY36: 12 | MOZ36: 12 | MPA36: 12 | MPB36: 12 | MPC36: 12 | MPD36: 12 | MPE36: 12 | MPF36: 12 | MPG36: 12 | MPH36: 12 | MPI36: 12 | MPJ36: 12 | MPK36: 12 | MPL36: 12 | MPM36: 12 | MPN36: 12 | MPO36: 12 | MPP36: 12 | MPQ36: 12 | MPR36: 12 | MPS36: 12 | MPT36: 12 | MPU36: 12 | MPV36: 12 | MPW36: 12 | MPX36: 12 | MPY36: 12 | MPZ36: 12 | MQA36: 12 | MQB36: 12 | MQC36: 12 | MQD36: 12 | MQE36: 12 | MQF36: 12 | MQG36: 12 | MQH36: 12 | MQI36: 12 | MQJ36: 12 | MQK36: 12 | MQL36: 12 | MQM36: 12 | MQN36: 12 | MQO36: 12 | MQP36: 12 | MQQ36: 12 | MQR36: 12 | MQS36: 12 | MQT36: 12 | MQU36: 12 | MQV36: 12 | MQW36: 12 | MQX36: 12 | MQY36: 12 | MQZ36: 12 | MRA36: 12 | MRB36: 12 | MRC36: 12 | MRD36: 12 | MRE36: 12 | MRF36: 12 | MRG36: 12 | MRH36: 12 | MRI36: 12 | MRJ36: 12 | MRK36: 12 | MRL36: 12 | MRM36: 12 | MRN36: 12 | MRO36: 12 | MRP36: 12 | MRQ36: 12 | MRR36: 12 | MRS36: 12 | MRT36: 12 | MRU36: 12 | MRV36: 12 | MRW36: 12 | MRX36: 12 | MRY36: 12 | MRZ36: 12 | MSA36: 12 | MSB36: 12 | MSC36: 12 | MSD36: 12 | MSE36: 12 | MSF36: 12 | MSG36: 12 | MSH36: 12 | MSI36: 12 | MSJ36: 12 | MSK36: 12 | MSL36: 12 | MSM36: 12 | MSN36: 12 | MSO36: 12 | MSP36: 12 | MSQ36: 12 | MSR36: 12 | MSS36: 12 | MST36: 12 | MSU36: 12 | MSV36: 12 | MSW36: 12 | MSX36: 12 | MSY36: 12 | MSZ36: 12 | MTA36: 12 | MTB36: 12 | MTC36: 12 | MTD36: 12 | MTE36: 12 | MTF36: 12 | MTG36: 12 | MTH36: 12 | MTI36: 12 | MTJ36: 12 | MTK36: 12 | MTL36: 12 | MTM36: 12 | MTN36: 12 | MTO36: 12 | MTP36: 12 | MTQ36: 12 | MTR36: 12 | MTS36: 12 | MTT36: 12 | MTU36: 12 | MTV36: 12 | MTW36: 12 | MTX36: 12 | MTY36: 12 | MTZ36: 12 | MUA36: 12 | MUB36: 12 | MUC36: 12 | MUD36: 12 | MUE36: 12 | MUF36: 12 | MUG36: 12 | MUH36: 12 | MUI36: 12 | MUJ36: 12 | MUK36: 12 | MUL36: 12 | MUM36: 12 | MUN36: 12 | MUO36: 12 | MUP36: 12 | MUQ36: 12 | MUR36: 12 | MUS36: 12 | MUT36: 12 | MUU36: 12 | MUV36: 12 | MUW36: 12 | MUX36: 12 | MUY36: 12 | MUZ36: 12 | MVA36: 12 | MVB36: 12 | MVC36: 12 | MVD36: 12 | MVE36: 12 | MVF36: 12 | MVG36: 12 | MVH36: 12 | MVI36: 12 | MVJ36: 12 | MVK36: 12 | MVL36: 12 | MVM36: 12 | MVN36: 12 | MVO36: 12 | MVP36: 12 | MVQ36: 12 | MVR36: 12 | MVS36: 12 | MVT36: 12 | MVU36: 12 | MVV36: 12 | MVW36: 12 | MVX36: 12 | MVY36: 12 | MVZ36: 12 | MWA36: 12 | MWB36: 12 | MWC36: 12 | MWD36: 12 | MWE36: 12 | MWF36: 12 | MWG36: 12 | MWH36: 12 | MWI36: 12 | MWJ36: 12 | MWK36: 12 | MWL36: 12 | MWM36: 12 | MWN36: 12 | MWO36: 12 | MWP36: 12 | MWQ36: 12 | MWR36: 12 | MWS36: 12 | MWT36: 12 | MWU36: 12 | MWV36: 12 | MWW36: 12 | MWX36: 12 | MWY36: 12 | MWZ36: 12 | MXA36: 12 | MXB36: 12 | MXC36: 12 | MXD36: 12 | MXE36: 12 | MXF36: 12 | MXG36: 12 | MXH36: 12 | MXI36: 12 | MXJ36: 12 | MXK36: 12 | MXL36: 12 | MXM36: 12 | MXN36: 12 | MXO36: 12 | MXP36: 12 | MXQ36: 12 | MXR36: 12 | MXS36: 12 | MXT36: 12 | MXU36: 12 | MXV36: 12 | MXW36: 12 | MXX36: 12 | MXY36: 12 | MXZ36: 12 | MYA36: 12 | MYB36: 12 | MYC36: 12 | MYD36: 12 | MYE36: 12 | MYF36: 12 | MYG36: 12 | MYH36: 12 | MYI36: 12 | MYJ36: 12 | MYK36: 12 | MYL36: 12 | MYM36: 12 | MYN36: 12 | MYO36: 12 | MYP36: 12 | MYQ36: 12 | MYR36: 12 | MYS36: 12 | MYT36: 12 | MYU36: 12 | MYV36: 12 | MYW36: 12 | MYX36: 12 | MYY36: 12 | MYZ36: 12 | MZA36: 12 | MZB36: 12 | MZC36: 12 | MZD36: 12 | MZE36: 12 | MZF36: 12 | MZG36: 12 | MZH36: 12 | MZI36: 12 | MZJ36: 12 | MZK36: 12 | MZL36: 12 | MZM36: 12 | MZN36: 12 | MZO36: 12 | MZP36: 12 | MZQ36: 12 | MZR36: 12 | MZS36: 12 | MZT36: 12 | MZU36: 12 | MZV36: 12 | MZW36: 12 | MZX36: 12 | MZY36: 12 | MZZ36: 12 | NAA36: 12 | NAB36: 12 | NAC36: 12 | NAD36: 12 | NAE36: 12 | NAF36: 12 | NAG36: 12 | NAH36: 12 | NAI36: 12 | NAJ36: 12 | NAK36: 12 | NAL36: 12 | NAM36: 12 | NAN36: 12 | NAO36: 12 | NAP36: 12 | NAQ36: 12 | NAR36: 12 | NAS36: 12 | NAT36: 12 | NAU36: 12 | NAV36: 12 | NAW36: 12 | NAX36: 12 | NAY36: 12 | NAZ36: 12 | NBA36: 12 | NBB36: 12 | NBC36: 12 | NBD36: 12 | NBE36: 12 | NBF36: 12 | NBG36: 12 | NBH36: 12 | NBI36: 12 | NBJ36: 12 | NBK36: 12 | NBL36: 12 | NBM36: 12 | NBN36: 12 | NBO36: 12 | NBP36: 12 | NBQ36: 12 | NBR36: 12 | NBS36: 12 | NBT36: 12 | NBU36: 12 | NBV36: 12 | NBW36: 12 | NBX36: 12 | NBY36: 12 | NBZ36: 12 | NCA36: 12 | NCB36: 12 | NCC36: 12 | NCD36: 12 | NCE36: 12 | NCF36: 12 | NCG36: 12 | NCH36: 12 | NCI36: 12 | NCJ36: 12 | NCK36: 12 | NCL36: 12 | NCM36: 12 | NCN36: 12 | NCO36: 12 | NCP36: 12 | NCQ36: 12 | NCR36: 12 | NCS36: 12 | NCT36: 12 | NCU36: 12 | NCV36: 12 | NCW36: 12 | NCX36: 12 | NCY36: 12 | NCZ36: 12 | NDA36: 12 | NDB36: 12 | NDC36: 12 | NDD36: 12 | NDE36: 12 | NDF36: 12 | NDG36: 12 | NDH36: 12 | NDI36: 12 | NDJ36: 12 | NDK36: 12 | NDL36: 12 | NDM36: 12 | NDN36: 12 | NDO36: 12 | NDP36: 12 | NDQ36: 12 | NDR36: 12 | NDS36: 12 | NDT36: 12 | NDU36: 12 | NDV36: 12 | NDW36: 12 | NDX36: 12 | NDY36: 12 | NDZ36: 12 | NEA36: 12 | NEB36: 12 | NEC36: 12 | NED36: 12 | NEE36: 12 | NEF36: 12 | NEG36: 12 | NEH36: 12 | NEI36: 12 | NEJ36: 12 | NEK36: 12 | NEL36: 12 | NEM36: 12 | NEN36: 12 | NEO36: 12 | NEP36: 12 | NEQ36: 12 | NER36: 12 | NES36: 12 | NET36: 12 | NEU36: 12 | NEV36: 12 | NEW36: 12 | NEX36: 12 | NEY36: 12 | NEZ36: 12 | NFA36: 12 | NFB36: 12 | NFC36: 12 | NFD36: 12 | NFE36: 12 | NFF36: 12 | NFG36: 12 | NFH36: 12 | NFI36: 12 | NFJ36: 12 | NFK36: 12 | NFL36: 12 | NFM36: 12 | NFN36: 12 | NFO36: 12 | NFP36: 12 | NFQ36: 12 | NFR36: 12 | NFS36: 12 | NFT36: 12 | NFU36: 12 | NFV36: 12 | NFW36: 12 | NFX36: 12 | NFY36: 12 | NFZ36: 12 | NGA36: 12 | NGB36: 12 | NGC36: 12 | NGD36: 12 | NGE36: 12 | NGF36: 12 | NGG36: 12 | NGH36: 12 | NGI36: 12 | NGJ36: 12 | NGK36: 12 | NGL36: 12 | NGM36: 12 | NGN36: 12 | NGO36: 12 | NGP36: 12 | NGQ36: 12 | NGR36: 12 | NGS36: 12 | NGT36: 12 | NGU36: 12 | NGV36: 12 | NGW36: 12 | NGX36: 12 | NGY36: 12 | NGZ36: 12 | NHA36: 12 | NHB36: 12 | NHC36: 12 | NHD36: 12 | NHE36: 12 | NHF36: 12 | NHG36: 12 | NHH36: 12 | NHI36: 12 | NHJ36: 12 | NHK36: 12 | NHL36: 12 | NHM36: 12 | NHN36: 12 | NHO36: 12 | NHP36: 12 | NHQ36: 12 | NHR36: 12 | NHS36: 12 | NHT36: 12 | NHU36: 12 | NHV36: 12 | NHW36: 12 | NHX36: 12 | NHY36: 12 | NHZ36: 12 | NIA36: 12 | NIB36: 12 | NIC36: 12 | NID36: 12 | NIE36: 12 | NIF36: 12 | NIG36: 12 | NIH36: 12 | NII36: 12 | NIJ36: 12 | NIK36: 12 | NIL36: 12 | NIM36: 12 | NIN36: 12 | NIO36: 12 | NIP36: 12 | NIQ36: 12 | NIR36: 12 | NIS36: 12 | NIT36: 12 | NIU36: 12 | NIV36: 12 | NIW36: 12 | NIX36: 12 | NIY36: 12 | NIZ36: 12 | NJA36: 12 | NJB36: 12 | NJC36: 12 | NJD36: 12 | NJE36: 12 | NJF36: 12 | NJG36: 12 | NJH36: 12 | NJI36: 12 | NJJ36: 12 | NJK36: 12 | NJL36: 12 | NJM36: 12 | NJN36: 12 | NJO36: 12 | NJP36: 12 | NJQ36: 12 | NJR36: 12 | NJS36: 12 | NJT36: 12 | NJU36: 12 | NJV36: 12 | NJW36: 12 | NJX36: 12 | NJY36: 12 | NJZ36: 12 | NKA36: 12 | NKB36: 12 | NKC36: 12 | NKD36: 12 | NKE36: 12 | NKF36: 12 | NKG36: 12 | NKH36: 12 | NKI36: 12 | NKJ36: 12 | NKK36: 12 | NKL36: 12 | NKM36: 12 | NKN36: 12 | NKO36: 12 | NKP36: 12 | NKQ36: 12 | NKR36: 12 | NKS36: 12 | NKT36: 12 | NKU36: 12 | NKV36: 12 | NKW36: 12 | NKX36: 12 | NKY36: 12 | NKZ36: 12 | NLA36: 12 | NLB36: 12 | NLC36: 12 | NLD36: 12 | NLE36: 12 | NLF36: 12 | NLG36: 12 | NLH36: 12 | NLI36: 12 | NLJ36: 12 | NLK36: 12 | NLL36: 12 | NLM36: 12 | NLN36: 12 | NLO36: 12 | NLP36: 12 | NLQ36: 12 | NLR36: 12 | NLS36: 12 | NLT36: 12 | NLU36: 12 | NLV36: 12 | NLW36: 12 | NLX36: 12 | NLY36: 12 | NLZ36: 12 | NMA36: 12 | NMB36: 12 | NMC36: 12 | NMD36: 12 | NME36: 12 | NMF36: 12 | NMG36: 12 | NMH36: 12 | NMI36: 12 | NMJ36: 12 | NMK36: 12 | NML36: 12 | NMM36: 12 | NMN36: 12 | NMO36: 12 | NMP36: 12 | NMQ36: 12 | NMR36: 12 | NMS36: 12 | NMT36: 12 | NMU36: 12 | NMV36: 12 | NMW36: 12 | NMX36: 12 | NMY36: 12 | NMZ36: 12 | NNA36: 12 | NNB36: 12 | NNC36: 12 | NND36: 12 | NNE36: 12 | NNF36: 12 | NNG36: 12 | NNH36: 12 | NNI36: 12 | NNJ36: 12 | NNK36: 12 | NNL36: 12 | NNM36: 12 | NNN36: 12 | NNO36: 12 | NNP36: 12 | NNQ36: 12 | NNR36: 12 | NNS36: 12 | NNT36: 12 | NNU36: 12 | NNV36: 12 | NNW36: 12 | NNX36: 12 | NNY36: 12 | NNZ36: 12 | NOA36: 12 | NOB36: 12 | NOC36: 12 | NOD36: 12 | NOE36: 12 | NOF36: 12 | NOG36: 12 | NOH36: 12 | NOI36: 12 | NOJ36: 12 | NOK36: 12 | NOL36: 12 | NOM36: 12 | NON36: 12 | NOO36: 12 | NOP36: 12 | NOQ36: 12 | NOR36: 12 | NOS36: 12 | NOT36: 12 | NOU36: 12 | NOV36: 12 | NOW36: 12 | NOX36: 12 | NOY36: 12 | NOZ36: 12 | NPA36: 12 | NPB36: 12 | NPC36: 12 | NPD36: 12 | NPE36: 12 | NPF36: 12 | NPG36: 12 | NPH36: 12 | NPI36: 12 | NPJ36: 12 | NPK36: 12 | NPL36: 12 | NPM36: 12 | NPN36: 12 | NPO36: 12 | NPP36: 12 | NPQ36: 12 | NPR36: 12 | NPS36: 12 | NPT36: 12 | NPU36: 12 | NPV36: 12 | NPW36: 12 | NPX36: 12 | NPY36: 12 | NPZ36: 12 | NQA36: 12 | NQB36: 12 | NQC36: 12 | NQD36: 12 | NQE36: 12 | NQF36: 12 | NQG36: 12 | NQH36: 12 | NQI36: 12 | NQJ36: 12 | NQK36: 12 | NQL36: 12 | NQM36: 12 | NQN36: 12 | NQO36: 12 | NQP36: 12 | NQQ36: 12 | NQR36: 12 | NQS36: 12 | NQT36: 12 | NQU36: 12 | NQV36: 12 | NQW36: 12 | NQX36: 12 | NQY36: 12 | NQZ36: 12 | NRA36: 12 | NRB36: 12 | NRC36: 12 | NRD36: 12 | NRE36: 12 | NRF36: 12 | NRG36: 12 | NRH36: 12 | NRI36: 12 | NRJ36: 12 | NRK36: 12 | NRL36: 12 | NRM36: 12 | NRN36: 12 | NRO36: 12 | NRP36: 12 | NRQ36: 12 | NRR36: 12 | NRS36: 12 | NRT36: 12 | NRU36: 12 | NRV36: 12 | NRW36: 12 | NRX36: 12 | NRY36: 12 | NRZ36: 12 | NSA36: 12 | NSB36: 12 | NSC36: 12 | NSD36: 12 | NSE36: 12 | NSF36: 12 | NSG36: 12 | NSH36: 12 | NSI36: 12 | NSJ36: 12 | NSK36: 12 | NSL36: 12 | NSM36: 12 | NSN36: 12 | NSO36: 12 | NSP36: 12 | NSQ36: 12 | NSR36: 12 | NSS36: 12 | NST36: 12 | NSU36: 12 | NSV36: 12 | NSW36: 12 | NSX36: 12 | NSY36: 12 | NSZ36: 12 | NTA36: 12 | NTB36: 12 | NTC36: 12 | NTD36: 12 | NTE36: 12 | NTF36: 12 | NTG36: 12 | NTH36: 12 | NTI36: 12 | NTJ36: 12 | NTK36: 12 | NTL36: 12 | NTM36: 12 | NTN36: 12 | NTO36: 12 | NTP36: 12 | NTQ36: 12 | NTR36: 12 | NTS36: 12 | NTT36: 12 | NTU36: 12 | NTV36: 12 | NTW36: 12 | NTX36: 12 | NTY36: 12 | NTZ36: 12 | NUA36: 12 | NUB36: 12 | NUC36: 12 | NUD36: 12 | NUE36: 12 | NUF36: 12 | NUG36: 12 | NUH36: 12 | NUI36: 12 | NUJ36: 12 | NUK36: 12 | NUL36: 12 | NUM36: 12 | NUN36: 12 | NUO36: 12 | NUP36: 12 | NUQ36: 12 | NUR36: 12 | NUS36: 12 | NUT36: 12 | NUU36: 12 | NUV36: 12 | NUW36: 12 | NUX36: 12 | NUY36: 12 | NUZ36: 12 | NVA36: 12 | NVB36: 12 | NVC36: 12 | NVD36: 12 | NVE36: 12 | NVF36: 12 | NVG36: 12 | NVH36: 12 | NVI36: 12 | NVJ36: 12 | NVK36: 12 | NVL36: 12 | NVM36: 12 | NVN36: 12 | NVO36: 12 | NVP36: 12 | NVQ36: 12 | NVR36: 12 | NVS36: 12 | NVT36: 12 | NVU36: 12 | NVV36: 12 | NVW36: 12 | NVX36: 12 | NVY36: 12 | NVZ36: 12 | NWA36: 12 | NWB36: 12 | NWC36: 12 | NWD36: 12 | NWE36: 12 | NWF36: 12 | NWG36: 12 | NWH36: 12 | NWI36: 12 | NWJ36: 12 | NWK36: 12 | NWL36: 12 | NWM36: 12 | NWN36: 12 | NWO36: 12 | NWP36: 12 | NWQ36: 12 | NWR36: 12 | NWS36: 12 | NWT36: 12 | NWU36: 12 | NWV36: 12 | NWW36: 12 | NWX36: 12 | NWY36: 12 | NWZ36: 12 | NXA36: 12 | NXB36: 12 | NXC36: 12 | NXD36: 12 | NXE36: 12 | NXF36: 12 | NXG36: 12 | NXH36: 12 | NXI36: 12 | NXJ36: 12 | NXK36: 12 | NXL36: 12 | NXM36: 12 | NXN36: 12 | NXO36: 12 | NXP36: 12 | NXQ36: 12 | NXR36: 12 | NXS36: 12 | NXT36: 12 | NXU36: 12 | NXV36: 12 | NXW36: 12 | NXX36: 12 | NXY36: 12 | NXZ36: 12 | NYA36: 12 | NYB36: 12 | NYC36: 12 | NYD36: 12 | NYE36: 12 | NYF36: 12 | NYG36: 12 | NYH36: 12 | NYI36: 12 | NYJ36: 12 | NYK36: 12 | NYL36: 12 | NYM36: 12 | NYN36: 12 | NYO36: 12 | NYP36: 12 | NYQ36: 12 | NYR36: 12 | NYS36: 12 | NYT36: 12 | NYU36: 12 | NYV36: 12 | NYW36: 12 | NYX36: 12 | NYY36: 12 | NYZ36: 12 | NZA36: 12 | NZB36: 12 | NZC36: 12 | NZD36: 12 | NZE36: 12 | NZF36: 12 | NZG36: 12 | NZH36: 12 | NZI36: 12 | NZJ36: 12 | NZK36: 12 | NZL36: 12 | NZM36: 12 | NZN36: 12 | NZO36: 12 | NZP36: 12 | NZQ36: 12 | NZR36: 12 | NZS36: 12 | NZT36: 12 | NZU36: 12 | NZV36: 12 | NZW36: 12 | NZX36: 12 | NZY36: 12 | NZZ36: 12 | OAA36: 12 | OAB36: 12 | OAC36: 12 | OAD36: 12 | OAE36: 12 | OAF36: 12 | OAG36: 12 | OAH36: 12 | OAI36: 12 | OAJ36: 12 | OAK36: 12 | OAL36: 12 | OAM36: 12 | OAN36: 12 | OAO36: 12 | OAP36: 12 | OAQ36: 12 | OAR36: 12 | OAS36: 12 | OAT36: 12 | OAU36: 12 | OAV36: 12 | OAW36: 12 | OAX36: 12 | OAY36: 12 | OAZ36: 12 | OBA36: 12 | OBB36: 12 | OBC36: 12 | OBD36: 12 | OBE36: 12 | OBF36: 12 | OBG36: 12 | OBH36: 12 | OBI36: 12 | OBJ36: 12 | OBK36: 12 | OBL36: 12 | OBM36: 12 | OBN36: 12 | OBO36: 12 | OBP36: 12 | OBQ36: 12 | OBR36: 12 | OBS36: 12 | OBT36: 12 | OBU36: 12 | OBV36: 12 | OBW36: 12 | OBX36: 12 | OBY36: 12 | OBZ36: 12 | OCA36: 12 | OCB36: 12 | OCC36: 12 | OCD36: 12 | OCE36: 12 | OCF36: 12 | OCG36: 12 | OCH36: 12 | OCI36: 12 | OCJ36: 12 | OCK36: 12 | OCL36: 12 | OCM36: 12 | OCN36: 12 | OCO36: 12 | OCP36: 12 | OCQ36: 12 | OCR36: 12 | OCS36: 12 | OCT36: 12 | OCU36: 12 | OCV36: 12 | OCW36: 12 | OCX36: 12 | OCY36: 12 | OCZ36: 12 | ODA36: 12 | ODB36: 12 | ODC36: 12 | ODD36: 12 | ODE36: 12 | ODF36: 12 | ODG36: 12 | ODH36: 12 | ODI36: 12 | ODJ36: 12 | ODK36: 12 | ODL36: 12 | ODM36: 12 | ODN36: 12 | ODO36: 12 | ODP36: 12 | ODQ36: 12 | ODR36: 12 | ODS36: 12 | ODT36: 12 | ODU36: 12 | ODV36: 12 | ODW36: 12 | ODX36: 12 | ODY36: 12 | ODZ36: 12 | OEA36: 12 | OEB36: 12 | OEC36: 12 | OED36: 12 | OEE36: 12 | OEF36: 12 | OEG36: 12 | OEH36: 12 | OEI36: 12 | OEJ36: 12 | OEK36: 12 | OEL36: 12 | OEM36: 12 | OEN36: 12 | OEO36: 12 | OEP36: 12 | OEQ36: 12 | OER36: 12 | OES36: 12 | OET36: 12 | OEU36: 12 | OEV36: 12 | OEW36: 12 | OEX36: 12 | OEY36: 12 | OEZ36: 12 | OFA36: 12 | OFB36: 12 | OFC36: 12 | OFD36: 12 | OFE36: 12 | OFF36: 12 | OFG36: 12 | OFH36: 12 | OFI36: 12 | OFJ36: 12 | OFK36: 12 | OFL36: 12 | OFM36: 12 | OFN36: 12 | OFO36: 12 | OFP36: 12 | OFQ36: 12 | OFR36: 12 | OFS36: 12 | OFT36: 12 | OFU36: 12 | OFV36: 12 | OFW36: 12 | OFX36: 12 | OFY36: 12 | OFZ36: 12 | OGA36: 12 | OGB36: 12 | OGC36: 12 | OGD36: 12 | OGE36: 12 | OGF36: 12 | OGG36: 12 | OGH36: 12 | OGI36: 12 | OGJ36: 12 | OGK36: 12 | OGL36: 12 | OGM36: 12 | OGN36: 12 | OGO36: 12 | OGP36: 12 | OGQ36: 12 | OGR36: 12 | OGS36: 12 | OGT36: 12 | OGU36: 12 | OGV36: 12 | OGW36: 12 | OGX36: 12 | OGY36: 12 | OGZ36: 12 | OHA36: 12 | OHB36: 12 | OHC36: 12 | OHD36: 12 | OHE36: 12 | OHF36: 12 | OHG36: 12 | OHH36: 12 | OHI36: 12 | OHJ36: 12 | OHK36: 12 | OHL36: 12 | OHM36: 12 | OHN36: 12 | OHO36: 12 | OHP36: 12 | OHQ36: 12 | OHR36: 12 | OHS36: 12 | OHT36: 12 | OHU36: 12 | OHV36: 12 | OHW36: 12 | OHX36: 12 | OHY36: 12 | OHZ36: 12 | OIA36: 12 | OIB36: 12 | OIC36: 12 | OID36: 12 | OIE36: 12 | OIF36: 12 | OIG36: 12 | OIH36: 12 | OII36: 12 | OIJ36: 12 | OIK36: 12 | OIL36: 12 | OIM36: 12 | OIN36: 12 | OIO36: 12 | OIP36: 12 | OIQ36: 12 | OIR36: 12 | OIS36: 12 | OIT36: 12 | OIU36: 12 | OIV36: 12 | OIW36: 12 | OIX36: 12 | OIY36: 12 | OIZ36: 12 | OJA36: 12 | OJB36: 12 | OJC36: 12 | OJD36: 12 | OJE36: 12 | OJF36: 12 | OJG36: 12 | OJH36: 12 | OJI36: 12 | OJJ36: 12 | OJK36: 12 | OJL36: 12 | OJM36: 12 | OJN36: 12 | OJO36: 12 | OJP36: 12 | OJQ36: 12 | OJR36: 12 | OJS36: 12 | OJT36: 12 | OJU36: 12 | OJV36: 12 | OJW36: 12 | OJX36: 12 | OJY36: 12 | OJZ36: 12 | OKA36: 12 | OKB36: 12 | OKC36: 12 | OKD36: 12 | OKE36: 12 | OKF36: 12 | OKG36: 12 | OKH36: 12 | OKI36: 12 | OKJ36: 12 | OKK36: 12 | OKL36: 12 | OKM36: 12 | OKN36: 12 | OKO36: 12 | OKP36: 12 | OKQ36: 12 | OKR36: 12 | OKS36: 12 | OKT36: 12 | OKU36: 12 | OKV36: 12 | OKW36: 12 | OKX36: 12 | OKY36: 12 | OKZ36: 12 | OLA36: 12 | OLB36: 12 | OLC36: 12 | OLD36: 12 | OLE36: 12 | OLF36: 12 | OLG36: 12 | OLH36: 12 | OLI36: 12 | OLJ36: 12 | OLK36: 12 | OLL36: 12 | OLM36: 12 | OLN36: 12 | OLO36: 12 | OLP36: 12 | OLQ36: 12 | OLR36: 12 | OLS36: 12 | OLT36: 12 | OLU36: 12 | OLV36: 12 | OLW36: 12 | OLX36: 12 | OLY36: 12 | OLZ36: 12 | OMA36: 12 | OMB36: 12 | OMC36: 12 | OMD36: 12 | OME36: 12 | OMF36: 12 | OMG36: 12 | OMH36: 12 | OMI36: 12 | OMJ36: 12 | OMK36: 12 | OML36: 12 | OMM36: 12 | OMN36: 12 | OMO36: 12 | OMP36: 12 | OMQ36: 12 | OMR36: 12 | OMS36: 12 | OMT36: 12 | OMU36: 12 | OMV36: 12 | OMW36: 12 | OMX36: 12 | OMY36: 12 | OMZ36: 12 | ONA36: 12 | ONB36: 12 | ONC36: 12 | OND36: 12 | ONE36: 12 | ONF36: 12 | ONG36: 12 | ONH36: 12 | ONI36: 12 | ONJ36: 12 | ONK36: 12 | ONL36: 12 | ONM36: 12 | ONN36: 12 | ONO36: 12 | ONP36: 12 | ONQ36: 12 | ONR36: 12 | ONS36: 12 | ONT36: 12 | ONU36: 12 | ONV36: 12 | ONW36: 12 | ONX36: 12 | ONY36: 12 | ONZ36: 12 | OOA36: 12 | OOB36: 12 | OOC36: 12 | OOD36: 12 | OOE36: 12 | OOF36: 12 | OOG36: 12 | OOH36: 12 | OOI36: 12 | OOJ36: 12 | OOK36: 12 | OOL36: 12 | OOM36: 12 | OON36: 12 | OOO36: 12 | OOP36: 12 | OOQ36: 12 | OOR36: 12 | OOS36: 12 | OOT36: 12 | OOU36: 12 | OOV36: 12 | OOW36: 12 | OOX36: 12 | OOY36: 12 | OOZ36: 12 | OPA36: 12 | OPB36: 12 | OPC36: 12 | OPD36: 12 | OPE36: 12 | OPF36: 12 | OPG36: 12 | OPH36: 12 | OPI36: 12 | OPJ36: 12 | OPK36: 12 | OPL36: 12 | OPM36: 12 | OPN36: 12 | OPO36: 12 | OPP36: 12 | OPQ36: 12 | OPR36: 12 | OPS36: 12 | OPT36: 12 | OPU36: 12 | OPV36: 12 | OPW36: 12 | OPX36: 12 | OPY36: 12 | OPZ36: 12 | OQA36: 12 | OQB36: 12 | OQC36: 12 | OQD36: 12 | OQE36: 12 | OQF36: 12 | OQG36: 12 | OQH36: 12 | OQI36: 12 | OQJ36: 12 | OQK36: 12 | OQL36: 12 | OQM36: 12 | OQN36: 12 | OQO36: 12 | OQP36: 12 | OQQ36: 12 | OQR36: 12 | OQS36: 12 | OQT36: 12 | OQU36: 12 | OQV36: 12 | OQW36: 12 | OQX36: 12 | OQY36: 12 | OQZ36: 12 | ORA36: 12 | ORB36: 12 | ORC36: 12 | ORD36: 12 | ORE36: 12 | ORF36: 12 | ORG36: 12 | ORH36: 12 | ORI36: 12 | ORJ36: 12 | ORK36: 12 | ORL36: 12 | ORM36: 12 | ORN36: 12 | ORO36: 12 | ORP36: 12 | ORQ36: 12 | ORR36: 12 | ORS36: 12 | ORT36: 12 | ORU36: 12 | ORV36: 12 | ORW36: 12 | ORX36: 12 | ORY36: 12 | ORZ36: 12 | OSA36: 12 | OSB36: 12 | OSC36: 12 | OSD36: 12 | OSE36: 12 | OSF36: 12 | OSG36: 12 | OSH36: 12 | OSI36: 12 | OSJ36: 12 | OSK36: 12 | OSL36: 12 | OSM36: 12 | OSN36: 12 | OSO36: 12 | OSP36: 12 | OSQ36: 12 | OSR36: 12 | OSS36: 12 | OST36: 12 | OSU36: 12 | OSV36: 12 | OSW36: 12 | OSX36: 12 | OSY36: 12 | OSZ36: 12 | OTA36: 12 | OTB36: 12 | OTC36: 12 | OTD36: 12 | OTE36: 12 | OTF36: 12 | OTG36: 12 | OTH36: 12 | OTI36: 12 | OTJ36: 12 | OTK36: 12 | OTL36: 12 | OTM36: 12 | OTN36: 12 | OTO36: 12 | OTP36: 12 | OTQ36: 12 | OTR36: 12 | OTS36: 12 | OTT36: 12 | OTU36: 12 | OTV36: 12 | OTW36: 12 | OTX36: 12 | OTY36: 12 | OTZ36: 12 | OUA36: 12 | OUB36: 12 | OUC36: 12 | OUD36: 12 | OUE36: 12 | OUF36: 12 | OUG36: 12 | OUH36: 12 | OUI36: 12 | OUJ36: 12 | OUK36: 12 | OUL36: 12 | OUM36: 12 | OUN36: 12 | OUO36: 12 | OUP36: 12 | OUQ36: 12 | OUR36: 12 | OUS36: 12 | OUT36: 12 | OUU36: 12 | OUV36: 12 | OUW36: 12 | OUX36: 12 | OUY36: 12 | OUZ36: 12 | OVA36: 12 | OVB36: 12 | OVC36: 12 | OVD36: 12 | OVE36: 12 | OVF36: 12 | OVG36: 12 | OVH36: 12 | OVI36: 12 | OVJ36: 12 | OVK36: 12 | OVL36: 12 | OVM36: 12 | OVN36: 12 | OVO36: 12 | OVP36: 12 | OVQ36: 12 | OVR36: 12 | OVS36: 12 | OVT36: 12 | OVU36: 12 | OVV36: 12 | OVW36: 12 | OVX36: 12 | OVY36: 12 | OVZ36: 12 | OWA36: 12 | OWB36: 12 | OWC36: 12 | OWD36: 12 | OWE36: 12 | OWF36: 12 | OWG36: 12 | OWH36: 12 | OWI36: 12 | OWJ36: 12 | OWK36: 12 | OWL36: 12 | OWM36: 12 | OWN36: 12 | OWO36: 12 | OWP36: 12 | OWQ36: 12 | OWR36: 12 | OWS36: 12 | OWT36: 12 | OWU36: 12 | OWV36: 12 | OWW36: 12 | OWX36: 12 | OWY36: 12 | OWZ36: 12 | OXA36: 12 | OXB36: 12 | OXC36: 12 | OXD36: 12 | OXE36: 12 | OXF36: 12 | OXG36: 12 | OXH36: 12 | OXI36: 12 | OXJ36: 12 | OXK36: 12 | OXL36: 12 | OXM36: 12 | OXN36: 12 | OXO36: 12 | OXP36: 12 | OXQ36: 12 | OXR36: 12 | OXS36: 12 | OXT36: 12 | OXU36: 12 | OXV36: 12 | OXW36: 12 | OXX36: 12 | OXY36: 12 | OXZ36: 12 | OYA36: 12 | OYB36: 12 | OYC36: 12 | OYD36: 12 | OYE36: 12 | OYF36: 12 | OYG36: 12 | OYH36: 12 | OYI36: 12 | OYJ36: 12 | OYK36: 12 | OYL36: 12 | OYM36: 12 | OYN36: 12 | OYO36: 12 | OYP36: 12 | OYQ36: 12 | OYR36: 12 | OYS36: 12 | OYT36: 12 | OYU36: 12 | OYV36: 12 | OYW36: 12 | OYX36: 12 | OYY36: 12 | OYZ36: 12 | OZA36: 12 | OZB36: 12 | OZC36: 12 | OZD36: 12 | OZE36: 12 | OZF36: 12 | OZG36: 12 | OZH36: 12 | OZI36: 12 | OZJ36: 12 | OZK36: 12 | OZL36: 12 | OZM36: 12 | OZN36: 12 | OZO36: 12 | OZP36: 12 | OZQ36: 12 | OZR36: 12 | OZS36: 12 | OZT36: 12 | OZU36: 12 | OZV36: 12 | OZW36: 12 | OZX36: 12 | OZY36: 12 | OZZ36: 12 | PAA36: 12 | PAB36: 12 | PAC36: 12 | PAD36: 12 | PAE36: 12 | PAF36: 12 | PAG36: 12 | PAH36: 12 | PAI36: 12 | PAJ36: 12 | PAK36: 12 | PAL36: 12 | PAM36: 12 | PAN36: 12 | PAO36: 12 | PAP36: 12 | PAQ36: 12 | PAR36: 12 | PAS36: 12 | PAT36: 12 | PAU36: 12 | PAV36: 12 | PAW36: 12 | PAX36: 12 | PAY36: 12 | PAZ36: 12 | PBA36: 12 | PBB36: 12 | PBC36: 12 | PBD36: 12 | PBE36: 12 | PBF36: 12 | PBG36: 12 | PBH36: 12 | PBI36: 12 | PBJ36: 12 | PBK36: 12 | PBL36: 12 | PBM36: 12 | PBN36: 12 | PBO36: 12 | PBP36: 12 | PBQ36: 12 | PBR36: 12 | PBS36: 12 | PBT36: 12 | PBU36: 12 | PBV36: 12 | PBW36: 12 | PBX36: 12 | PBY36: 12 | PBZ36: 12 | PCA36: 12 | PCB36: 12 | PCC36: 12 | PCD36: 12 | PCE36: 12 | PCF36: 12 | PCG36: 12 | PCH36: 12 | PCI36: 12 | PCJ36: 12 | PCK36: 12 | PCL36: 12 | PCM36: 12 | PCN36: 12 | PCO36: 12 | PCP36: 12 | PCQ36: 12 | PCR36: 12 | PCS36: 12 | PCT36: 12 | PCU36: 12 | PCV36: 12 | PCW36: 12 | PCX36: 12 | PCY36: 12 | PCZ36: 12 | PDA36: 12 | PDB36: 12 | PDC36: 12 | PDD36: 12 | PDE36: 12 | PDF36: 12 | PDG36: 12 | PDH36: 12 | PDI36: 12 | PDJ36: 12 | PDK36: 12 | PDL36: 12 | PDM36: 12 | PDN36: 12 | PDO36: 12 | PDP36: 12 | PDQ36: 12 | PDR36: 12 | PDS36: 12 | PDT36: 12 | PDU36: 12 | PDV36: 12 | PDW36: 12 | PDX36: 12 | PDY36: 12 | PDZ36: 12 | PEA36: 12 | PEB36: 12 | PEC36: 12 | PED36: 12 | PEE36: 12 | PEF36: 12 | PEG36: 12 | PEH36: 12 | PEI36: 12 | PEJ36: 12 | PEK36: 12 | PEL36: 12 | PEM36: 12 | PEN36: 12 | PEO36: 12 | PEP36: 12 | PEQ36: 12 | PER36: 12 | PES36: 12 | PET36: 12 | PEU36: 12 | PEV36: 12 | PEW36: 12 | PEX36: 12 | PEY36: 12 | PEZ36: 12 | PFA36: 12 | PFB36: 12 | PFC36: 12 | PFD36: 12 | PFE36: 12 | PFF36: 12 | PFG36: 12 | PFH36: 12 | PFI36: 12 | PFJ36: 12 | PFK36: 12 | PFL36: 12 | PFM36: 12 | PFN36: 12 | PFO36: 12 | PFP36: 12 | PFQ36: 12 | PFR36: 12 | PFS36: 12 | PFT36: 12 | PFU36: 12 | PFV36: 12 | PFW36: 12 | PFX36: 12 | PFY36: 12 | PFZ36: 12 | PGA36: 12 | PGB36: 12 | PGC36: 12 | PGD36: 12 | PGE36: 12 | PGF36: 12 | PGG36: 12 | PGH36: 12 | PGI36: 12 | PGJ36: 12 | PGK36: 12 | PGL36: 12 | PGM36: 12 | PGN36: 12 | PGO36: 12 | PGP36: 12 | PGQ36: 12 | PGR36: 12 | PGS36: 12 | PGT36: 12 | PGU36: 12 | PGV36: 12 | PGW36: 12 | PGX36: 12 | PGY36: 12 | PGZ36: 12 | PHA36: 12 | PHB36: 12 | PHC36: 12 | PHD36: 12 | PHE36: 12 | PHF36: 12 | PHG36: 12 | PHH36: 12 | PHI36: 12 | PHJ36: 12 | PHK36: 12 | PHL36: 12 | PHM36: 12 | PHN36: 12 | PHO36: 12 | PHP36: 12 | PHQ36: 12 | PHR36: 12 | PHS36: 12 | PHT36: 12 | PHU36: 12 | PHV36: 12 | PHW36: 12 | PHX36: 12 | PHY36: 12 | PHZ36: 12 | PIA36: 12 | PIB36: 12 | PIC36: 12 | PID36: 12 | PIE36: 12 | PIF36: 12 | PIG36: 12 | PIH36: 12 | PII36: 12 | PIJ36: 12 | PIK36: 12 | PIL36: 12 | PIM36: 12 | PIN36: 12 | PIO36: 12 | PIP36: 12 | PIQ36: 12 | PIR36: 12 | PIS36: 12 | PIT36: 12 | PIU36: 12 | PIV36: 12 | PIW36: 12 | PIX36: 12 | PIY36: 12 | PIZ36: 12 | PJA36: 12 | PJB36: 12 | PJC36: 12 | PJD36: 12 | PJE36: 12 | PJF36: 12 | PJG36: 12 | PJH36: 12 | PJI36: 12 | PJJ36: 12 | PJK36: 12 | PJL36: 12 | PJM36: 12 | PJN36: 12 | PJO36: 12 | PJP36: 12 | PJQ36: 12 | PJR36: 12 | PJS36: 12 | PJT36: 12 | PJU36: 12 | PJV36: 12 | PJW36: 12 | PJX36: 12 | PJY36: 12 | PJZ36: 12 | PKA36: 12 | PKB36: 12 | PKC36: 12 | PKD36: 12 | PKE36: 12 | PKF36: 12 | PKG36: 12 | PKH36: 12 | PKI36: 12 | PKJ36: 12 | PKK36: 12 | PKL36: 12 | PKM36: 12 | PKN36: 12 | PKO36: 12 | PKP36: 12 | PKQ36: 12 | PKR36: 12 | PKS36: 12 | PKT36: 12 | PKU36: 12 | PKV36: 12 | PKW36: 12 | PKX36: 12 | PKY36: 12 | PKZ36: 12 | PLA36: 12 | PLB36: 12 | PLC36: 12 | PLD36: 12 | PLE36: 12 | PLF36: 12 | PLG36: 12 | PLH36: 12 | PLI36: 12 | PLJ36: 12 | PLK36: 12 | PLL36: 12 | PLM36: 12 | PLN36: 12 | PLO36: 12 | PLP36: 12 | PLQ36: 12 | PLR36: 12 | PLS36: 12 | PLT36: 12 | PLU36: 12 | PLV36: 12 | PLW36: 12 | PLX36: 12 | PLY36: 12 | PLZ36: 12 | PMA36: 12 | PMB36: 12 | PMC36: 12 | PMD36: 12 | PME36: 12 | PMF36: 12 | PMG36: 12 | PMH36: 12 | PMI36: 12 | PMJ36: 12 | PMK36: 12 | PML36: 12 | PMM36: 12 | PMN36: 12 | PMO36: 12 | PMP36: 12 | PMQ36: 12 | PMR36: 12 | PMS36: 12 | PMT36: 12 | PMU36: 12 | PMV36: 12 | PMW36: 12 | PMX36: 12 | PMY36: 12 | PMZ36: 12 | PNA36: 12 | PNB36: 12 | PNC36: 12 | PND36: 12 | PNE36: 12 | PNF36: 12 | PNG36: 12 | PNH36: 12 | PNI36: 12 | PNJ36: 12 | PNK36: 12 | PNL36: 12 | PNM36: 12 | PNN36: 12 | PNO36: 12 | PNP36: 12 | PNQ36: 12 | PNR36: 12 | PNS36: 12 | PNT36: 12 | PNU36: 12 | PNV36: 12 | PNW36: 12 | PNX36: 12 | PNY36: 12 | PNZ36: 12 | POA36: 12 | POB36: 12 | POC36: 12 | POD36: 12 | POE36: 12 | POF36: 12 | POG36: 12 | POH36: 12 | POI36: 12 | POJ36: 12 | POK36: 12 | POL36: 12 | POM36: 12 | PON36: 12 | POO36: 12 | POP36: 12 | POQ36: 12 | POR36: 12 | POS36: 12 | POT36: 12 | POU36: 12 | POV36: 12 | POW36: 12 | POX36: 12 | POY36: 12 | POZ36: 12 | PPA36: 12 | PPB36: 12 | PPC36: 12 | PPD36: 12 | PPE36: 12 | PPF36: 12 | PPG36: 12 | PPH36: 12 | PPI36: 12 | PPJ36: 12 | PPK36: 12 | PPL36: 12 | PPM36: 12 | PPN36: 12 | PPO36: 12 | PPP36: 12 | PPQ36: 12 | PPR36: 12 | PPS36: 12 | PPT36: 12 | PPU36: 12 | PPV36: 12 | PPW36: 12 | PPX36: 12 | PPY36: 12 | PPZ36: 12 | PQA36: 12 | PQB36: 12 | PQC36: 12 | PQD36: 12 | PQE36: 12 | PQF36: 12 | PQG36: 12 | PQH36: 12 | PQI36: 12 | PQJ36: 12 | PQK36: 12 | PQL36: 12 | PQM36: 12 | PQN36: 12 | PQO36: 12 | PQP36: 12 | PQQ36: 12 | PQR36: 12 | PQS36: 12 | PQT36: 12 | PQU36: 12 | PQV36: 12 | PQW36: 12 | PQX36: 12 | PQY36: 12 | PQZ36: 12 | PRA36: 12 | PRB36: 12 | PRC36: 12 | PRD36: 12 | PRE36: 12 | PRF36: 12 | PRG36: 12 | PRH36: 12 | PRI36: 12 | PRJ36: 12 | PRK36: 12 | PRL36: 12 | PRM36: 12 | PRN36: 12 | PRO36: 12 | PRP36: 12 | PRQ36: 12 | PRR36: 12 | PRS36: 12 | PRT36: 12 | PRU36: 12 | PRV36: 12 | PRW36: 12 | PRX36: 12 | PRY36: 12 | PRZ36: 12 | PSA36: 12 | PSB36: 12 | PSC36: 12 | PSD36: 12 | PSE36: 12 | PSF36: 12 | PSG36: 12 | PSH36: 12 | PSI36: 12 | PSJ36: 12 | PSK36: 12 | PSL36: 12 | PSM36: 12 | PSN36: 12 | PSO36: 12 | PSP36: 12 | PSQ36: 12 | PSR36: 12 | PSS36: 12 | PST36: 12 | PSU36: 12 | PSV36: 12 | PSW36: 12 | PSX36: 12 | PSY36: 12 | PSZ36: 12 | PTA36: 12 | PTB36: 12 | PTC36: 12 | PTD36: 12 | PTE36: 12 | PTF36: 12 | PTG36: 12 | PTH36: 12 | PTI36: 12 | PTJ36: 12 | PTK36: 12 | PTL36: 12 | PTM36: 12 | PTN36: 12 | PTO36: 12 | PTP36: 12 | PTQ36: 12 | PTR36: 12 | PTS36: 12 | PTT36: 12 | PTU36: 12 | PTV36: 12 | PTW36: 12 | PTX36: 12 | PTY36: 12 | PTZ36: 12 | PUA36: 12 | PUB36: 12 | PUC36: 12 | PUD36: 12 | PUE36: 12 | PUF36: 12 | PUG36: 12 | PUH36: 12 | PUI36: 12 | PUJ36: 12 | PUK36: 12 | PUL36: 12 | PUM36: 12 | PUN36: 12 | PUO36: 12 | PUP36: 12 | PUQ36: 12 | PUR36: 12 | PUS36: 12 | PUT36: 12 | PUU36: 12 | PUV36: 12 | PUW36: 12 | PUX36: 12 | PUY36: 12 | PUZ36: 12 | PVA36: 12 | PVB36: 12 | PVC36: 12 | PVD36: 12 | PVE36: 12 | PVF36: 12 | PVG36: 12 | PVH36: 12 | PVI36: 12 | PVJ36: 12 | PVK36: 12 | PVL36: 12 | PVM36: 12 | PVN36: 12 | PVO36: 12 | PVP36: 12 | PVQ36: 12 | PVR36: 12 | PVS36: 12 | PVT36: 12 | PVU36: 12 | PVV36: 12 | PVW36: 12 | PVX36: 12 | PVY36: 12 | PVZ36: 12 | PWA36: 12 | PWB36: 12 | PWC36: 12 | PWD36: 12 | PWE36: 12 | PWF36: 12 | PWG36: 12 | PWH36: 12 | PWI36: 12 | PWJ36: 12 | PWK36: 12 | PWL36: 12 | PWM36: 12 | PWN36: 12 | PWO36: 12 | PWP36: 12 | PWQ36: 12 | PWR36: 12 | PWS36: 12 | PWT36: 12 | PWU36: 12 | PWV36: 12 | PWW36: 12 | PWX36: 12 | PWY36: 12 | PWZ36: 12 | PXA36: 12 | PXB36: 12 | PXC36: 12 | PXD36: 12 | PXE36: 12 | PXF36: 12 | PXG36: 12 | PXH36: 12 | PXI36: 12 | PXJ36: 12 | PXK36: 12 | PXL36: 12 | PXM36: 12 | PXN36: 12 | PXO36: 12 | PXP36: 12 | PXQ36: 12 | PXR36: 12 | PXS36: 12 | PXT36: 12 | PXU36: 12 | PXV36: 12 | PXW36: 12 | PXX36: 12 | PXY36: 12 | PXZ36: 12 | PYA36: 12 | PYB36: 12 | PYC36: 12 | PYD36: 12 | PYE36: 12 | PYF36: 12 | PYG36: 12 | PYH36: 12 | PYI36: 12 | PYJ36: 12 | PYK36: 12 | PYL36: 12 | PYM36: 12 | PYN36: 12 | PYO36: 12 | PYP36: 12 | PYQ36: 12 | PYR36: 12 | PYS36: 12 | PYT36: 12 | PYU36: 12 | PYV36: 12 | PYW36: 12 | PYX36: 12 | PYY36: 12 | PYZ36: 12 | PZA36: 12 | PZB36: 12 | PZC36: 12 | PZD36: 12 | PZE36: 12 | PZF36: 12 | PZG36: 12 | PZH36: 12 | PZI36: 12 | PZJ36: 12 | PZK36: 12 | PZL36: 12 | PZM36: 12 | PZN36: 12 | PZO36: 12 | PZP36: 12 | PZQ36: 12 | PZR36: 12 | PZS36: 12 | PZT36: 12 | PZU36: 12 | PZV36: 12 | PZW36: 12 | PZX36: 12 | PZY36: 12 | PZZ36: 12 | QAA36: 12 | QAB36: 12 | QAC36: 12 | QAD36: 12 | QAE36: 12 | QAF36: 12 | QAG36: 12 | QAH36: 12 | QAI36: 12 | QAJ36: 12 | QAK36: 12 | QAL36: 12 | QAM36: 12 | QAN36: 12 | QAO36: 12 | QAP36: 12 | QAQ36: 12 | QAR36: 12 | QAS36: 12 | QAT36: 12 | QAU36: 12 | QAV36: 12 | QAW36: 12 | QAX36: 12 | QAY36: 12 | QAZ36: 12 | QBA36: 12 | QBB36: 12 | QBC36: 12 | QBD36: 12 | QBE36: 12 | QBF36: 12 | QBG36: 12 | QBH36: 12 | QBI36: 12 | QBJ36: 12 | QBK36: 12 | QBL36: 12 | QBM36: 12 | QBN36: 12 | QBO36: 12 | QBP36: 12 | QBQ36: 12 | QBR36: 12 | QBS36: 12 | QBT36: 12 | QBU36: 12 | QBV36: 12 | QBW36: 12 | QBX36: 12 | QBY36: 12 | QBZ36: 12 | QCA36: 12 | QCB36: 12 | QCC36: 12 | QCD36: 12 | QCE36: 12 | QCF36: 12 | QCG36: 12 | QCH36: 12 | QCI36: 12 | QCJ36: 12 | QCK36: 12 | QCL36: 12 | QCM36: 12 | QCN36: 12 | QCO36: 12 | QCP36: 12 | QCQ36: 12 | QCR36: 12 | QCS36: 12 | QCT36: 12 | QCU36: 12 | QCV36: 12 | QCW36: 12 | QCX36: 12 | QCY36: 12 | QCZ36: 12 | QDA36: 12 | QDB36: 12 | QDC36: 12 | QDD36: 12 | QDE36: 12 | QDF36: 12 | QDG36: 12 | QDH36: 12 | QDI36: 12 | QDJ36: 12 | QDK36: 12 | QDL36: 12 | QDM36: 12 | QDN36: 12 | QDO36: 12 | QDP36: 12 | QDQ36: 12 | QDR36: 12 | QDS36: 12 | QDT36: 12 | QDU36: 12 | QDV36: 12 | QDW36: 12 | QDX36: 12 | QDY36: 12 | QDZ36: 12 | QEA36: 12 | QEB36: 12 | QEC36: 12 | QED36: 12 | QEE36: 12 | QEF36: 12 | QEG36: 12 | QEH36: 12 | QEI36: 12 | QEJ36: 12 | QEK36: 12 | QEL36: 12 | QEM36: 12 | QEN36: 12 | QEO36: 12 | QEP36: 12 | QEQ36: 12 | QER36: 12 | QES36: 12 | QET36: 12 | QEU36: 12 | QEV36: 12 | QEW36: 12 | QEX36: 12 | QEY36: 12 | QEZ36: 12 | QFA36: 12 | QFB36: 12 | QFC36: 12 | QFD36: 12 | QFE36: 12 | QFF36: 12 | QFG36: 12 | QFH36: 12 | QFI36: 12 | QFJ36: 12 | QFK36: 12 | QFL36: 12 | QFM36: 12 | QFN36: 12 | QFO36: 12 | QFP36: 12 | QFQ36: 12 | QFR36: 12 | QFS36: 12 | QFT36: 12 | QFU36: 12 | QFV36: 12 | QFW36: 12 | QFX36: 12 | QFY36: 12 | QFZ36: 12 | QGA36: 12 | QGB36: 12 | QGC36: 12 | QGD36: 12 | QGE36: 12 | QGF36: 12 | QGG36: 12 | QGH36: 12 | QGI36: 12 | QGJ36: 12 | QGK36: 12 | QGL36: 12 | QGM36: 12 | QGN36: 12 | QGO36: 12 | QGP36: 12 | QGQ36: 12 | QGR36: 12 | QGS36: 12 | QGT36: 12 | QGU36: 12 | QGV36: 12 | QGW36: 12 | QGX36: 12 | QGY36: 12 | QGZ36: 12 | QHA36: 12 | QHB36: 12 | QHC36: 12 | QHD36: 12 | QHE36: 12 | QHF36: 12 | QHG36: 12 | QHH36: 12 | QHI36: 12 | QHJ36: 12 | QHK36: 12 | QHL36: 12 | QHM36: 12 | QHN36: 12 | QHO36: 12 | QHP36: 12 | QHQ36: 12 | QHR36: 12 | QHS36: 12 | QHT36: 12 | QHU36: 12 | QHV36: 12 | QHW36: 12 | QHX36: 12 | QHY36: 12 | QHZ36: 12 | QIA36: 12 | QIB36: 12 | QIC36: 12 | QID36: 12 | QIE36: 12 | QIF36: 12 | QIG36: 12 | QIH36: 12 | QII36: 12 | QIJ36: 12 | QIK36: 12 | QIL36: 12 | QIM36: 12 | QIN36: 12 | QIO36: 12 | QIP36: 12 | QIQ36: 12 | QIR36: 12 | QIS36: 12 | QIT36: 12 | QIU36: 12 | QIV36: 12 | QIW36: 12 | QIX36: 12 | QIY36: 12 | QIZ36: 12 | QJA36: 12 | QJB36: 12 | QJC36: 12 | QJD36: 12 | QJE36: 12 | QJF36: 12 | QJG36: 12 | QJH36: 12 | QJI36: 12 | QJJ36: 12 | QJK36: 12 | QJL36: 12 | QJM36: 12 | QJN36: 12 | QJO36: 12 | QJP36: 12 | QJQ36: 12 | QJR36: 12 | QJS36: 12 | QJT36: 12 | QJU36: 12 | QJV36: 12 | QJW36: 12 | QJX36: 12 | QJY36: 12 | QJZ36: 12 | QKA36: 12 | QKB36: 12 | QKC36: 12 | QKD36: 12 | QKE36: 12 | QKF36: 12 | QKG36: 12 | QKH36: 12 | QKI36: 12 | QKJ36: 12 | QKK36: 12 | QKL36: 12 | QKM36: 12 | QKN36: 12 | QKO36: 12 | QKP36: 12 | QKQ36: 12 | QKR36: 12 | QKS36: 12 | QKT36: 12 | QKU36: 12 | QKV36: 12 | QKW36: 12 | QKX36: 12 | QKY36: 12 | QKZ36: 12 | QLA36: 12 | QLB36: 12 | QLC36: 12 | QLD36: 12 | QLE36: 12 | QLF36: 12 | QLG36: 12 | QLH36: 12 | QLI36: 12 | QLJ36: 12 | QLK36: 12 | QLL36: 12 | QLM36: 12 | QLN36: 12 | QLO36: 12 | QLP36: 12 | QLQ36: 12 | QLR36: 12 | QLS36: 12 | QLT36: 12 | QLU36: 12 | QLV36: 12 | QLW36: 12 | QLX36: 12 | QLY36: 12 | QLZ36: 12 | QMA36: 12 | QMB36: 12 | QMC36: 12 | QMD36: 12 | QME36: 12 | QMF36: 12 | QMG36: 12 | QMH36: 12 | QMI36: 12 | QMJ36: 12 | QMK36: 12 | QML36: 12 | QMM36: 12 | QMN36: 12 | QMO36: 12 | QMP36: 12 | QMQ36: 12 | QMR36: 12 | QMS36: 12 | QMT36: 12 | QMU36: 12 | QMV36: 12 | QMW36: 12 | QMX36: 12 | QMY36: 12 | QMZ36: 12 | QNA36: 12 | QNB36: 12 | QNC36: 12 | QND36: 12 | QNE36: 12 | QNF36: 12 | QNG36: 12 | QNH36: 12 | QNI36: 12 | QNJ36: 12 | QNK36: 12 | QNL36: 12 | QNM36: 12 | QNN36: 12 | QNO36: 12 | QNP36: 12 | QNQ36: 12 | QNR36: 12 | QNS36: 12 | QNT36: 12 | QNU36: 12 | QNV36: 12 | QNW36: 12 | QNX36: 12 | QNY36: 12 | QNZ36: 12 | QOA36: 12 | QOB36: 12 | QOC36: 12 | QOD36: 12 | QOE36: 12 | QOF36: 12 | QOG36: 12 | QOH36: 12 | QOI36: 12 | QOJ36: 12 | QOK36: 12 | QOL36: 12 | QOM36: 12 | QON36: 12 | QOO36: 12 | QOP36: 12 | QOQ36: 12 | QOR36: 12 | QOS36: 12 | QOT36: 12 | QOU36: 12 | QOV36: 12 | QOW36: 12 | QOX36: 12 | QOY36: 12 | QOZ36: 12 | QPA36: 12 | QPB36: 12 | QPC36: 12 | QPD36: 12 | QPE36: 12 | QPF36: 12 | QPG36: 12 | QPH36: 12 | QPI36: 12 | QPJ36: 12 | QPK36: 12 | QPL36: 12 | QPM36: 12 | QPN36: 12 | QPO36: 12 | QPP36: 12 | QPQ36: 12 | QPR36: 12 | QPS36: 12 | QPT36: 12 | QPU36: 12 | QPV36: 12 | QPW36: 12 | QPX36: 12 | QPY36: 12 | QPZ36: 12 | QQA36: 12 | QQB36: 12 | QQC36: 12 | QQD36: 12 | QQE36: 12 | QQF36: 12 | QQG36: 12 | QQH36: 12 | QQI36: 12 | QQJ36: 12 | QQK36: 12 | QQL36: 12 | QQM36: 12 | QQN36: 12 | QQO36: 12 | QQP36: 12 | QQQ36: 12 | QQR36: 12 | QQS36: 12 | QQT36: 12 | QQU36: 12 | QQV36: 12 | QQW36: 12 | QQX36: 12 | QQY36: 12 | QQZ36: 12 | QRA36: 12 | QRB36: 12 | QRC36: 12 | QRD36: 12 | QRE36: 12 | QRF36: 12 | QRG36: 12 | QRH36: 12 | QRI36: 12 | QRJ36: 12 | QRK36: 12 | QRL36: 12 | QRM36: 12 | QRN36: 12 | QRO36: 12 | QRP36: 12 | QRQ36: 12 | QRR36: 12 | QRS36: 12 | QRT36: 12 | QRU36: 12 | QRV36: 12 | QRW36: 12 | QRX36: 12 | QRY36: 12 | QRZ36: 12 | QSA36: 12 | QSB36: 12 | QSC36: 12 | QSD36: 12 | QSE36: 12 | QSF36: 12 | QSG36: 12 | QSH36: 12 | QSI36: 12 | QSJ36: 12 | QSK36: 12 | QSL36: 12 | QSM36: 12 | QSN36: 12 | QSO36: 12 | QSP36: 12 | QSQ36: 12 | QSR36: 12 | QSS36: 12 | QST36: 12 | QSU36: 12 | QSV36: 12 | QSW36: 12 | QSX36: 12 | QSY36: 12 | QSZ36: 12 | QTA36: 12 | QTB36: 12 | QTC36: 12 | QTD36: 12 | QTE36: 12 | QTF36: 12 | QTG36: 12 | QTH36: 12 | QTI36: 12 | QTJ36: 12 | QTK36: 12 | QTL36: 12 | QTM36: 12 | QTN36: 12 | QTO36: 12 | QTP36: 12 | QTQ36: 12 | QTR36: 12 | QTS36: 12 | QTT36: 12 | QTU36: 12 | QTV36: 12 | QTW36: 12 | QTX36: 12 | QTY36: 12 | QTZ36: 12 | QUA36: 12 | QUB36: 12 | QUC36: 12 | QUD36: 12 | QUE36: 12 | QUF36: 12 | QUG36: 12 | QUH36: 12 | QUI36: 12 | QUJ36: 12 | QUK36: 12 | QUL36: 12 | QUM36: 12 | QUN36: 12 | QUO36: 12 | QUP36: 12 | QUQ36: 12 | QUR36: 12 | QUS36: 12 | QUT36: 12 | QUU36: 12 | QUV36: 12 | QUW36: 12 | QUX36: 12 | QUY36: 12 | QUZ36: 12 | QVA36: 12 | QVB36: 12 | QVC36: 12 | QVD36: 12 | QVE36: 12 | QVF36: 12 | QVG36: 12 | QVH36: 12 | QVI36: 12 | QVJ36: 12 | QVK36: 12 | QVL36: 12 | QVM36: 12 | QVN36: 12 | QVO36: 12 | QVP36: 12 | QVQ36: 12 | QVR36: 12 | QVS36: 12 | QVT36: 12 | QVU36: 12 | QVV36: 12 | QVW36: 12 | QVX36: 12 | QVY36: 12 | QVZ36: 12 | QWA36: 12 | QWB36: 12 | QWC36: 12 | QWD36: 12 | QWE36: 12 | QWF36: 12 | QWG36: 12 | QWH36: 12 | QWI36: 12 | QWJ36: 12 | QWK36: 12 | QWL36: 12 | QWM36: 12 | QWN36: 12 | QWO36: 12 | QWP36: 12 | QWQ36: 12 | QWR36: 12 | QWS36: 12 | QWT36: 12 | QWU36: 12 | QWV36: 12 | QWW36: 12 | QWX36: 12 | QWY36: 12 | QWZ36: 12 | QXA36: 12 | QXB36: 12 | QXC36: 12 | QXD36: 12 | QXE36: 12 | QXF36: 12 | QXG36: 12 | QXH36: 12 | QXI36: 12 | QXJ36: 12 | QXK36: 12 | QXL36: 12 | QXM36: 12 | QXN36: 12 | QXO36: 12 | QXP36: 12 | QXQ36: 12 | QXR36: 12 | QXS36: 12 | QXT36: 12 | QXU36: 12 | QXV36: 12 | QXW36: 12 | QXX36: 12 | QXY36: 12 | QXZ36: 12 | QYA36: 12 | QYB36: 12 | QYC36: 12 | QYD36: 12 | QYE36: 12 | QYF36: 12 | QYG36: 12 | QYH36: 12 | QYI36: 12 | QYJ36: 12 | QYK36: 12 | QYL36: 12 | QYM36: 12 | QYN36: 12 | QYO36: 12 | QYP36: 12 | QYQ36: 12 | QYR36: 12 | QYS36: 12 | QYT36: 12 | QYU36: 12 | QYV36: 12 | QYW36: 12 | QYX36: 12 | QYY36: 12 | QYZ36: 12 | QZA36: 12 | QZB36: 12 | QZC36: 12 | QZD36: 12 | QZE36: 12 | QZF36: 12 | QZG36: 12 | QZH36: 12 | QZI36: 12 | QZJ36: 12 | QZK36: 12 | QZL36: 12 | QZM36: 12 | QZN36: 12 | QZO36: 12 | QZP36: 12 | QZQ36: 12 | QZR36: 12 | QZS36: 12 | QZT36: 12 | QZU36: 12 | QZV36: 12 | QZW36: 12 | QZX36: 12 | QZY36: 12 | QZZ36: 12 | RAA36: 12 | RAB36: 12 | RAC36: 12 | RAD36: 12 | RAE36: 12 | RAF36: 12 | RAG36: 12 | RAH36: 12 | RAI36: 12 | RAJ36: 12 | RAK36: 12 | RAL36: 12 | RAM36: 12 | RAN36: 12 | RAO36: 12 | RAP36: 12 | RAQ36: 12 | RAR36: 12 | RAS36: 12 | RAT36: 12 | RAU36: 12 | RAV36: 12 | RAW36: 12 | RAX36: 12 | RAY36: 12 | RAZ36: 12 | RBA36: 12 | RBB36: 12 | RBC36: 12 | RBD36: 12 | RBE36: 12 | RBF36: 12 | RBG36: 12 | RBH36: 12 | RBI36: 12 | RBJ36: 12 | RBK36: 12 | RBL36: 12 | RBM36: 12 | RBN36: 12 | RBO36: 12 | RBP36: 12 | RBQ36: 12 | RBR36: 12 | RBS36: 12 | RBT36: 12 | RBU36: 12 | RBV36: 12 | RBW36: 12 | RBX36: 12 | RBY36: 12 | RBZ36: 12 | RCA36: 12 | RCB36: 12 | RCC36: 12 | RCD36: 12 | RCE36: 12 | RCF36: 12 | RCG36: 12 | RCH36: 12 | RCI36: 12 | RCJ36: 12 | RCK36: 12 | RCL36: 12 | RCM36: 12 | RCN36: 12 | RCO36: 12 | RCP36: 12 | RCQ36: 12 | RCR36: 12 | RCS36: 12 | RCT36: 12 | RCU36: 12 | RCV36: 12 | RCW36: 12 | RCX36: 12 | RCY36: 12 | RCZ36: 12 | RDA36: 12 | RDB36: 12 | RDC36: 12 | RDD36: 12 | RDE36: 12 | RDF36: 12 | RDG36: 12 | RDH36: 12 | RDI36: 12 | RDJ36: 12 | RDK36: 12 | RDL36: 12 | RDM36: 12 | RDN36: 12 | RDO36: 12 | RDP36: 12 | RDQ36: 12 | RDR36: 12 | RDS36: 12 | RDT36: 12 | RDU36: 12 | RDV36: 12 | RDW36: 12 | RDX36: 12 | RDY36: 12 | RDZ36: 12 | REA36: 12 | REB36: 12 | REC36: 12 | RED36: 12 | REE36: 12 | REF36: 12 | REG36: 12 | REH36: 12 | REI36: 12 | REJ36: 12 | REK36: 12 | REL36: 12 | REM36: 12 | REN36: 12 | REO36: 12 | REP36: 12 | REQ36: 12 | RER36: 12 | RES36: 12 | RET36: 12 | REU36: 12 | REV36: 12 | REW36: 12 | REX36: 12 | REY36: 12 | REZ36: 12 | RFA36: 12 | RFB36: 12 | RFC36: 12 | RFD36: 12 | RFE36: 12 | RFF36: 12 | RFG36: 12 | RFH36: 12 | RFI36: 12 | RFJ36: 12 | RFK36: 12 | RFL36: 12 | RFM36: 12 | RFN36: 12 | RFO36: 12 | RFP36: 12 | RFQ36: 12 | RFR36: 12 | RFS36: 12 | RFT36: 12 | RFU36: 12 | RFV36: 12 | RFW36: 12 | RFX36: 12 | RFY36: 12 | RFZ36: 12 | RGA36: 12 | RGB36: 12 | RGC36: 12 | RGD36: 12 | RGE36: 12 | RGF36: 12 | RGG36: 12 | RGH36: 12 | RGI36: 12 | RGJ36: 12 | RGK36: 12 | RGL36: 12 | RGM36: 12 | RGN36: 12 | RGO36: 12 | RGP36: 12 | RGQ36: 12 | RGR36: 12 | RGS36: 12 | RGT36: 12 | RGU36: 12 | RGV36: 12 | RGW36: 12 | RGX36: 12 | RGY36: 12 | RGZ36: 12 | RHA36: 12 | RHB36: 12 | RHC36: 12 | RHD36: 12 | RHE36: 12 | RHF36: 12 | RHG36: 12 | RHH36: 12 | RHI36: 12 | RHJ36: 12 | RHK36: 12 | RHL36: 12 | RHM36: 12 | RHN36: 12 | RHO36: 12 | RHP36: 12 | RHQ36: 12 | RHR36: 12 | RHS36: 12 | RHT36: 12 | RHU36: 12 | RHV36: 12 | RHW36: 12 | RHX36: 12 | RHY36: 12 | RHZ36: 12 | RIA36: 12 | RIB36: 12 | RIC36: 12 | RID36: 12 | RIE36: 12 | RIF36: 12 | RIG36: 12 | RIH36: 12 | RII36: 12 | RIJ36: 12 | RIK36: 12 | RIL36: 12 | RIM36: 12 | RIN36: 12 | RIO36: 12 | RIP36: 12 | RIQ36: 12 | RIR36: 12 | RIS36: 12 | RIT36: 12 | RIU36: 12 | RIV36: 12 | RIW36: 12 | RIX36: 12 | RIY36: 12 | RIZ36: 12 | RJA36: 12 | RJB36: 12 | RJC36: 12 | RJD36: 12 | RJE36: 12 | RJF36: 12 | RJG36: 12 | RJH36: 12 | RJI36: 12 | RJJ36: 12 | RJK36: 12 | RJL36: 12 | RJM36: 12 | RJN36: 12 | RJO36: 12 | RJP36: 12 | RJQ36: 12 | RJR36: 12 | RJS36: 12 | RJT36: 12 | RJU36: 12 | RJV36: 12 | RJW36: 12 | RJX36: 12 | RJY36: 12 | RJZ36: 12 | RKA36: 12 | RKB36: 12 | RKC36: 12 | RKD36: 12 | RKE36: 12 | RKF36: 12 | RKG36: 12 | RKH36: 12 | RKI36: 12 | RKJ36: 12 | RKK36: 12 | RKL36: 12 | RKM36: 12 | RKN36: 12 | RKO36: 12 | RKP36: 12 | RKQ36: 12 | RKR36: 12 | RKS36: 12 | RKT36: 12 | RKU36: 12 | RKV36: 12 | RKW36: 12 | RKX36: 12 | RKY36: 12 | RKZ36: 12 | RLA36: 12 | RLB36: 12 | RLC36: 12 | RLD36: 12 | RLE36: 12 | RLF36: 12 | RLG36: 12 | RLH36: 12 | RLI36: 12 | RLJ36: 12 | RLK36: 12 | RLL36: 12 | RLM36: 12 | RLN36: 12 | RLO36: 12 | RLP36: 12 | RLQ36: 12 | RLR36: 12 | RLS36: 12 | RLT36: 12 | RLU36: 12 | RLV36: 12 | RLW36: 12 | RLX36: 12 | RLY36: 12 | RLZ36: 12 | RMA36: 12 | RMB36: 12 | RMC36: 12 | RMD36: 12 | RME36: 12 | RMF36: 12 | RMG36: 12 | RMH36: 12 | RMI36: 12 | RMJ36: 12 | RMK36: 12 | RML36: 12 | RMM36: 12 | RMN36: 12 | RMO36: 12 | RMP36: 12 | RMQ36: 12 | RMR36: 12 | RMS36: 12 | RMT36: 12 | RMU36: 12 | RMV36: 12 | RMW36: 12 | RMX36: 12 | RMY36: 12 | RMZ36: 12 | RNA36: 12 | RNB36: 12 | RNC36: 12 | RND36: 12 | RNE36: 12 | RNF36: 12 | RNG36: 12 | RNH36: 12 | RNI36: 12 | RNJ36: 12 | RNK36: 12 | RNL36: 12 | RNM36: 12 | RNN36: 12 | RNO36: 12 | RNP36: 12 | RNQ36: 12 | RNR36: 12 | RNS36: 12 | RNT36: 12 | RNU36: 12 | RNV36: 12 | RNW36: 12 | RNX36: 12 | RNY36: 12 | RNZ36: 12 | ROA36: 12 | ROB36: 12 | ROC36: 12 | ROD36: 12 | ROE36: 12 | ROF36: 12 | ROG36: 12 | ROH36: 12 | ROI36: 12 | ROJ36: 12 | ROK36: 12 | ROL36: 12 | ROM36: 12 | RON36: 12 | ROO36: 12 | ROP36: 12 | ROQ36: 12 | ROR36: 12 | ROS36: 12 | ROT36: 12 | ROU36: 12 | ROV36: 12 | ROW36: 12 | ROX36: 12 | ROY36: 12 | ROZ36: 12 | RPA36: 12 | RPB36: 12 | RPC36: 12 | RPD36: 12 | RPE36: 12 | RPF36: 12 | RPG36: 12 | RPH36: 12 | RPI36: 12 | RPJ36: 12 | RPK36: 12 | RPL36: 12 | RPM36: 12 | RPN36: 12 | RPO36: 12 | RPP36: 12 | RPQ36: 12 | RPR36: 12 | RPS36: 12 | RPT36: 12 | RPU36: 12 | RPV36: 12 | RPW36: 12 | RPX36: 12 | RPY36: 12 | RPZ36: 12 | RQA36: 12 | RQB36: 12 | RQC36: 12 | RQD36: 12 | RQE36: 12 | RQF36: 12 | RQG36: 12 | RQH36: 12 | RQI36: 12 | RQJ36: 12 | RQK36: 12 | RQL36: 12 | RQM36: 12 | RQN36: 12 | RQO36: 12 | RQP36: 12 | RQQ36: 12 | RQR36: 12 | RQS36: 12 | RQT36: 12 | RQU36: 12 | RQV36: 12 | RQW36: 12 | RQX36: 12 | RQY36: 12 | RQZ36: 12 | RRA36: 12 | RRB36: 12 | RRC36: 12 | RRD36: 12 | RRE36: 12 | RRF36: 12 | RRG36: 12 | RRH36: 12 | RRI36: 12 | RRJ36: 12 | RRK36: 12 | RRL36: 12 | RRM36: 12 | RRN36: 12 | RRO36: 12 | RRP36: 12 | RRQ36: 12 | RRR36: 12 | RRS36: 12 | RRT36: 12 | RRU36: 12 | RRV36: 12 | RRW36: 12 | RRX36: 12 | RRY36: 12 | RRZ36: 12 | RSA36: 12 | RSB36: 12 | RSC36: 12 | RSD36: 12 | RSE36: 12 | RSF36: 12 | RSG36: 12 | RSH36: 12 | RSI36: 12 | RSJ36: 12 | RSK36: 12 | RSL36: 12 | RSM36: 12 | RSN36: 12 | RSO36: 12 | RSP36: 12 | RSQ36: 12 | RSR36: 12 | RSS36: 12 | RST36: 12 | RSU36: 12 | RSV36: 12 | RSW36: 12 | RSX36: 12 | RSY36: 12 | RSZ36: 12 | RTA36: 12 | RTB36: 12 | RTC36: 12 | RTD36: 12 | RTE36: 12 | RTF36: 12 | RTG36: 12 | RTH36: 12 | RTI36: 12 | RTJ36: 12 | RTK36: 12 | RTL36: 12 | RTM36: 12 | RTN36: 12 | RTO36: 12 | RTP36: 12 | RTQ36: 12 | RTR36: 12 | RTS36: 12 | RTT36: 12 | RTU36: 12 | RTV36: 12 | RTW36: 12 | RTX36: 12 | RTY36: 12 | RTZ36: 12 | RUA36: 12 | RUB36: 12 | RUC36: 12 | RUD36: 12 | RUE36: 12 | RUF36: 12 | RUG36: 12 | RUH36: 12 | RUI36: 12 | RUJ36: 12 | RUK36: 12 | RUL36: 12 | RUM36: 12 | RUN36: 12 | RUO36: 12 | RUP36: 12 | RUQ36: 12 | RUR36: 12 | RUS36: 12 | RUT36: 12 | RUU36: 12 | RUV36: 12 | RUW36: 12 | RUX36: 12 | RUY36: 12 | RUZ36: 12 | RVA36: 12 | RVB36: 12 | RVC36: 12 | RVD36: 12 | RVE36: 12 | RVF36: 12 | RVG36: 12 | RVH36: 12 | RVI36: 12 | RVJ36: 12 | RVK36: 12 | RVL36: 12 | RVM36: 12 | RVN36: 12 | RVO36: 12 | RVP36: 12 | RVQ36: 12 | RVR36: 12 | RVS36: 12 | RVT36: 12 | RVU36: 12 | RVV36: 12 | RVW36: 12 | RVX36: 12 | RVY36: 12 | RVZ36: 12 | RWA36: 12 | RWB36: 12 | RWC36: 12 | RWD36: 12 | RWE36: 12 | RWF36: 12 | RWG36: 12 | RWH36: 12 | RWI36: 12 | RWJ36: 12 | RWK36: 12 | RWL36: 12 | RWM36: 12 | RWN36: 12 | RWO36: 12 | RWP36: 12 | RWQ36: 12 | RWR36: 12 | RWS36: 12 | RWT36: 12 | RWU36: 12 | RWV36: 12 | RWW36: 12 | RWX36: 12 | RWY36: 12 | RWZ36: 12 | RXA36: 12 | RXB36: 12 | RXC36: 12 | RXD36: 12 | RXE36: 12 | RXF36: 12 | RXG36: 12 | RXH36: 12 | RXI36: 12 | RXJ36: 12 | RXK36: 12 | RXL36: 12 | RXM36: 12 | RXN36: 12 | RXO36: 12 | RXP36: 12 | RXQ36: 12 | RXR36: 12 | RXS36: 12 | RXT36: 12 | RXU36: 12 | RXV36: 12 | RXW36: 12 | RXX36: 12 | RXY36: 12 | RXZ36: 12 | RYA36: 12 | RYB36: 12 | RYC36: 12 | RYD36: 12 | RYE36: 12 | RYF36: 12 | RYG36: 12 | RYH36: 12 | RYI36: 12 | RYJ36: 12 | RYK36: 12 | RYL36: 12 | RYM36: 12 | RYN36: 12 | RYO36: 12 | RYP36: 12 | RYQ36: 12 | RYR36: 12 | RYS36: 12 | RYT36: 12 | RYU36: 12 | RYV36: 12 | RYW36: 12 | RYX36: 12 | RYY36: 12 | RYZ36: 12 | RZA36: 12 | RZB36: 12 | RZC36: 12 | RZD36: 12 | RZE36: 12 | RZF36: 12 | RZG36: 12 | RZH36: 12 | RZI36: 12 | RZJ36: 12 | RZK36: 12 | RZL36: 12 | RZM36: 12 | RZN36: 12 | RZO36: 12 | RZP36: 12 | RZQ36: 12 | RZR36: 12 | RZS36: 12 | RZT36: 12 | RZU36: 12 | RZV36: 12 | RZW36: 12 | RZX36: 12 | RZY36: 12 | RZZ36: 12 | SAA36: 12 | SAB36: 12 | SAC36: 12 | SAD36: 12 | SAE36: 12 | SAF36: 12 | SAG36: 12 | SAH36: 12 | SAI36: 12 | SAJ36: 12 | SAK36: 12 | SAL36: 12 | SAM36: 12 | SAN36: 12 | SAO36: 12 | SAP36: 12 | SAQ36: 12 | SAR36: 12 | SAS36: 12 | SAT36: 12 | SAU36: 12 | SAV36: 12 | SAW36: 12 | SAX36: 12 | SAY36: 12 | SAZ36: 12 | SBA36: 12 | SBB36: 12 | SBC36: 12 | SBD36: 12 | SBE36: 12 | SBF36: 12 | SBG36: 12 | SBH36: 12 | SBI36: 12 | SBJ36: 12 | SBK36: 12 | SBL36: 12 | SBM36: 12 | SBN36: 12 | SBO36: 12 | SBP36: 12 | SBQ36: 12 | SBR36: 12 | SBS36: 12 | SBT36: 12 | SBU36: 12 | SBV36: 12 | SBW36: 12 | SBX36: 12 | SBY36: 12 | SBZ36: 12 | SCA36: 12 | SCB36: 12 | SCC36: 12 | SCD36: 12 | SCE36: 12 | SCF36: 12 | SCG36: 12 | SCH36: 12 | SCI36: 12 | SCJ36: 12 | SCK36: 12 | SCL36: 12 | SCM36: 12 | SCN36: 12 | SCO36: 12 | SCP36: 12 | SCQ36: 12 | SCR36: 12 | SCS36: 12 | SCT36: 12 | SCU36: 12 | SCV36: 12 | SCW36: 12 | SCX36: 12 | SCY36: 12 | SCZ36: 12 | SDA36: 12 | SDB36: 12 | SDC36: 12 | SDD36: 12 | SDE36: 12 | SDF36: 12 | SDG36: 12 | SDH36: 12 | SDI36: 12 | SDJ36: 12 | SDK36: 12 | SDL36: 12 | SDM36: 12 | SDN36: 12 | SDO36: 12 | SDP36: 12 | SDQ36: 12 | SDR36: 12 | SDS36: 12 | SDT36: 12 | SDU36: 12 | SDV36: 12 | SDW36: 12 | SDX36: 12 | SDY36: 12 | SDZ36: 12 | SEA36: 12 | SEB36: 12 | SEC36: 12 | SED36: 12 | SEE36: 12 | SEF36: 12 | SEG36: 12 | SEH36: 12 | SEI36: 12 | SEJ36: 12 | SEK36: 12 | SEL36: 12 | SEM36: 12 | SEN36: 12 | SEO36: 12 | SEP36: 12 | SEQ36: 12 | SER36: 12 | SES36: 12 | SET36: 12 | SEU36: 12 | SEV36: 12 | SEW36: 12 | SEX36: 12 | SEY36: 12 | SEZ36: 12 | SFA36: 12 | SFB36: 12 | SFC36: 12 | SFD36: 12 | SFE36: 12 | SFF36: 12 | SFG36: 12 | SFH36: 12 | SFI36: 12 | SFJ36: 12 | SFK36: 12 | SFL36: 12 | SFM36: 12 | SFN36: 12 | SFO36: 12 | SFP36: 12 | SFQ36: 12 | SFR36: 12 | SFS36: 12 | SFT36: 12 | SFU36: 12 | SFV36: 12 | SFW36: 12 | SFX36: 12 | SFY36: 12 | SFZ36: 12 | SGA36: 12 | SGB36: 12 | SGC36: 12 | SGD36: 12 | SGE36: 12 | SGF36: 12 | SGG36: 12 | SGH36: 12 | SGI36: 12 | SGJ36: 12 | SGK36: 12 | SGL36: 12 | SGM36: 12 | SGN36: 12 | SGO36: 12 | SGP36: 12 | SGQ36: 12 | SGR36: 12 | SGS36: 12 | SGT36: 12 | SGU36: 12 | SGV36: 12 | SGW36: 12 | SGX36: 12 | SGY36: 12 | SGZ36: 12 | SHA36: 12 | SHB36: 12 | SHC36: 12 | SHD36: 12 | SHE36: 12 | SHF36: 12 | SHG36: 12 | SHH36: 12 | SHI36: 12 | SHJ36: 12 | SHK36: 12 | SHL36: 12 | SHM36: 12 | SHN36: 12 | SHO36: 12 | SHP36: 12 | SHQ36: 12 | SHR36: 12 | SHS36: 12 | SHT36: 12 | SHU36: 12 | SHV36: 12 | SHW36: 12 | SHX36: 12 | SHY36: 12 | SHZ36: 12 | SIA36: 12 | SIB36: 12 | SIC36: 12 | SID36: 12 | SIE36: 12 | SIF36: 12 | SIG36: 12 | SIH36: 12 | SII36: 12 | SIJ36: 12 | SIK36: 12 | SIL36: 12 | SIM36: 12 | SIN36: 12 | SIO36: 12 | SIP36: 12 | SIQ36: 12 | SIR36: 12 | SIS36: 12 | SIT36: 12 | SIU36: 12 | SIV36: 12 | SIW36: 12 | SIX36: 12 | SIY36: 12 | SIZ36: 12 | SJA36: 12 | SJB36: 12 | SJC36: 12 | SJD36: 12 | SJE36: 12 | SJF36: 12 | SJG36: 12 | SJH36: 12 | SJI36: 12 | SJJ36: 12 | SJK36: 12 | SJL36: 12 | SJM36: 12 | SJN36: 12 | SJO36: 12 | SJP36: 12 | SJQ36: 12 | SJR36: 12 | SJS36: 12 | SJT36: 12 | SJU36: 12 | SJV36: 12 | SJW36: 12 | SJX36: 12 | SJY36: 12 | SJZ36: 12 | SKA36: 12 | SKB36: 12 | SKC36: 12 | SKD36: 12 | SKE36: 12 | SKF36: 12 | SKG36: 12 | SKH36: 12 | SKI36: 12 | SKJ36: 12 | SKK36: 12 | SKL36: 12 | SKM36: 12 | SKN36: 12 | SKO36: 12 | SKP36: 12 | SKQ36: 12 | SKR36: 12 | SKS36: 12 | SKT36: 12 | SKU36: 12 | SKV36: 12 | SKW36: 12 | SKX36: 12 | SKY36: 12 | SKZ36: 12 | SLA36: 12 | SLB36: 12 | SLC36: 12 | SLD36: 12 | SLE36: 12 | SLF36: 12 | SLG36: 12 | SLH36: 12 | SLI36: 12 | SLJ36: 12 | SLK36: 12 | SLL36: 12 | SLM36: 12 | SLN36: 12 | SLO36: 12 | SLP36: 12 | SLQ36: 12 | SLR36: 12 | SLS36: 12 | SLT36: 12 | SLU36: 12 | SLV36: 12 | SLW36: 12 | SLX36: 12 | SLY36: 12 | SLZ36: 12 | SMA36: 12 | SMB36: 12 | SMC36: 12 | SMD36: 12 | SME36: 12 | SMF36: 12 | SMG36: 12 | SMH36: 12 | SMI36: 12 | SMJ36: 12 | SMK36: 12 | SML36: 12 | SMM36: 12 | SMN36: 12 | SMO36: 12 | SMP36: 12 | SMQ36: 12 | SMR36: 12 | SMS36: 12 | SMT36: 12 | SMU36: 12 | SMV36: 12 | SMW36: 12 | SMX36: 12 | SMY36: 12 | SMZ36: 12 | SNA36: 12 | SNB36: 12 | SNC36: 12 | SND36: 12 | SNE36: 12 | SNF36: 12 | SNG36: 12 | SNH36: 12 | SNI36: 12 | SNJ36: 12 | SNK36: 12 | SNL36: 12 | SNM36: 12 | SNN36: 12 | SNO36: 12 | SNP36: 12 | SNQ36: 12 | SNR36: 12 | SNS36: 12 | SNT36: 12 | SNU36: 12 | SNV36: 12 | SNW36: 12 | SNX36: 12 | SNY36: 12 | SNZ36: 12 | SOA36: 12 | SOB36: 12 | SOC36: 12 | SOD36: 12 | SOE36: 12 | SOF36: 12 | SOG36: 12 | SOH36: 12 | SOI36: 12 | SOJ36: 12 | SOK36: 12 | SOL36: 12 | SOM36: 12 | SON36: 12 | SOO36: 12 | SOP36: 12 | SOQ36: 12 | SOR36: 12 | SOS36: 12 | SOT36: 12 | SOU36: 12 | SOV36: 12 | SOW36: 12 | SOX36: 12 | SOY36: 12 | SOZ36: 12 | SPA36: 12 | SPB36: 12 | SPC36: 12 | SPD36: 12 | SPE36: 12 | SPF36: 12 | SPG36: 12 | SPH36: 12 | SPI36: 12 | SPJ36: 12 | SPK36: 12 | SPL36: 12 | SPM36: 12 | SPN36: 12 | SPO36: 12 | SPP36: 12 | SPQ36: 12 | SPR36: 12 | SPS36: 12 | SPT36: 12 | SPU36: 12 | SPV36: 12 | SPW36: 12 | SPX36: 12 | SPY36: 12 | SPZ36: 12 | SQA36: 12 | SQB36: 12 | SQC36: 12 | SQD36: 12 | SQE36: 12 | SQF36: 12 | SQG36: 12 | SQH36: 12 | SQI36: 12 | SQJ36: 12 | SQK36: 12 | SQL36: 12 | SQM36: 12 | SQN36: 12 | SQO36: 12 | SQP36: 12 | SQQ36: 12 | SQR36: 12 | SQS36: 12 | SQT36: 12 | SQU36: 12 | SQV36: 12 | SQW36: 12 | SQX36: 12 | SQY36: 12 | SQZ36: 12 | SRA36: 12 | SRB36: 12 | SRC36: 12 | SRD36: 12 | SRE36: 12 | SRF36: 12 | SRG36: 12 | SRH36: 12 | SRI36: 12 | SRJ36: 12 | SRK36: 12 | SRL36: 12 | SRM36: 12 | SRN36: 12 | SRO36: 12 | SRP36: 12 | SRQ36: 12 | SRR36: 12 | SRS36: 12 | SRT36: 12 | SRU36: 12 | SRV36: 12 | SRW36: 12 | SRX36: 12 | SRY36: 12 | SRZ36: 12 | SSA36: 12 | SSB36: 12 | SSC36: 12 | SSD36: 12 | SSE36: 12 | SSF36: 12 | SSG36: 12 | SSH36: 12 | SSI36: 12 | SSJ36: 12 | SSK36: 12 | SSL36: 12 | SSM36: 12 | SSN36: 12 | SSO36: 12 | SSP36: 12 | SSQ36: 12 | SSR36: 12 | SSS36: 12 | SST36: 12 | SSU36: 12 | SSV36: 12 | SSW36: 12 | SSX36: 12 | SSY36: 12 | SSZ36: 12 | STA36: 12 | STB36: 12 | STC36: 12 | STD36: 12 | STE36: 12 | STF36: 12 | STG36: 12 | STH36: 12 | STI36: 12 | STJ36: 12 | STK36: 12 | STL36: 12 | STM36: 12 | STN36: 12 | STO36: 12 | STP36: 12 | STQ36: 12 | STR36: 12 | STS36: 12 | STT36: 12 | STU36: 12 | STV36: 12 | STW36: 12 | STX36: 12 | STY36: 12 | STZ36: 12 | SUA36: 12 | SUB36: 12 | SUC36: 12 | SUD36: 12 | SUE36: 12 | SUF36: 12 | SUG36: 12 | SUH36: 12 | SUI36: 12 | SUJ36: 12 | SUK36: 12 | SUL36: 12 | SUM36: 12 | SUN36: 12 | SUO36: 12 | SUP36: 12 | SUQ36: 12 | SUR36: 12 | SUS36: 12 | SUT36: 12 | SUU36: 12 | SUV36: 12 | SUW36: 12 | SUX36: 12 | SUY36: 12 | SUZ36: 12 | SVA36: 12 | SVB36: 12 | SVC36: 12 | SVD36: 12 | SVE36: 12 | SVF36: 12 | SVG36: 12 | SVH36: 12 | SVI36: 12 | SVJ36: 12 | SVK36: 12 | SVL36: 12 | SVM36: 12 | SVN36: 12 | SVO36: 12 | SVP36: 12 | SVQ36: 12 | SVR36: 12 | SVS36: 12 | SVT36: 12 | SVU36: 12 | SVV36: 12 | SVW36: 12 | SVX36: 12 | SVY36: 12 | SVZ36: 12 | SWA36: 12 | SWB36: 12 | SWC36: 12 | SWD36: 12 | SWE36: 12 | SWF36: 12 | SWG36: 12 | SWH36: 12 | SWI36: 12 | SWJ36: 12 | SWK36: 12 | SWL36: 12 | SWM36: 12 | SWN36: 12 | SWO36: 12 | SWP36: 12 | SWQ36: 12 | SWR36: 12 | SWS36: 12 | SWT36: 12 | SWU36: 12 | SWV36: 12 | SWW36: 12 | SWX36: 12 | SWY36: 12 | SWZ36: 12 | SXA36: 12 | SXB36: 12 | SXC36: 12 | SXD36: 12 | SXE36: 12 | SXF36: 12 | SXG36: 12 | SXH36: 12 | SXI36: 12 | SXJ36: 12 | SXK36: 12 | SXL36: 12 | SXM36: 12 | SXN36: 12 | SXO36: 12 | SXP36: 12 | SXQ36: 12 | SXR36: 12 | SXS36: 12 | SXT36: 12 | SXU36: 12 | SXV36: 12 | SXW36: 12 | SXX36: 12 | SXY36: 12 | SXZ36: 12 | SYA36: 12 | SYB36: 12 | SYC36: 12 | SYD36: 12 | SYE36: 12 | SYF36: 12 | SYG36: 12 | SYH36: 12 | SYI36: 12 | SYJ36: 12 | SYK36: 12 | SYL36: 12 | SYM36: 12 | SYN36: 12 | SYO36: 12 | SYP36: 12 | SYQ36: 12 | SYR36: 12 | SYS36: 12 | SYT36: 12 | SYU36: 12 | SYV36: 12 | SYW36: 12 | SYX36: 12 | SYY36: 12 | SYZ36: 12 | SZA36: 12 | SZB36: 12 | SZC36: 12 | SZD36: 12 | SZE36: 12 | SZF36: 12 | SZG36: 12 | SZH36: 12 | SZI36: 12 | SZJ36: 12 | SZK36: 12 | SZL36: 12 | SZM36: 12 | SZN36: 12 | SZO36: 12 | SZP36: 12 | SZQ36: 12 | SZR36: 12 | SZS36: 12 | SZT36: 12 | SZU36: 12 | SZV36: 12 | SZW36: 12 | SZX36: 12 | SZY36: 12 | SZZ36: 12 | TAA36: 12 | TAB36: 12 | TAC36: 12 | TAD36: 12 | TAE36: 12 | TAF36: 12 | TAG36: 12 | TAH36: 12 | TAI36: 12 | TAJ36: 12 | TAK36: 12 | TAL36: 12 | TAM36: 12 | TAN36: 12 | TAO36: 12 | TAP36: 12 | TAQ36: 12 | TAR36: 12 | TAS36: 12 | TAT36: 12 | TAU36: 12 | TAV36: 12 | TAW36: 12 | TAX36: 12 | TAY36: 12 | TAZ36: 12 | TBA36: 12 | TBB36: 12 | TBC36: 12 | TBD36: 12 | TBE36: 12 | TBF36: 12 | TBG36: 12 | TBH36: 12 | TBI36: 12 | TBJ36: 12 | TBK36: 12 | TBL36: 12 | TBM36: 12 | TBN36: 12 | TBO36: 12 | TBP36: 12 | TBQ36: 12 | TBR36: 12 | TBS36: 12 | TBT36: 12 | TBU36: 12 | TBV36: 12 | TBW36: 12 | TBX36: 12 | TBY36: 12 | TBZ36: 12 | TCA36: 12 | TCB36: 12 | TCC36: 12 | TCD36: 12 | TCE36: 12 | TCF36: 12 | TCG36: 12 | TCH36: 12 | TCI36: 12 | TCJ36: 12 | TCK36: 12 | TCL36: 12 | TCM36: 12 | TCN36: 12 | TCO36: 12 | TCP36: 12 | TCQ36: 12 | TCR36: 12 | TCS36: 12 | TCT36: 12 | TCU36: 12 | TCV36: 12 | TCW36: 12 | TCX36: 12 | TCY36: 12 | TCZ36: 12 | TDA36: 12 | TDB36: 12 | TDC36: 12 | TDD36: 12 | TDE36: 12 | TDF36: 12 | TDG36: 12 | TDH36: 12 | TDI36: 12 | TDJ36: 12 | TDK36: 12 | TDL36: 12 | TDM36: 12 | TDN36: 12 | TDO36: 12 | TDP36: 12 | TDQ36: 12 | TDR36: 12 | TDS36: 12 | TDT36: 12 | TDU36: 12 | TDV36: 12 | TDW36: 12 | TDX36: 12 | TDY36: 12 | TDZ36: 12 | TEA36: 12 | TEB36: 12 | TEC36: 12 | TED36: 12 | TEE36: 12 | TEF36: 12 | TEG36: 12 | TEH36: 12 | TEI36: 12 | TEJ36: 12 | TEK36: 12 | TEL36: 12 | TEM36: 12 | TEN36: 12 | TEO36: 12 | TEP36: 12 | TEQ36: 12 | TER36: 12 | TES36: 12 | TET36: 12 | TEU36: 12 | TEV36: 12 | TEW36: 12 | TEX36: 12 | TEY36: 12 | TEZ36: 12 | TFA36: 12 | TFB36: 12 | TFC36: 12 | TFD36: 12 | TFE36: 12 | TFF36: 12 | TFG36: 12 | TFH36: 12 | TFI36: 12 | TFJ36: 12 | TFK36: 12 | TFL36: 12 | TFM36: 12 | TFN36: 12 | TFO36: 12 | TFP36: 12 | TFQ36: 12 | TFR36: 12 | TFS36: 12 | TFT36: 12 | TFU36: 12 | TFV36: 12 | TFW36: 12 | TFX36: 12 | TFY36: 12 | TFZ36: 12 | TGA36: 12 | TGB36: 12 | TGC36: 12 | TGD36: 12 | TGE36: 12 | TGF36: 12 | TGG36: 12 | TGH36: 12 | TGI36: 12 | TGJ36: 12 | TGK36: 12 | TGL36: 12 | TGM36: 12 | TGN36: 12 | TGO36: 12 | TGP36: 12 | TGQ36: 12 | TGR36: 12 | TGS36: 12 | TGT36: 12 | TGU36: 12 | TGV36: 12 | TGW36: 12 | TGX36: 12 | TGY36: 12 | TGZ36: 12 | THA36: 12 | THB36: 12 | THC36: 12 | THD36: 12 | THE36: 12 | THF36: 12 | THG36: 12 | THH36: 12 | THI36: 12 | THJ36: 12 | THK36: 12 | THL36: 12 | THM36: 12 | THN36: 12 | THO36: 12 | THP36: 12 | THQ36: 12 | THR36: 12 | THS36: 12 | THT36: 12 | THU36: 12 | THV36: 12 | THW36: 12 | THX36: 12 | THY36: 12 | THZ36: 12 | TIA36: 12 | TIB36: 12 | TIC36: 12 | TID36: 12 | TIE36: 12 | TIF36: 12 | TIG36: 12 | TIH36: 12 | TII36: 12 | TIJ36: 12 | TIK36: 12 | TIL36: 12 | TIM36: 12 | TIN36: 12 | TIO36: 12 | TIP36: 12 | TIQ36: 12 | TIR36: 12 | TIS36: 12 | TIT36: 12 | TIU36: 12 | TIV36: 12 | TIW36: 12 | TIX36: 12 | TIY36: 12 | TIZ36: 12 | TJA36: 12 | TJB36: 12 | TJC36: 12 | TJD36: 12 | TJE36: 12 | TJF36: 12 | TJG36: 12 | TJH36: 12 | TJI36: 12 | TJJ36: 12 | TJK36: 12 | TJL36: 12 | TJM36: 12 | TJN36: 12 | TJO36: 12 | TJP36: 12 | TJQ36: 12 | TJR36: 12 | TJS36: 12 | TJT36: 12 | TJU36: 12 | TJV36: 12 | TJW36: 12 | TJX36: 12 | TJY36: 12 | TJZ36: 12 | TKA36: 12 | TKB36: 12 | TKC36: 12 | TKD36: 12 | TKE36: 12 | TKF36: 12 | TKG36: 12 | TKH36: 12 | TKI36: 12 | TKJ36: 12 | TKK36: 12 | TKL36: 12 | TKM36: 12 | TKN36: 12 | TKO36: 12 | TKP36: 12 | TKQ36: 12 | TKR36: 12 | TKS36: 12 | TKT36: 12 | TKU36: 12 | TKV36: 12 | TKW36: 12 | TKX36: 12 | TKY36: 12 | TKZ36: 12 | TLA36: 12 | TLB36: 12 | TLC36: 12 | TLD36: 12 | TLE36: 12 | TLF36: 12 | TLG36: 12 | TLH36: 12 | TLI36: 12 | TLJ36: 12 | TLK36: 12 | TLL36: 12 | TLM36: 12 | TLN36: 12 | TLO36: 12 | TLP36: 12 | TLQ36: 12 | TLR36: 12 | TLS36: 12 | TLT36: 12 | TLU36: 12 | TLV36: 12 | TLW36: 12 | TLX36: 12 | TLY36: 12 | TLZ36: 12 | TMA36: 12 | TMB36: 12 | TMC36: 12 | TMD36: 12 | TME36: 12 | TMF36: 12 | TMG36: 12 | TMH36: 12 | TMI36: 12 | TMJ36: 12 | TMK36: 12 | TML36: 12 | TMM36: 12 | TMN36: 12 | TMO36: 12 | TMP36: 12 | TMQ36: 12 | TMR36: 12 | TMS36: 12 | TMT36: 12 | TMU36: 12 | TMV36: 12 | TMW36: 12 | TMX36: 12 | TMY36: 12 | TMZ36: 12 | TNA36: 12 | TNB36: 12 | TNC36: 12 | TND36: 12 | TNE36: 12 | TNF36: 12 | TNG36: 12 | TNH36: 12 | TNI36: 12 | TNJ36: 12 | TNK36: 12 | TNL36: 12 | TNM36: 12 | TNN36: 12 | TNO36: 12 | TNP36: 12 | TNQ36: 12 | TNR36: 12 | TNS36: 12 | TNT36: 12 | TNU36: 12 | TNV36: 12 | TNW36: 12 | TNX36: 12 | TNY36: 12 | TNZ36: 12 | TOA36: 12 | TOB36: 12 | TOC36: 12 | TOD36: 12 | TOE36: 12 | TOF36: 12 | TOG36: 12 | TOH36: 12 | TOI36: 12 | TOJ36: 12 | TOK36: 12 | TOL36: 12 | TOM36: 12 | TON36: 12 | TOO36: 12 | TOP36: 12 | TOQ36: 12 | TOR36: 12 | TOS36: 12 | TOT36: 12 | TOU36: 12 | TOV36: 12 | TOW36: 12 | TOX36: 12 | TOY36: 12 | TOZ36: 12 | TPA36: 12 | TPB36: 12 | TPC36: 12 | TPD36: 12 | TPE36: 12 | TPF36: 12 | TPG36: 12 | TPH36: 12 | TPI36: 12 | TPJ36: 12 | TPK36: 12 | TPL36: 12 | TPM36: 12 | TPN36: 12 | TPO36: 12 | TPP36: 12 | TPQ36: 12 | TPR36: 12 | TPS36: 12 | TPT36: 12 | TPU36: 12 | TPV36: 12 | TPW36: 12 | TPX36: 12 | TPY36: 12 | TPZ36: 12 | TQA36: 12 | TQB36: 12 | TQC36: 12 | TQD36: 12 | TQE36: 12 | TQF36: 12 | TQG36: 12 | TQH36: 12 | TQI36: 12 | TQJ36: 12 | TQK36: 12 | TQL36: 12 | TQM36: 12 | TQN36: 12 | TQO36: 12 | TQP36: 12 | TQQ36: 12 | TQR36: 12 | TQS36: 12 | TQT36: 12 | TQU36: 12 | TQV36: 12 | TQW36: 12 | TQX36: 12 | TQY36: 12 | TQZ36: 12 | TRA36: 12 | TRB36: 12 | TRC36: 12 | TRD36: 12 | TRE36: 12 | TRF36: 12 | TRG36: 12 | TRH36: 12 | TRI36: 12 | TRJ36: 12 | TRK36: 12 | TRL36: 12 | TRM36: 12 | TRN36: 12 | TRO36: 12 | TRP36: 12 | TRQ36: 12 | TRR36: 12 | TRS36: 12 | TRT36: 12 | TRU36: 12 | TRV36: 12 | TRW36: 12 | TRX36: 12 | TRY36: 12 | TRZ36: 12 | TSA36: 12 | TSB36: 12 | TSC36: 12 | TSD36: 12 | TSE36: 12 | TSF36: 12 | TSG36: 12 | TSH36: 12 | TSI36: 12 | TSJ36: 12 | TSK36: 12 | TSL36: 12 | TSM36: 12 | TSN36: 12 | TSO36: 12 | TSP36: 12 | TSQ36: 12 | TSR36: 12 | TSS36: 12 | TST36: 12 | TSU36: 12 | TSV36: 12 | TSW36: 12 | TSX36: 12 | TSY36: 12 | TSZ36: 12 | TTA36: 12 | TTB36: 12 | TTC36: 12 | TTD36: 12 | TTE36: 12 | TTF36: 12 | TTG36: 12 | TTH36: 12 | TTI36: 12 | TTJ36: 12 | TTK36: 12 | TTL36: 12 | TTM36: 12 | TTN36: 12 | TTO36: 12 | TTP36: 12 | TTQ36: 12 | TTR36: 12 | TTS36: 12 | TTT36: 12 | TTU36: 12 | TTV36: 12 | TTW36: 12 | TTX36: 12 | TTY36: 12 | TTZ36: 12 | TUA36: 12 | TUB36: 12 | TUC36: 12 | TUD36: 12 | TUE36: 12 | TUF36: 12 | TUG36: 12 | TUH36: 12 | TUI36: 12 | TUJ36: 12 | TUK36: 12 | TUL36: 12 | TUM36: 12 | TUN36: 12 | TUO36: 12 | TUP36: 12 | TUQ36: 12 | TUR36: 12 | TUS36: 12 | TUT36: 12 | TUU36: 12 | TUV36: 12 | TUW36: 12 | TUX36: 12 | TUY36: 12 | TUZ36: 12 | TVA36: 12 | TVB36: 12 | TVC36: 12 | TVD36: 12 | TVE36: 12 | TVF36: 12 | TVG36: 12 | TVH36: 12 | TVI36: 12 | TVJ36: 12 | TVK36: 12 | TVL36: 12 | TVM36: 12 | TVN36: 12 | TVO36: 12 | TVP36: 12 | TVQ36: 12 | TVR36: 12 | TVS36: 12 | TVT36: 12 | TVU36: 12 | TVV36: 12 | TVW36: 12 | TVX36: 12 | TVY36: 12 | TVZ36: 12 | TWA36: 12 | TWB36: 12 | TWC36: 12 | TWD36: 12 | TWE36: 12 | TWF36: 12 | TWG36: 12 | TWH36: 12 | TWI36: 12 | TWJ36: 12 | TWK36: 12 | TWL36: 12 | TWM36: 12 | TWN36: 12 | TWO36: 12 | TWP36: 12 | TWQ36: 12 | TWR36: 12 | TWS36: 12 | TWT36: 12 | TWU36: 12 | TWV36: 12 | TWW36: 12 | TWX36: 12 | TWY36: 12 | TWZ36: 12 | TXA36: 12 | TXB36: 12 | TXC36: 12 | TXD36: 12 | TXE36: 12 | TXF36: 12 | TXG36: 12 | TXH36: 12 | TXI36: 12 | TXJ36: 12 | TXK36: 12 | TXL36: 12 | TXM36: 12 | TXN36: 12 | TXO36: 12 | TXP36: 12 | TXQ36: 12 | TXR36: 12 | TXS36: 12 | TXT36: 12 | TXU36: 12 | TXV36: 12 | TXW36: 12 | TXX36: 12 | TXY36: 12 | TXZ36: 12 | TYA36: 12 | TYB36: 12 | TYC36: 12 | TYD36: 12 | TYE36: 12 | TYF36: 12 | TYG36: 12 | TYH36: 12 | TYI36: 12 | TYJ36: 12 | TYK36: 12 | TYL36: 12 | TYM36: 12 | TYN36: 12 | TYO36: 12 | TYP36: 12 | TYQ36: 12 | TYR36: 12 | TYS36: 12 | TYT36: 12 | TYU36: 12 | TYV36: 12 | TYW36: 12 | TYX36: 12 | TYY36: 12 | TYZ36: 12 | TZA36: 12 | TZB36: 12 | TZC36: 12 | TZD36: 12 | TZE36: 12 | TZF36: 12 | TZG36: 12 | TZH36: 12 | TZI36: 12 | TZJ36: 12 | TZK36: 12 | TZL36: 12 | TZM36: 12 | TZN36: 12 | TZO36: 12 | TZP36: 12 | TZQ36: 12 | TZR36: 12 | TZS36: 12 | TZT36: 12 | TZU36: 12 | TZV36: 12 | TZW36: 12 | TZX36: 12 | TZY36: 12 | TZZ36: 12 | UAA36: 12 | UAB36: 12 | UAC36: 12 | UAD36: 12 | UAE36: 12 | UAF36: 12 | UAG36: 12 | UAH36: 12 | UAI36: 12 | UAJ36: 12 | UAK36: 12 | UAL36: 12 | UAM36: 12 | UAN36: 12 | UAO36: 12 | UAP36: 12 | UAQ36: 12 | UAR36: 12 | UAS36: 12 | UAT36: 12 | UAU36: 12 | UAV36: 12 | UAW36: 12 | UAX36: 12 | UAY36: 12 | UAZ36: 12 | UBA36: 12 | UBB36: 12 | UBC36: 12 | UBD36: 12 | UBE36: 12 | UBF36: 12 | UBG36: 12 | UBH36: 12 | UBI36: 12 | UBJ36: 12 | UBK36: 12 | UBL36: 12 | UBM36: 12 | UBN36: 12 | UBO36: 12 | UBP36: 12 | UBQ36: 12 | UBR36: 12 | UBS36: 12 | UBT36: 12 | UBU36: 12 | UBV36: 12 | UBW36: 12 | UBX36: 12 | UBY36: 12 | UBZ36: 12 | UCA36: 12 | UCB36: 12 | UCC36: 12 | UCD36: 12 | UCE36: 12 | UCF36: 12 | UCG36: 12 | UCH36: 12 | UCI36: 12 | UCJ36: 12 | UCK36: 12 | UCL36: 12 | UCM36: 12 | UCN36: 12 | UCO36: 12 | UCP36: 12 | UCQ36: 12 | UCR36: 12 | UCS36: 12 | UCT36: 12 | UCU36: 12 | UCV36: 12 | UCW36: 12 | UCX36: 12 | UCY36: 12 | UCZ36: 12 | UDA36: 12 | UDB36: 12 | UDC36: 12 | UDD36: 12 | UDE36: 12 | UDF36: 12 | UDG36: 12 | UDH36: 12 | UDI36: 12 | UDJ36: 12 | UDK36: 12 | UDL36: 12 | UDM36: 12 | UDN36: 12 | UDO36: 12 | UDP36: 12 | UDQ36: 12 | UDR36: 12 | UDS36: 12 | UDT36: 12 | UDU36: 12 | UDV36: 12 | UDW36: 12 | UDX36: 12 | UDY36: 12 | UDZ36: 12 | UEA36: 12 | UEB36: 12 | UEC36: 12 | UED36: 12 | UEE36: 12 | UEF36: 12 | UEG36: 12 | UEH36: 12 | UEI36: 12 | UEJ36: 12 | UEK36: 12 | UEL36: 12 | UEM36: 12 | UEN36: 12 | UEO36: 12 | UEP36: 12 | UEQ36: 12 | UER36: 12 | UES36: 12 | UET36: 12 | UEU36: 12 | UEV36: 12 | UEW36: 12 | UEX36: 12 | UEY36: 12 | UEZ36: 12 | UFA36: 12 | UFB36: 12 | UFC36: 12 | UFD36: 12 | UFE36: 12 | UFF36: 12 | UFG36: 12 | UFH36: 12 | UFI36: 12 | UFJ36: 12 | UFK36: 12 | UFL36: 12 | UFM36: 12 | UFN36: 12 | UFO36: 12 | UFP36: 12 | UFQ36: 12 | UFR36: 12 | UFS36: 12 | UFT36: 12 | UFU36: 12 | UFV36: 12 | UFW36: 12 | UFX36: 12 | UFY36: 12 | UFZ36: 12 | UGA36: 12 | UGB36: 12 | UGC36: 12 | UGD36: 12 | UGE36: 12 | UGF36: 12 | UGG36: 12 | UGH36: 12 | UGI36: 12 | UGJ36: 12 | UGK36: 12 | UGL36: 12 | UGM36: 12 | UGN36: 12 | UGO36: 12 | UGP36: 12 | UGQ36: 12 | UGR36: 12 | UGS36: 12 | UGT36: 12 | UGU36: 12 | UGV36: 12 | UGW36: 12 | UGX36: 12 | UGY36: 12 | UGZ36: 12 | UHA36: 12 | UHB36: 12 | UHC36: 12 | UHD36: 12 | UHE36: 12 | UHF36: 12 | UHG36: 12 | UHH36: 12 | UHI36: 12 | UHJ36: 12 | UHK36: 12 | UHL36: 12 | UHM36: 12 | UHN36: 12 | UHO36: 12 | UHP36: 12 | UHQ36: 12 | UHR36: 12 | UHS36: 12 | UHT36: 12 | UHU36: 12 | UHV36: 12 | UHW36: 12 | UHX36: 12 | UHY36: 12 | UHZ36: 12 | UIA36: 12 | UIB36: 12 | UIC36: 12 | UID36: 12 | UIE36: 12 | UIF36: 12 | UIG36: 12 | UIH36: 12 | UII36: 12 | UIJ36: 12 | UIK36: 12 | UIL36: 12 | UIM36: 12 | UIN36: 12 | UIO36: 12 | UIP36: 12 | UIQ36: 12 | UIR36: 12 | UIS36: 12 | UIT36: 12 | UIU36: 12 | UIV36: 12 | UIW36: 12 | UIX36: 12 | UIY36: 12 | UIZ36: 12 | UJA36: 12 | UJB36: 12 | UJC36: 12 | UJD36: 12 | UJE36: 12 | UJF36: 12 | UJG36: 12 | UJH36: 12 | UJI36: 12 | UJJ36: 12 | UJK36: 12 | UJL36: 12 | UJM36: 12 | UJN36: 12 | UJO36: 12 | UJP36: 12 | UJQ36: 12 | UJR36: 12 | UJS36: 12 | UJT36: 12 | UJU36: 12 | UJV36: 12 | UJW36: 12 | UJX36: 12 | UJY36: 12 | UJZ36: 12 | UKA36: 12 | UKB36: 12 | UKC36: 12 | UKD36: 12 | UKE36: 12 | UKF36: 12 | UKG36: 12 | UKH36: 12 | UKI36: 12 | UKJ36: 12 | UKK36: 12 | UKL36: 12 | UKM36: 12 | UKN36: 12 | UKO36: 12 | UKP36: 12 | UKQ36: 12 | UKR36: 12 | UKS36: 12 | UKT36: 12 | UKU36: 12 | UKV36: 12 | UKW36: 12 | UKX36: 12 | UKY36: 12 | UKZ36: 12 | ULA36: 12 | ULB36: 12 | ULC36: 12 | ULD36: 12 | ULE36: 12 | ULF36: 12 | ULG36: 12 | ULH36: 12 | ULI36: 12 | ULJ36: 12 | ULK36: 12 | ULL36: 12 | ULM36: 12 | ULN36: 12 | ULO36: 12 | ULP36: 12 | ULQ36: 12 | ULR36: 12 | ULS36: 12 | ULT36: 12 | ULU36: 12 | ULV36: 12 | ULW36: 12 | ULX36: 12 | ULY36: 12 | ULZ36: 12 | UMA36: 12 | UMB36: 12 | UMC36: 12 | UMD36: 12 | UME36: 12 | UMF36: 12 | UMG36: 12 | UMH36: 12 | UMI36: 12 | UMJ36: 12 | UMK36: 12 | UML36: 12 | UMM36: 12 | UMN36: 12 | UMO36: 12 | UMP36: 12 | UMQ36: 12 | UMR36: 12 | UMS36: 12 | UMT36: 12 | UMU36: 12 | UMV36: 12 | UMW36: 12 | UMX36: 12 | UMY36: 12 | UMZ36: 12 | UNA36: 12 | UNB36: 12 | UNC36: 12 | UND36: 12 | UNE36: 12 | UNF36: 12 | UNG36: 12 | UNH36: 12 | UNI36: 12 | UNJ36: 12 | UNK36: 12 | UNL36: 12 | UNM36: 12 | UNN36: 12 | UNO36: 12 | UNP36: 12 | UNQ36: 12 | UNR36: 12 | UNS36: 12 | UNT36: 12 | UNU36: 12 | UNV36: 12 | UNW36: 12 | UNX36: 12 | UNY36: 12 | UNZ36: 12 | UOA36: 12 | UOB36: 12 | UOC36: 12 | UOD36: 12 | UOE36: 12 | UOF36: 12 | UOG36: 12 | UOH36: 12 | UOI36: 12 | UOJ36: 12 | UOK36: 12 | UOL36: 12 | UOM36: 12 | UON36: 12 | UOO36: 12 | UOP36: 12 | UOQ36: 12 | UOR36: 12 | UOS36: 12 | UOT36: 12 | UOU36: 12 | UOV36: 12 | UOW36: 12 | UOX36: 12 | UOY36: 12 | UOZ36: 12 | UPA36: 12 | UPB36: 12 | UPC36: 12 | UPD36: 12 | UPE36: 12 | UPF36: 12 | UPG36: 12 | UPH36: 12 | UPI36: 12 | UPJ36: 12 | UPK36: 12 | UPL36: 12 | UPM36: 12 | UPN36: 12 | UPO36: 12 | UPP36: 12 | UPQ36: 12 | UPR36: 12 | UPS36: 12 | UPT36: 12 | UPU36: 12 | UPV36: 12 | UPW36: 12 | UPX36: 12 | UPY36: 12 | UPZ36: 12 | UQA36: 12 | UQB36: 12 | UQC36: 12 | UQD36: 12 | UQE36: 12 | UQF36: 12 | UQG36: 12 | UQH36: 12 | UQI36: 12 | UQJ36: 12 | UQK36: 12 | UQL36: 12 | UQM36: 12 | UQN36: 12 | UQO36: 12 | UQP36: 12 | UQQ36: 12 | UQR36: 12 | UQS36: 12 | UQT36: 12 | UQU36: 12 | UQV36: 12 | UQW36: 12 | UQX36: 12 | UQY36: 12 | UQZ36: 12 | URA36: 12 | URB36: 12 | URC36: 12 | URD36: 12 | URE36: 12 | URF36: 12 | URG36: 12 | URH36: 12 | URI36: 12 | URJ36: 12 | URK36: 12 | URL36: 12 | URM36: 12 | URN36: 12 | URO36: 12 | URP36: 12 | URQ36: 12 | URR36: 12 | URS36: 12 | URT36: 12 | URU36: 12 | URV36: 12 | URW36: 12 | URX36: 12 | URY36: 12 | URZ36: 12 | USA36: 12 | USB36: 12 | USC36: 12 | USD36: 12 | USE36: 12 | USF36: 12 | USG36: 12 | USH36: 12 | USI36: 12 | USJ36: 12 | USK36: 12 | USL36: 12 | USM36: 12 | USN36: 12 | USO36: 12 | USP36: 12 | USQ36: 12 | USR36: 12 | USS36: 12 | UST36: 12 | USU36: 12 | USV36: 12 | USW36: 12 | USX36: 12 | USY36: 12 | USZ36: 12 | UTA36: 12 | UTB36: 12 | UTC36: 12 | UTD36: 12 | UTE36: 12 | UTF36: 12 | UTG36: 12 | UTH36: 12 | UTI36: 12 | UTJ36: 12 | UTK36: 12 | UTL36: 12 | UTM36: 12 | UTN36: 12 | UTO36: 12 | UTP36: 12 | UTQ36: 12 | UTR36: 12 | UTS36: 12 | UTT36: 12 | UTU36: 12 | UTV36: 12 | UTW36: 12 | UTX36: 12 | UTY36: 12 | UTZ36: 12 | UUA36: 12 | UUB36: 12 | UUC36: 12 | UUD36: 12 | UUE36: 12 | UUF36: 12 | UUG36: 12 | UUH36: 12 | UUI36: 12 | UUJ36: 12 | UUK36: 12 | UUL36: 12 | UUM36: 12 | UUN36: 12 | UUO36: 12 | UUP36: 12 | UUQ36: 12 | UUR36: 12 | UUS36: 12 | UUT36: 12 | UUU36: 12 | UUV36: 12 | UUW36: 12 | UUX36: 12 | UUY36: 12 | UUZ36: 12 | UVA36: 12 | UVB36: 12 | UVC36: 12 | UVD36: 12 | UVE36: 12 | UVF36: 12 | UVG36: 12 | UVH36: 12 | UVI36: 12 | UVJ36: 12 | UVK36: 12 | UVL36: 12 | UVM36: 12 | UVN36: 12 | UVO36: 12 | UVP36: 12 | UVQ36: 12 | UVR36: 12 | UVS36: 12 | UVT36: 12 | UVU36: 12 | UVV36: 12 | UVW36: 12 | UVX36: 12 | UVY36: 12 | UVZ36: 12 | UWA36: 12 | UWB36: 12 | UWC36: 12 | UWD36: 12 | UWE36: 12 | UWF36: 12 | UWG36: 12 | UWH36: 12 | UWI36: 12 | UWJ36: 12 | UWK36: 12 | UWL36: 12 | UWM36: 12 | UWN36: 12 | UWO36: 12 | UWP36: 12 | UWQ36: 12 | UWR36: 12 | UWS36: 12 | UWT36: 12 | UWU36: 12 | UWV36: 12 | UWW36: 12 | UWX36: 12 | UWY36: 12 | UWZ36: 12 | UXA36: 12 | UXB36: 12 | UXC36: 12 | UXD36: 12 | UXE36: 12 | UXF36: 12 | UXG36: 12 | UXH36: 12 | UXI36: 12 | UXJ36: 12 | UXK36: 12 | UXL36: 12 | UXM36: 12 | UXN36: 12 | UXO36: 12 | UXP36: 12 | UXQ36: 12 | UXR36: 12 | UXS36: 12 | UXT36: 12 | UXU36: 12 | UXV36: 12 | UXW36: 12 | UXX36: 12 | UXY36: 12 | UXZ36: 12 | UYA36: 12 | UYB36: 12 | UYC36: 12 | UYD36: 12 | UYE36: 12 | UYF36: 12 | UYG36: 12 | UYH36: 12 | UYI36: 12 | UYJ36: 12 | UYK36: 12 | UYL36: 12 | UYM36: 12 | UYN36: 12 | UYO36: 12 | UYP36: 12 | UYQ36: 12 | UYR36: 12 | UYS36: 12 | UYT36: 12 | UYU36: 12 | UYV36: 12 | UYW36: 12 | UYX36: 12 | UYY36: 12 | UYZ36: 12 | UZA36: 12 | UZB36: 12 | UZC36: 12 | UZD36: 12 | UZE36: 12 | UZF36: 12 | UZG36: 12 | UZH36: 12 | UZI36: 12 | UZJ36: 12 | UZK36: 12 | UZL36: 12 | UZM36: 12 | UZN36: 12 | UZO36: 12 | UZP36: 12 | UZQ36: 12 | UZR36: 12 | UZS36: 12 | UZT36: 12 | UZU36: 12 | UZV36: 12 | UZW36: 12 | UZX36: 12 | UZY36: 12 | UZZ36: 12 | VAA36: 12 | VAB36: 12 | VAC36: 12 | VAD36: 12 | VAE36: 12 | VAF36: 12 | VAG36: 12 | VAH36: 12 | VAI36: 12 | VAJ36: 12 | VAK36: 12 | VAL36: 12 | VAM36: 12 | VAN36: 12 | VAO36: 12 | VAP36: 12 | VAQ36: 12 | VAR36: 12 | VAS36: 12 | VAT36: 12 | VAU36: 12 | VAV36: 12 | VAW36: 12 | VAX36: 12 | VAY36: 12 | VAZ36: 12 | VBA36: 12 | VBB36: 12 | VBC36: 12 | VBD36: 12 | VBE36: 12 | VBF36: 12 | VBG36: 12 | VBH36: 12 | VBI36: 12 | VBJ36: 12 | VBK36: 12 | VBL36: 12 | VBM36: 12 | VBN36: 12 | VBO36: 12 | VBP36: 12 | VBQ36: 12 | VBR36: 12 | VBS36: 12 | VBT36: 12 | VBU36: 12 | VBV36: 12 | VBW36: 12 | VBX36: 12 | VBY36: 12 | VBZ36: 12 | VCA36: 12 | VCB36: 12 | VCC36: 12 | VCD36: 12 | VCE36: 12 | VCF36: 12 | VCG36: 12 | VCH36: 12 | VCI36: 12 | VCJ36: 12 | VCK36: 12 | VCL36: 12 | VCM36: 12 | VCN36: 12 | VCO36: 12 | VCP36: 12 | VCQ36: 12 | VCR36: 12 | VCS36: 12 | VCT36: 12 | VCU36: 12 | VCV36: 12 | VCW36: 12 | VCX36: 12 | VCY36: 12 | VCZ36: 12 | VDA36: 12 | VDB36: 12 | VDC36: 12 | VDD36: 12 | VDE36: 12 | VDF36: 12 | VDG36: 12 | VDH36: 12 | VDI36: 12 | VDJ36: 12 | VDK36: 12 | VDL36: 12 | VDM36: 12 | VDN36: 12 | VDO36: 12 | VDP36: 12 | VDQ36: 12 | VDR36: 12 | VDS36: 12 | VDT36: 12 | VDU36: 12 | VDV36: 12 | VDW36: 12 | VDX36: 12 | VDY36: 12 | VDZ36: 12 | VEA36: 12 | VEB36: 12 | VEC36: 12 | VED36: 12 | VEE36: 12 | VEF36: 12 | VEG36: 12 | VEH36: 12 | VEI36: 12 | VEJ36: 12 | VEK36: 12 | VEL36: 12 | VEM36: 12 | VEN36: 12 | VEO36: 12 | VEP36: 12 | VEQ36: 12 | VER36: 12 | VES36: 12 | VET36: 12 | VEU36: 12 | VEV36: 12 | VEW36: 12 | VEX36: 12 | VEY36: 12 | VEZ36: 12 | VFA36: 12 | VFB36: 12 | VFC36: 12 | VFD36: 12 | VFE36: 12 | VFF36: 12 | VFG36: 12 | VFH36: 12 | VFI36: 12 | VFJ36: 12 | VFK36: 12 | VFL36: 12 | VFM36: 12 | VFN36: 12 | VFO36: 12 | VFP36: 12 | VFQ36: 12 | VFR36: 12 | VFS36: 12 | VFT36: 12 | VFU36: 12 | VFV36: 12 | VFW36: 12 | VFX36: 12 | VFY36: 12 | VFZ36: 12 | VGA36: 12 | VGB36: 12 | VGC36: 12 | VGD36: 12 | VGE36: 12 | VGF36: 12 | VGG36: 12 | VGH36: 12 | VGI36: 12 | VGJ36: 12 | VGK36: 12 | VGL36: 12 | VGM36: 12 | VGN36: 12 | VGO36: 12 | VGP36: 12 | VGQ36: 12 | VGR36: 12 | VGS36: 12 | VGT36: 12 | VGU36: 12 | VGV36: 12 | VGW36: 12 | VGX36: 12 | VGY36: 12 | VGZ36: 12 | VHA36: 12 | VHB36: 12 | VHC36: 12 | VHD36: 12 | VHE36: 12 | VHF36: 12 | VHG36: 12 | VHH36: 12 | VHI36: 12 | VHJ36: 12 | VHK36: 12 | VHL36: 12 | VHM36: 12 | VHN36: 12 | VHO36: 12 | VHP36: 12 | VHQ36: 12 | VHR36: 12 | VHS36: 12 | VHT36: 12 | VHU36: 12 | VHV36: 12 | VHW36: 12 | VHX36: 12 | VHY36: 12 | VHZ36: 12 | VIA36: 12 | VIB36: 12 | VIC36: 12 | VID36: 12 | VIE36: 12 | VIF36: 12 | VIG36: 12 | VIH36: 12 | VII36: 12 | VIJ36: 12 | VIK36: 12 | VIL36: 12 | VIM36: 12 | VIN36: 12 | VIO36: 12 | VIP36: 12 | VIQ36: 12 | VIR36: 12 | VIS36: 12 | VIT36: 12 | VIU36: 12 | VIV36: 12 | VIW36: 12 | VIX36: 12 | VIY36: 12 | VIZ36: 12 | VJA36: 12 | VJB36: 12 | VJC36: 12 | VJD36: 12 | VJE36: 12 | VJF36: 12 | VJG36: 12 | VJH36: 12 | VJI36: 12 | VJJ36: 12 | VJK36: 12 | VJL36: 12 | VJM36: 12 | VJN36: 12 | VJO36: 12 | VJP36: 12 | VJQ36: 12 | VJR36: 12 | VJS36: 12 | VJT36: 12 | VJU36: 12 | VJV36: 12 | VJW36: 12 | VJX36: 12 | VJY36: 12 | VJZ36: 12 | VKA36: 12 | VKB36: 12 | VKC36: 12 | VKD36: 12 | VKE36: 12 | VKF36: 12 | VKG36: 12 | VKH36: 12 | VKI36: 12 | VKJ36: 12 | VKK36: 12 | VKL36: 12 | VKM36: 12 | VKN36: 12 | VKO36: 12 | VKP36: 12 | VKQ36: 12 | VKR36: 12 | VKS36: 12 | VKT36: 12 | VKU36: 12 | VKV36: 12 | VKW36: 12 | VKX36: 12 | VKY36: 12 | VKZ36: 12 | VLA36: 12 | VLB36: 12 | VLC36: 12 | VLD36: 12 | VLE36: 12 | VLF36: 12 | VLG36: 12 | VLH36: 12 | VLI36: 12 | VLJ36: 12 | VLK36: 12 | VLL36: 12 | VLM36: 12 | VLN36: 12 | VLO36: 12 | VLP36: 12 | VLQ36: 12 | VLR36: 12 | VLS36: 12 | VLT36: 12 | VLU36: 12 | VLV36: 12 | VLW36: 12 | VLX36: 12 | VLY36: 12 | VLZ36: 12 | VMA36: 12 | VMB36: 12 | VMC36: 12 | VMD36: 12 | VME36: 12 | VMF36: 12 | VMG36: 12 | VMH36: 12 | VMI36: 12 | VMJ36: 12 | VMK36: 12 | VML36: 12 | VMM36: 12 | VMN36: 12 | VMO36: 12 | VMP36: 12 | VMQ36: 12 | VMR36: 12 | VMS36: 12 | VMT36: 12 | VMU36: 12 | VMV36: 12 | VMW36: 12 | VMX36: 12 | VMY36: 12 | VMZ36: 12 | VNA36: 12 | VNB36: 12 | VNC36: 12 | VND36: 12 | VNE36: 12 | VNF36: 12 | VNG36: 12 | VNH36: 12 | VNI36: 12 | VNJ36: 12 | VNK36: 12 | VNL36: 12 | VNM36: 12 | VNN36: 12 | VNO36: 12 | VNP36: 12 | VNQ36: 12 | VNR36: 12 | VNS36: 12 | VNT36: 12 | VNU36: 12 | VNV36: 12 | VNW36: 12 | VNX36: 12 | VNY36: 12 | VNZ36: 12 | VOA36: 12 | VOB36: 12 | VOC36: 12 | VOD36: 12 | VOE36: 12 | VOF36: 12 | VOG36: 12 | VOH36: 12 | VOI36: 12 | VOJ36: 12 | VOK36: 12 | VOL36: 12 | VOM36: 12 | VON36: 12 | VOO36: 12 | VOP36: 12 | VOQ36: 12 | VOR36: 12 | VOS36: 12 | VOT36: 12 | VOU36: 12 | VOV36: 12 | VOW36: 12 | VOX36: 12 | VOY36: 12 | VOZ36: 12 | VPA36: 12 | VPB36: 12 | VPC36: 12 | VPD36: 12 | VPE36: 12 | VPF36: 12 | VPG36: 12 | VPH36: 12 | VPI36: 12 | VPJ36: 12 | VPK36: 12 | VPL36: 12 | VPM36: 12 | VPN36: 12 | VPO36: 12 | VPP36: 12 | VPQ36: 12 | VPR36: 12 | VPS36: 12 | VPT36: 12 | VPU36: 12 | VPV36: 12 | VPW36: 12 | VPX36: 12 | VPY36: 12 | VPZ36: 12 | VQA36: 12 | VQB36: 12 | VQC36: 12 | VQD36: 12 | VQE36: 12 | VQF36: 12 | VQG36: 12 | VQH36: 12 | VQI36: 12 | VQJ36: 12 | VQK36: 12 | VQL36: 12 | VQM36: 12 | VQN36: 12 | VQO36: 12 | VQP36: 12 | VQQ36: 12 | VQR36: 12 | VQS36: 12 | VQT36: 12 | VQU36: 12 | VQV36: 12 | VQW36: 12 | VQX36: 12 | VQY36: 12 | VQZ36: 12 | VRA36: 12 | VRB36: 12 | VRC36: 12 | VRD36: 12 | VRE36: 12 | VRF36: 12 | VRG36: 12 | VRH36: 12 | VRI36: 12 | VRJ36: 12 | VRK36: 12 | VRL36: 12 | VRM36: 12 | VRN36: 12 | VRO36: 12 | VRP36: 12 | VRQ36: 12 | VRR36: 12 | VRS36: 12 | VRT36: 12 | VRU36: 12 | VRV36: 12 | VRW36: 12 | VRX36: 12 | VRY36: 12 | VRZ36: 12 | VSA36: 12 | VSB36: 12 | VSC36: 12 | VSD36: 12 | VSE36: 12 | VSF36: 12 | VSG36: 12 | VSH36: 12 | VSI36: 12 | VSJ36: 12 | VSK36: 12 | VSL36: 12 | VSM36: 12 | VSN36: 12 | VSO36: 12 | VSP36: 12 | VSQ36: 12 | VSR36: 12 | VSS36: 12 | VST36: 12 | VSU36: 12 | VSV36: 12 | VSW36: 12 | VSX36: 12 | VSY36: 12 | VSZ36: 12 | VTA36: 12 | VTB36: 12 | VTC36: 12 | VTD36: 12 | VTE36: 12 | VTF36: 12 | VTG36: 12 | VTH36: 12 | VTI36: 12 | VTJ36: 12 | VTK36: 12 | VTL36: 12 | VTM36: 12 | VTN36: 12 | VTO36: 12 | VTP36: 12 | VTQ36: 12 | VTR36: 12 | VTS36: 12 | VTT36: 12 | VTU36: 12 | VTV36: 12 | VTW36: 12 | VTX36: 12 | VTY36: 12 | VTZ36: 12 | VUA36: 12 | VUB36: 12 | VUC36: 12 | VUD36: 12 | VUE36: 12 | VUF36: 12 | VUG36: 12 | VUH36: 12 | VUI36: 12 | VUJ36: 12 | VUK36: 12 | VUL36: 12 | VUM36: 12 | VUN36: 12 | VUO36: 12 | VUP36: 12 | VUQ36: 12 | VUR36: 12 | VUS36: 12 | VUT36: 12 | VUU36: 12 | VUV36: 12 | VUW36: 12 | VUX36: 12 | VUY36: 12 | VUZ36: 12 | VVA36: 12 | VVB36: 12 | VVC36: 12 | VVD36: 12 | VVE36: 12 | VVF36: 12 | VVG36: 12 | VVH36: 12 | VVI36: 12 | VVJ36: 12 | VVK36: 12 | VVL36: 12 | VVM36: 12 | VVN36: 12 | VVO36: 12 | VVP36: 12 | VVQ36: 12 | VVR36: 12 | VVS36: 12 | VVT36: 12 | VVU36: 12 | VVV36: 12 | VVW36: 12 | VVX36: 12 | VVY36: 12 | VVZ36: 12 | VWA36: 12 | VWB36: 12 | VWC36: 12 | VWD36: 12 | VWE36: 12 | VWF36: 12 | VWG36: 12 | VWH36: 12 | VWI36: 12 | VWJ36: 12 | VWK36: 12 | VWL36: 12 | VWM36: 12 | VWN36: 12 | VWO36: 12 | VWP36: 12 | VWQ36: 12 | VWR36: 12 | VWS36: 12 | VWT36: 12 | VWU36: 12 | VWV36: 12 | VWW36: 12 | VWX36: 12 | VWY36: 12 | VWZ36: 12 | VXA36: 12 | VXB36: 12 | VXC36: 12 | VXD36: 12 | VXE36: 12 | VXF36: 12 | VXG36: 12 | VXH36: 12 | VXI36: 12 | VXJ36: 12 | VXK36: 12 | VXL36: 12 | VXM36: 12 | VXN36: 12 | VXO36: 12 | VXP36: 12 | VXQ36: 12 | VXR36: 12 | VXS36: 12 | VXT36: 12 | VXU36: 12 | VXV36: 12 | VXW36: 12 | VXX36: 12 | VXY36: 12 | VXZ36: 12 | VYA36: 12 | VYB36: 12 | VYC36: 12 | VYD36: 12 | VYE36: 12 | VYF36: 12 | VYG36: 12 | VYH36: 12 | VYI36: 12 | VYJ36: 12 | VYK36: 12 | VYL36: 12 | VYM36: 12 | VYN36: 12 | VYO36: 12 | VYP36: 12 | VYQ36: 12 | VYR36: 12 | VYS36: 12 | VYT36: 12 | VYU36: 12 | VYV36: 12 | VYW36: 12 | VYX36: 12 | VYY36: 12 | VYZ36: 12 | VZA36: 12 | VZB36: 12 | VZC36: 12 | VZD36: 12 | VZE36: 12 | VZF36: 12 | VZG36: 12 | VZH36: 12 | VZI36: 12 | VZJ36: 12 | VZK36: 12 | VZL36: 12 | VZM36: 12 | VZN36: 12 | VZO36: 12 | VZP36: 12 | VZQ36: 12 | VZR36: 12 | VZS36: 12 | VZT36: 12 | VZU36: 12 | VZV36: 12 | VZW36: 12 | VZX36: 12 | VZY36: 12 | VZZ36: 12 | WAA36: 12 | WAB36: 12 | WAC36: 12 | WAD36: 12 | WAE36: 12 | WAF36: 12 | WAG36: 12 | WAH36: 12 | WAI36: 12 | WAJ36: 12 | WAK36: 12 | WAL36: 12 | WAM36: 12 | WAN36: 12 | WAO36: 12 | WAP36: 12 | WAQ36: 12 | WAR36: 12 | WAS36: 12 | WAT36: 12 | WAU36: 12 | WAV36: 12 | WAW36: 12 | WAX36: 12 | WAY36: 12 | WAZ36: 12 | WBA36: 12 | WBB36: 12 | WBC36: 12 | WBD36: 12 | WBE36: 12 | WBF36: 12 | WBG36: 12 | WBH36: 12 | WBI36: 12 | WBJ36: 12 | WBK36: 12 | WBL36: 12 | WBM36: 12 | WBN36: 12 | WBO36: 12 | WBP36: 12 | WBQ36: 12 | WBR36: 12 | WBS36: 12 | WBT36: 12 | WBU36: 12 | WBV36: 12 | WBW36: 12 | WBX36: 12 | WBY36: 12 | WBZ36: 12 | WCA36: 12 | WCB36: 12 | WCC36: 12 | WCD36: 12 | WCE36: 12 | WCF36: 12 | WCG36: 12 | WCH36: 12 | WCI36: 12 | WCJ36: 12 | WCK36: 12 | WCL36: 12 | WCM36: 12 | WCN36: 12 | WCO36: 12 | WCP36: 12 | WCQ36: 12 | WCR36: 12 | WCS36: 12 | WCT36: 12 | WCU36: 12 | WCV36: 12 | WCW36: 12 | WCX36: 12 | WCY36: 12 | WCZ36: 12 | WDA36: 12 | WDB36: 12 | WDC36: 12 | WDD36: 12 | WDE36: 12 | WDF36: 12 | WDG36: 12 | WDH36: 12 | WDI36: 12 | WDJ36: 12 | WDK36: 12 | WDL36: 12 | WDM36: 12 | WDN36: 12 | WDO36: 12 | WDP36: 12 | WDQ36: 12 | WDR36: 12 | WDS36: 12 | WDT36: 12 | WDU36: 12 | WDV36: 12 | WDW36: 12 | WDX36: 12 | WDY36: 12 | WDZ36: 12 | WEA36: 12 | WEB36: 12 | WEC36: 12 | WED36: 12 | WEE36: 12 | WEF36: 12 | WEG36: 12 | WEH36: 12 | WEI36: 12 | WEJ36: 12 | WEK36: 12 | WEL36: 12 | WEM36: 12 | WEN36: 12 | WEO36: 12 | WEP36: 12 | WEQ36: 12 | WER36: 12 | WES36: 12 | WET36: 12 | WEU36: 12 | WEV36: 12 | WEW36: 12 | WEX36: 12 | WEY36: 12 | WEZ36: 12 | WFA36: 12 | WFB36: 12 | WFC36: 12 | WFD36: 12 | WFE36: 12 | WFF36: 12 | WFG36: 12 | WFH36: 12 | WFI36: 12 | WFJ36: 12 | WFK36: 12 | WFL36: 12 | WFM36: 12 | WFN36: 12 | WFO36: 12 | WFP36: 12 | WFQ36: 12 | WFR36: 12 | WFS36: 12 | WFT36: 12 | WFU36: 12 | WFV36: 12 | WFW36: 12 | WFX36: 12 | WFY36: 12 | WFZ36: 12 | WGA36: 12 | WGB36: 12 | WGC36: 12 | WGD36: 12 | WGE36: 12 | WGF36: 12 | WGG36: 12 | WGH36: 12 | WGI36: 12 | WGJ36: 12 | WGK36: 12 | WGL36: 12 | WGM36: 12 | WGN36: 12 | WGO36: 12 | WGP36: 12 | WGQ36: 12 | WGR36: 12 | WGS36: 12 | WGT36: 12 | WGU36: 12 | WGV36: 12 | WGW36: 12 | WGX36: 12 | WGY36: 12 | WGZ36: 12 | WHA36: 12 | WHB36: 12 | WHC36: 12 | WHD36: 12 | WHE36: 12 | WHF36: 12 | WHG36: 12 | WHH36: 12 | WHI36: 12 | WHJ36: 12 | WHK36: 12 | WHL36: 12 | WHM36: 12 | WHN36: 12 | WHO36: 12 | WHP36: 12 | WHQ36: 12 | WHR36: 12 | WHS36: 12 | WHT36: 12 | WHU36: 12 | WHV36: 12 | WHW36: 12 | WHX36: 12 | WHY36: 12 | WHZ36: 12 | WIA36: 12 | WIB36: 12 | WIC36: 12 | WID36: 12 | WIE36: 12 | WIF36: 12 | WIG36: 12 | WIH36: 12 | WII36: 12 | WIJ36: 12 | WIK36: 12 | WIL36: 12 | WIM36: 12 | WIN36: 12 | WIO36: 12 | WIP36: 12 | WIQ36: 12 | WIR36: 12 | WIS36: 12 | WIT36: 12 | WIU36: 12 | WIV36: 12 | WIW36: 12 | WIX36: 12 | WIY36: 12 | WIZ36: 12 | WJA36: 12 | WJB36: 12 | WJC36: 12 | WJD36: 12 | WJE36: 12 | WJF36: 12 | WJG36: 12 | WJH36: 12 | WJI36: 12 | WJJ36: 12 | WJK36: 12 | WJL36: 12 | WJM36: 12 | WJN36: 12 | WJO36: 12 | WJP36: 12 | WJQ36: 12 | WJR36: 12 | WJS36: 12 | WJT36: 12 | WJU36: 12 | WJV36: 12 | WJW36: 12 | WJX36: 12 | WJY36: 12 | WJZ36: 12 | WKA36: 12 | WKB36: 12 | WKC36: 12 | WKD36: 12 | WKE36: 12 | WKF36: 12 | WKG36: 12 | WKH36: 12 | WKI36: 12 | WKJ36: 12 | WKK36: 12 | WKL36: 12 | WKM36: 12 | WKN36: 12 | WKO36: 12 | WKP36: 12 | WKQ36: 12 | WKR36: 12 | WKS36: 12 | WKT36: 12 | WKU36: 12 | WKV36: 12 | WKW36: 12 | WKX36: 12 | WKY36: 12 | WKZ36: 12 | WLA36: 12 | WLB36: 12 | WLC36: 12 | WLD36: 12 | WLE36: 12 | WLF36: 12 | WLG36: 12 | WLH36: 12 | WLI36: 12 | WLJ36: 12 | WLK36: 12 | WLL36: 12 | WLM36: 12 | WLN36: 12 | WLO36: 12 | WLP36: 12 | WLQ36: 12 | WLR36: 12 | WLS36: 12 | WLT36: 12 | WLU36: 12 | WLV36: 12 | WLW36: 12 | WLX36: 12 | WLY36: 12 | WLZ36: 12 | WMA36: 12 | WMB36: 12 | WMC36: 12 | WMD36: 12 | WME36: 12 | WMF36: 12 | WMG36: 12 | WMH36: 12 | WMI36: 12 | WMJ36: 12 | WMK36: 12 | WML36: 12 | WMM36: 12 | WMN36: 12 | WMO36: 12 | WMP36: 12 | WMQ36: 12 | WMR36: 12 | WMS36: 12 | WMT36: 12 | WMU36: 12 | WMV36: 12 | WMW36: 12 | WMX36: 12 | WMY36: 12 | WMZ36: 12 | WNA36: 12 | WNB36: 12 | WNC36: 12 | WND36: 12 | WNE36: 12 | WNF36: 12 | WNG36: 12 | WNH36: 12 | WNI36: 12 | WNJ36: 12 | WNK36: 12 | WNL36: 12 | WNM36: 12 | WNN36: 12 | WNO36: 12 | WNP36: 12 | WNQ36: 12 | WNR36: 12 | WNS36: 12 | WNT36: 12 | WNU36: 12 | WNV36: 12 | WNW36: 12 | WNX36: 12 | WNY36: 12 | WNZ36: 12 | WOA36: 12 | WOB36: 12 | WOC36: 12 | WOD36: 12 | WOE36: 12 | WOF36: 12 | WOG36: 12 | WOH36: 12 | WOI36: 12 | WOJ36: 12 | WOK36: 12 | WOL36: 12 | WOM36: 12 | WON36: 12 | WOO36: 12 | WOP36: 12 | WOQ36: 12 | WOR36: 12 | WOS36: 12 | WOT36: 12 | WOU36: 12 | WOV36: 12 | WOW36: 12 | WOX36: 12 | WOY36: 12 | WOZ36: 12 | WPA36: 12 | WPB36: 12 | WPC36: 12 | WPD36: 12 | WPE36: 12 | WPF36: 12 | WPG36: 12 | WPH36: 12 | WPI36: 12 | WPJ36: 12 | WPK36: 12 | WPL36: 12 | WPM36: 12 | WPN36: 12 | WPO36: 12 | WPP36: 12 | WPQ36: 12 | WPR36: 12 | WPS36: 12 | WPT36: 12 | WPU36: 12 | WPV36: 12 | WPW36: 12 | WPX36: 12 | WPY36: 12 | WPZ36: 12 | WQA36: 12 | WQB36: 12 | WQC36: 12 | WQD36: 12 | WQE36: 12 | WQF36: 12 | WQG36: 12 | WQH36: 12 | WQI36: 12 | WQJ36: 12 | WQK36: 12 | WQL36: 12 | WQM36: 12 | WQN36: 12 | WQO36: 12 | WQP36: 12 | WQQ36: 12 | WQR36: 12 | WQS36: 12 | WQT36: 12 | WQU36: 12 | WQV36: 12 | WQW36: 12 | WQX36: 12 | WQY36: 12 | WQZ36: 12 | WRA36: 12 | WRB36: 12 | WRC36: 12 | WRD36: 12 | WRE36: 12 | WRF36: 12 | WRG36: 12 | WRH36: 12 | WRI36: 12 | WRJ36: 12 | WRK36: 12 | WRL36: 12 | WRM36: 12 | WRN36: 12 | WRO36: 12 | WRP36: 12 | WRQ36: 12 | WRR36: 12 | WRS36: 12 | WRT36: 12 | WRU36: 12 | WRV36: 12 | WRW36: 12 | WRX36: 12 | WRY36: 12 | WRZ36: 12 | WSA36: 12 | WSB36: 12 | WSC36: 12 | WSD36: 12 | WSE36: 12 | WSF36: 12 | WSG36: 12 | WSH36: 12 | WSI36: 12 | WSJ36: 12 | WSK36: 12 | WSL36: 12 | WSM36: 12 | WSN36: 12 | WSO36: 12 | WSP36: 12 | WSQ36: 12 | WSR36: 12 | WSS36: 12 | WST36: 12 | WSU36: 12 | WSV36: 12 | WSW36: 12 | WSX36: 12 | WSY36: 12 | WSZ36: 12 | WTA36: 12 | WTB36: 12 | WTC36: 12 | WTD36: 12 | WTE36: 12 | WTF36: 12 | WTG36: 12 | WTH36: 12 | WTI36: 12 | WTJ36: 12 | WTK36: 12 | WTL36: 12 | WTM36: 12 | WTN36: 12 | WTO36: 12 | WTP36: 12 | WTQ36: 12 | WTR36: 12 | WTS36: 12 | WTT36: 12 | WTU36: 12 | WTV36: 12 | WTW36: 12 | WTX36: 12 | WTY36: 12 | WTZ36: 12 | WUA36: 12 | WUB36: 12 | WUC36: 12 | WUD36: 12 | WUE36: 12 | WUF36: 12 | WUG36: 12 | WUH36: 12 | WUI36: 12 | WUJ36: 12 | WUK36: 12 | WUL36: 12 | WUM36: 12 | WUN36: 12 | WUO36: 12 | WUP36: 12 | WUQ36: 12 | WUR36: 12 | WUS36: 12 | WUT36: 12 | WUU36: 12 | WUV36: 12 | WUW36: 12 | WUX36: 12 | WUY36: 12 | WUZ36: 12 | WVA36: 12 | WVB36: 12 | WVC36: 12 | WVD36: 12 | WVE36: 12 | WVF36: 12 | WVG36: 12 | WVH36: 12 | WVI36: 12 | WVJ36: 12 | WVK36: 12 | WVL36: 12 | WVM36: 12 | WVN36: 12 | WVO36: 12 | WVP36: 12 | WVQ36: 12 | WVR36: 12 | WVS36: 12 | WVT36: 12 | WVU36: 12 | WVV36: 12 | WVW36: 12 | WVX36: 12 | WVY36: 12 | WVZ36: 12 | WWA36: 12 | WWB36: 12 | WWC36: 12 | WWD36: 12 | WWE36: 12 | WWF36: 12 | WWG36: 12 | WWH36: 12 | WWI36: 12 | WWJ36: 12 | WWK36: 12 | WWL36: 12 | WWM36: 12 | WWN36: 12 | WWO36: 12 | WWP36: 12 | WWQ36: 12 | WWR36: 12 | WWS36: 12 | WWT36: 12 | WWU36: 12 | WWV36: 12 | WWW36: 12 | WWX36: 12 | WWY36: 12 | WWZ36: 12 | WXA36: 12 | WXB36: 12 | WXC36: 12 | WXD36: 12 | WXE36: 12 | WXF36: 12 | WXG36: 12 | WXH36: 12 | WXI36: 12 | WXJ36: 12 | WXK36: 12 | WXL36: 12 | WXM36: 12 | WXN36: 12 | WXO36: 12 | WXP36: 12 | WXQ36: 12 | WXR36: 12 | WXS36: 12 | WXT36: 12 | WXU36: 12 | WXV36: 12 | WXW36: 12 | WXX36: 12 | WXY36: 12 | WXZ36: 12 | WYA36: 12 | WYB36: 12 | WYC36: 12 | WYD36: 12 | WYE36: 12 | WYF36: 12 | WYG36: 12 | WYH36: 12 | WYI36: 12 | WYJ36: 12 | WYK36: 12 | WYL36: 12 | WYM36: 12 | WYN36: 12 | WYO36: 12 | WYP36: 12 | WYQ36: 12 | WYR36: 12 | WYS36: 12 | WYT36: 12 | WYU36: 12 | WYV36: 12 | WYW36: 12 | WYX36: 12 | WYY36: 12 | WYZ36: 12 | WZA36: 12 | WZB36: 12 | WZC36: 12 | WZD36: 12 | WZE36: 12 | WZF36: 12 | WZG36: 12 | WZH36: 12 | WZI36: 12 | WZJ36: 12 | WZK36: 12 | WZL36: 12 | WZM36: 12 | WZN36: 12 | WZO36: 12 | WZP36: 12 | WZQ36: 12 | WZR36: 12 | WZS36: 12 | WZT36: 12 | WZU36: 12 | WZV36: 12 | WZW36: 12 | WZX36: 12 | WZY36: 12 | WZZ36: 12 | XAA36: 12 | XAB36: 12 | XAC36: 12 | XAD36: 12 | XAE36: 12 | XAF36: 12 | XAG36: 12 | XAH36: 12 | XAI36: 12 | XAJ36: 12 | XAK36: 12 | XAL36: 12 | XAM36: 12 | XAN36: 12 | XAO36: 12 | XAP36: 12 | XAQ36: 12 | XAR36: 12 | XAS36: 12 | XAT36: 12 | XAU36: 12 | XAV36: 12 | XAW36: 12 | XAX36: 12 | XAY36: 12 | XAZ36: 12 | XBA36: 12 | XBB36: 12 | XBC36: 12 | XBD36: 12 | XBE36: 12 | XBF36: 12 | XBG36: 12 | XBH36: 12 | XBI36: 12 | XBJ36: 12 | XBK36: 12 | XBL36: 12 | XBM36: 12 | XBN36: 12 | XBO36: 12 | XBP36: 12 | XBQ36: 12 | XBR36: 12 | XBS36: 12 | XBT36: 12 | XBU36: 12 | XBV36: 12 | XBW36: 12 | XBX36: 12 | XBY36: 12 | XBZ36: 12 | XCA36: 12 | XCB36: 12 | XCC36: 12 | XCD36: 12 | XCE36: 12 | XCF36: 12 | XCG36: 12 | XCH36: 12 | XCI36: 12 | XCJ36: 12 | XCK36: 12 | XCL36: 12 | XCM36: 12 | XCN36: 12 | XCO36: 12 | XCP36: 12 | XCQ36: 12 | XCR36: 12 | XCS36: 12 | XCT36: 12 | XCU36: 12 | XCV36: 12 | XCW36: 12 | XCX36: 12 | XCY36: 12 | XCZ36: 12 | XDA36: 12 | XDB36: 12 | XDC36: 12 | XDD36: 12 | XDE36: 12 | XDF36: 12 | XDG36: 12 | XDH36: 12 | XDI36: 12 | XDJ36: 12 | XDK36: 12 | XDL36: 12 | XDM36: 12 | XDN36: 12 | XDO36: 12 | XDP36: 12 | XDQ36: 12 | XDR36: 12 | XDS36: 12 | XDT36: 12 | XDU36: 12 | XDV36: 12 | XDW36: 12 | XDX36: 12 | XDY36: 12 | XDZ36: 12 | XEA36: 12 | XEB36: 12 | XEC36: 12 | XED36: 12 | XEE36: 12 | XEF36: 12 | XEG36: 12 | XEH36: 12 | XEI36: 12 | XEJ36: 12 | XEK36: 12 | XEL36: 12 | XEM36: 12 | XEN36: 12 | XEO36: 12 | XEP36: 12 | XEQ36: 12 | XER36: 12 | XES36: 12 | XET36: 12 | XEU36: 12 | XEV36: 12 | XEW36: 12 | XEX36: 12 | XEY36: 12 | XEZ36: 12 | XFA36: 12 | XFB36: 12 | XFC36: 12 | XFD36: 12
C37: Software CIS | E37: 1 | F37: 1 | G37: 1 | H37: 1 | I37: 1 | J37: 1 | K37: 1 | L37: 1 | M37: 1 | N37: 1
